Department Family,Entity,Date,Expense Type,Expense Area,Supplier,Transaction Number,Amount,Item Description
BEIS,UKRI - AHRC,01/10/2019,Research Grant Expenditure,RCUK Global Challenges Research Fund (RCUK GCRF),UKRI - Medical Research Council,98590599,16622.44,Research Grant Expenditure
BEIS,UKRI - AHRC,01/10/2019,Other Programme Costs,RCUK Other,UKRI - Engineering & Physical Sciences Research Council,98591340,84941.67,Other Programme Costs
BEIS,UKRI - AHRC,01/10/2019,Research Grant Expenditure,GCRF - Programme Delivery,UKRI - Economic & Social Research Council,98591645,29600.00,Research Grant Expenditure
BEIS,UKRI - AHRC,01/10/2019,Non-staff travel and subsistance,International,Non Employee Expenses Supplier,98592900,307.14,Non-staff travel and subsistance
BEIS,UKRI - AHRC,01/10/2019,Non-staff travel and subsistance,International,Non Employee Expenses Supplier,98592901,345.72,Non-staff travel and subsistance
BEIS,UKRI - AHRC,01/10/2019,Non-staff travel and subsistance,International,Non Employee Expenses Supplier,98592902,345.72,Non-staff travel and subsistance
BEIS,UKRI - AHRC,01/10/2019,Non-staff travel and subsistance,International,Non Employee Expenses Supplier,98592903,218.99,Non-staff travel and subsistance
BEIS,UKRI - AHRC,01/10/2019,Meetings & Catering,History & Thought,Nesta Enterprises Ltd,98594056,1260.00,Meetings & Catering
BEIS,UKRI - AHRC,01/10/2019,Education Fees & Study Materials,Digital Arts and Humanities and Creative Industries,Unspecified,98595064,70.19,Education Fees & Study Materials
BEIS,UKRI - AHRC,01/10/2019,T&S UK - Mileage,Digital Arts and Humanities and Creative Industries,Unspecified,98595064,85.05,T&S UK - Mileage
BEIS,UKRI - AHRC,01/10/2019,T&S UK - Other Charges,Digital Arts and Humanities and Creative Industries,Unspecified,98595064,5.30,T&S UK - Other Charges
BEIS,UKRI - AHRC,01/10/2019,T&S UK - Parking Tolls Congestion Charges,Digital Arts and Humanities and Creative Industries,Unspecified,98595064,25.00,T&S UK - Parking Tolls Congestion Charges
BEIS,UKRI - AHRC,01/10/2019,T&S UK - Public Transport,Digital Arts and Humanities and Creative Industries,Unspecified,98595064,8.50,T&S UK - Public Transport
BEIS,UKRI - AHRC,01/10/2019,T&S UK - Subsistence,Digital Arts and Humanities and Creative Industries,Unspecified,98595064,23.45,T&S UK - Subsistence
BEIS,UKRI - AHRC,01/10/2019,T&S UK - Subsistence,Digital Arts and Humanities and Creative Industries,Unspecified,98595064,35.00,T&S UK - Subsistence
BEIS,UKRI - AHRC,02/10/2019,Data Storage & Recovery,Corporate Services,Iron Mountain (UK) PLC,98550522,107.10,Data Storage & Recovery
BEIS,UKRI - AHRC,02/10/2019,Data Storage & Recovery,Corporate Services,Iron Mountain (UK) PLC,98550522,0.52,Data Storage & Recovery
BEIS,UKRI - AHRC,02/10/2019,Data Storage & Recovery,Corporate Services,Iron Mountain (UK) PLC,98550522,0.10,Data Storage & Recovery
BEIS,UKRI - AHRC,02/10/2019,Hospitality,SMT,Calder Conference Ltd,98591697,182.00,Hospitality
BEIS,UKRI - AHRC,02/10/2019,Staff Training,Corporate Services,QA Ltd,98592804,1678.80,Staff Training
BEIS,UKRI - AHRC,02/10/2019,Conferences & Seminars,SMT,Calder Conference Ltd,98594543,768.00,Conferences & Seminars
BEIS,UKRI - AHRC,02/10/2019,Meetings & Catering,Executive Office,Harbour & Jones Ltd T/A Dartmouth House,98594714,417.60,Meetings & Catering
BEIS,UKRI - AHRC,02/10/2019,Meetings & Catering,Skills Strategy,Harbour & Jones Ltd T/A Dartmouth House,98594714,320.28,Meetings & Catering
BEIS,UKRI - AHRC,02/10/2019,T&S UK - Subsistence,Operations,Unspecified,98595065,14.30,T&S UK - Subsistence
BEIS,UKRI - AHRC,02/10/2019,T&S UK - Vehicle Hire,Operations,Unspecified,98595065,53.60,T&S UK - Vehicle Hire
BEIS,UKRI - AHRC,02/10/2019,T&S UK - Public Transport,SMT,Unspecified,98595474,4.50,T&S UK - Public Transport
BEIS,UKRI - AHRC,02/10/2019,T&S UK - Public Transport,SMT,Unspecified,98595474,30.00,T&S UK - Public Transport
BEIS,UKRI - AHRC,02/10/2019,T&S UK - Subsistence,SMT,Unspecified,98595474,11.45,T&S UK - Subsistence
BEIS,UKRI - AHRC,02/10/2019,T&S UK - Subsistence,SMT,Unspecified,98595474,19.82,T&S UK - Subsistence
BEIS,UKRI - AHRC,02/10/2019,T&S UK - Subsistence,SMT,Unspecified,98595474,7.58,T&S UK - Subsistence
BEIS,UKRI - AHRC,02/10/2019,T&S UK - Subsistence,SMT,Unspecified,98595474,2.80,T&S UK - Subsistence
BEIS,UKRI - AHRC,02/10/2019,T&S UK - Other Charges,Public and Stakeholder Engagement,Unspecified,98595475,17.44,T&S UK - Other Charges
BEIS,UKRI - AHRC,02/10/2019,T&S UK - Public Transport,Public and Stakeholder Engagement,Unspecified,98595475,13.00,T&S UK - Public Transport
BEIS,UKRI - AHRC,02/10/2019,T&S UK - Subsistence,Public and Stakeholder Engagement,Unspecified,98595475,4.00,T&S UK - Subsistence
BEIS,UKRI - AHRC,02/10/2019,T&S UK - Subsistence,Public and Stakeholder Engagement,Unspecified,98595475,19.94,T&S UK - Subsistence
BEIS,UKRI - AHRC,02/10/2019,T&S UK - Public Transport,Public and Stakeholder Engagement,Unspecified,98595476,9.80,T&S UK - Public Transport
BEIS,UKRI - AHRC,02/10/2019,T&S UK - Subsistence,Operations,Unspecified,98595478,24.30,T&S UK - Subsistence
BEIS,UKRI - AHRC,02/10/2019,T&S UK - Other Charges,Strategy and Evidence,Unspecified,98595479,10.55,T&S UK - Other Charges
BEIS,UKRI - AHRC,02/10/2019,T&S UK - Public Transport,Strategy and Evidence,Unspecified,98595479,24.00,T&S UK - Public Transport
BEIS,UKRI - AHRC,02/10/2019,T&S UK - Subsistence,Industrial Strategy Challenge Fund (ISCF) - Creative Clusters,Unspecified,98595479,1.70,T&S UK - Subsistence
BEIS,UKRI - AHRC,02/10/2019,T&S UK - Subsistence,Industrial Strategy Challenge Fund (ISCF) - Creative Clusters,Unspecified,98595479,4.39,T&S UK - Subsistence
BEIS,UKRI - AHRC,02/10/2019,T&S UK - Subsistence,Strategy and Evidence,Unspecified,98595479,4.25,T&S UK - Subsistence
BEIS,UKRI - AHRC,02/10/2019,T&S UK - Mileage,Public and Stakeholder Engagement,Unspecified,98595480,66.60,T&S UK - Mileage
BEIS,UKRI - AHRC,02/10/2019,T&S UK - Subsistence,Corporate Services,Unspecified,98595481,19.20,T&S UK - Subsistence
BEIS,UKRI - AHRC,02/10/2019,T&S UK - Subsistence,Corporate Services,Unspecified,98595481,5.00,T&S UK - Subsistence
BEIS,UKRI - AHRC,02/10/2019,T&S UK - Public Transport,SMT,Unspecified,98595482,7.60,T&S UK - Public Transport
BEIS,UKRI - AHRC,02/10/2019,T&S UK - Public Transport,SMT,Unspecified,98595482,17.89,T&S UK - Public Transport
BEIS,UKRI - AHRC,02/10/2019,T&S UK - Public Transport,SMT,Unspecified,98595482,17.26,T&S UK - Public Transport
BEIS,UKRI - AHRC,02/10/2019,T&S UK - Subsistence,SMT,Unspecified,98595482,4.18,T&S UK - Subsistence
BEIS,UKRI - AHRC,02/10/2019,T&S UK - Subsistence,SMT,Unspecified,98595482,16.73,T&S UK - Subsistence
BEIS,UKRI - AHRC,02/10/2019,T&S UK - Subsistence,SMT,Unspecified,98595482,10.00,T&S UK - Subsistence
BEIS,UKRI - AHRC,02/10/2019,T&S UK - Mileage,PSU Project Office,Unspecified,98595483,73.80,T&S UK - Mileage
BEIS,UKRI - AHRC,02/10/2019,T&S UK - Parking Tolls Congestion Charges,PSU Project Office,Unspecified,98595483,27.00,T&S UK - Parking Tolls Congestion Charges
BEIS,UKRI - AHRC,02/10/2019,Conferences & Seminars,"History, Heritage, Languages and Literature",Unspecified,98595486,8.00,Conferences & Seminars
BEIS,UKRI - AHRC,03/10/2019,Non-staff travel and subsistance,SMT,Non Employee Expenses Supplier,98595902,184.10,Non-staff travel and subsistance
BEIS,UKRI - AHRC,03/10/2019,Non-staff travel and subsistance,Executive Office,Non Employee Expenses Supplier,98595903,85.58,Non-staff travel and subsistance
BEIS,UKRI - AHRC,03/10/2019,Non-staff travel and subsistance,SMT,Non Employee Expenses Supplier,98595904,406.98,Non-staff travel and subsistance
BEIS,UKRI - AHRC,03/10/2019,Non-staff travel and subsistance,Executive Office,Non Employee Expenses Supplier,98595905,50.90,Non-staff travel and subsistance
BEIS,UKRI - AHRC,03/10/2019,Health & Safety (inc. Medicals & Opticians),HR,Swindon Occupational Medical Services Ltd,98595993,525.00,Health & Safety (inc. Medicals & Opticians)
BEIS,UKRI - AHRC,03/10/2019,T&S UK - Public Transport,GCRF - Programme Delivery,Unspecified,98596472,17.70,T&S UK - Public Transport
BEIS,UKRI - AHRC,03/10/2019,T&S UK - Public Transport,GCRF - Programme Delivery,Unspecified,98596472,4.80,T&S UK - Public Transport
BEIS,UKRI - AHRC,03/10/2019,T&S UK - Subsistence,GCRF - Programme Delivery,Unspecified,98596472,8.80,T&S UK - Subsistence
BEIS,UKRI - AHRC,04/10/2019,T&S UK - Vehicle Hire,Operations,Enterprise Rent-A-Car UK Ltd,98596973,240.00,T&S UK - Vehicle Hire
BEIS,UKRI - AHRC,04/10/2019,T&S UK - Vehicle Hire,Operations,Enterprise Rent-A-Car UK Ltd,98596973,7.13,T&S UK - Vehicle Hire
BEIS,UKRI - AHRC,04/10/2019,T&S UK - Vehicle Hire,Operations,Enterprise Rent-A-Car UK Ltd,98596973,1.43,T&S UK - Vehicle Hire
BEIS,UKRI - AHRC,04/10/2019,T&S UK - Public Transport,Industrial Strategy Challenge Fund (ISCF) - Creative Clusters,Unspecified,98597467,14.38,T&S UK - Public Transport
BEIS,UKRI - AHRC,04/10/2019,T&S UK - Subsistence,Industrial Strategy Challenge Fund (ISCF) - Creative Clusters,Unspecified,98597467,46.24,T&S UK - Subsistence
BEIS,UKRI - AHRC,04/10/2019,T&S UK - Subsistence,Industrial Strategy Challenge Fund (ISCF) - Creative Clusters,Unspecified,98597467,10.00,T&S UK - Subsistence
BEIS,UKRI - AHRC,04/10/2019,T&S UK - Public Transport,Operations,Unspecified,98597468,9.90,T&S UK - Public Transport
BEIS,UKRI - AHRC,04/10/2019,T&S UK - Subsistence,Operations,Unspecified,98597468,9.75,T&S UK - Subsistence
BEIS,UKRI - AHRC,07/10/2019,Secondments,Finance,University of Exeter,98507269,4815.84,Secondments
BEIS,UKRI - AHRC,07/10/2019,Secondments,Finance,University of Exeter,98507269,2675.13,Secondments
BEIS,UKRI - AHRC,07/10/2019,Secondments,Finance,University of Exeter,98507269,535.03,Secondments
BEIS,UKRI - AHRC,07/10/2019,Secondments,Finance,University of Exeter,98592378,-4815.84,Secondments
BEIS,UKRI - AHRC,07/10/2019,Secondments,Finance,University of Exeter,98592378,-3210.16,Secondments
BEIS,UKRI - AHRC,07/10/2019,T&S UK - Mileage,PSU Project Office,Unspecified,98597913,76.50,T&S UK - Mileage
BEIS,UKRI - AHRC,08/10/2019,Consultancy Services,Public and Stakeholder Engagement,Pennawd Cyf,98598891,49.08,Consultancy Services
BEIS,UKRI - AHRC,08/10/2019,Contract Staff,PSU JRS,Alexander Mann Solutions Ltd,98598902,1369.25,Contract Staff
BEIS,UKRI - AHRC,08/10/2019,Contract Staff,PSU Project Office,Alexander Mann Solutions Ltd,98598903,2795.58,Contract Staff
BEIS,UKRI - AHRC,08/10/2019,Non-staff travel and subsistance,International Development and Area Studies,Corporate Travel Management (North) Ltd,98599989,0.80,Non-staff travel and subsistance
BEIS,UKRI - AHRC,08/10/2019,Non-staff travel and subsistance,International Development and Area Studies,Corporate Travel Management (North) Ltd,98599989,75.00,Non-staff travel and subsistance
BEIS,UKRI - AHRC,08/10/2019,Non-staff travel and subsistance,International Development and Area Studies,Corporate Travel Management (North) Ltd,98599989,0.80,Non-staff travel and subsistance
BEIS,UKRI - AHRC,08/10/2019,Non-staff travel and subsistance,International Development and Area Studies,Corporate Travel Management (North) Ltd,98599989,75.00,Non-staff travel and subsistance
BEIS,UKRI - AHRC,08/10/2019,Non-staff travel and subsistance,International Development and Area Studies,Corporate Travel Management (North) Ltd,98599989,0.80,Non-staff travel and subsistance
BEIS,UKRI - AHRC,08/10/2019,Non-staff travel and subsistance,International Development and Area Studies,Corporate Travel Management (North) Ltd,98599989,93.00,Non-staff travel and subsistance
BEIS,UKRI - AHRC,08/10/2019,Non-staff travel and subsistance,International Development and Area Studies,Corporate Travel Management (North) Ltd,98599989,0.80,Non-staff travel and subsistance
BEIS,UKRI - AHRC,08/10/2019,Non-staff travel and subsistance,International Development and Area Studies,Corporate Travel Management (North) Ltd,98599989,150.00,Non-staff travel and subsistance
BEIS,UKRI - AHRC,08/10/2019,Non-staff travel and subsistance,International Development and Area Studies,Corporate Travel Management (North) Ltd,98599989,0.80,Non-staff travel and subsistance
BEIS,UKRI - AHRC,08/10/2019,Non-staff travel and subsistance,International Development and Area Studies,Corporate Travel Management (North) Ltd,98599989,93.00,Non-staff travel and subsistance
BEIS,UKRI - AHRC,08/10/2019,Non-staff travel and subsistance,International Development and Area Studies,Corporate Travel Management (North) Ltd,98599989,0.80,Non-staff travel and subsistance
BEIS,UKRI - AHRC,08/10/2019,Non-staff travel and subsistance,International Development and Area Studies,Corporate Travel Management (North) Ltd,98599989,75.00,Non-staff travel and subsistance
BEIS,UKRI - AHRC,08/10/2019,Non-staff travel and subsistance,International Development and Area Studies,Corporate Travel Management (North) Ltd,98599989,0.96,Non-staff travel and subsistance
BEIS,UKRI - AHRC,08/10/2019,Non-staff travel and subsistance,Operations,Corporate Travel Management (North) Ltd,98599989,0.80,Non-staff travel and subsistance
BEIS,UKRI - AHRC,08/10/2019,Non-staff travel and subsistance,Operations,Corporate Travel Management (North) Ltd,98599989,75.00,Non-staff travel and subsistance
BEIS,UKRI - AHRC,08/10/2019,Non-staff travel and subsistance,Operations,Corporate Travel Management (North) Ltd,98599989,0.80,Non-staff travel and subsistance
BEIS,UKRI - AHRC,08/10/2019,Non-staff travel and subsistance,Operations,Corporate Travel Management (North) Ltd,98599989,89.00,Non-staff travel and subsistance
BEIS,UKRI - AHRC,08/10/2019,Non-staff travel and subsistance,Operations,Corporate Travel Management (North) Ltd,98599989,0.80,Non-staff travel and subsistance
BEIS,UKRI - AHRC,08/10/2019,Non-staff travel and subsistance,Operations,Corporate Travel Management (North) Ltd,98599989,89.00,Non-staff travel and subsistance
BEIS,UKRI - AHRC,08/10/2019,Non-staff travel and subsistance,Operations,Corporate Travel Management (North) Ltd,98599989,0.48,Non-staff travel and subsistance
BEIS,UKRI - AHRC,08/10/2019,T&S Overseas - Accommodation,International,Corporate Travel Management (North) Ltd,98599989,0.50,T&S Overseas - Accommodation
BEIS,UKRI - AHRC,08/10/2019,T&S Overseas - Accommodation,International,Corporate Travel Management (North) Ltd,98599989,1.44,T&S Overseas - Accommodation
BEIS,UKRI - AHRC,08/10/2019,T&S Overseas - Accommodation,International,Corporate Travel Management (North) Ltd,98599989,441.51,T&S Overseas - Accommodation
BEIS,UKRI - AHRC,08/10/2019,T&S Overseas - Accommodation,International,Corporate Travel Management (North) Ltd,98599989,0.50,T&S Overseas - Accommodation
BEIS,UKRI - AHRC,08/10/2019,T&S Overseas - Accommodation,International,Corporate Travel Management (North) Ltd,98599989,1.44,T&S Overseas - Accommodation
BEIS,UKRI - AHRC,08/10/2019,T&S Overseas - Accommodation,International,Corporate Travel Management (North) Ltd,98599989,441.51,T&S Overseas - Accommodation
BEIS,UKRI - AHRC,08/10/2019,T&S Overseas - Accommodation,International,Corporate Travel Management (North) Ltd,98599989,0.50,T&S Overseas - Accommodation
BEIS,UKRI - AHRC,08/10/2019,T&S Overseas - Accommodation,International,Corporate Travel Management (North) Ltd,98599989,1.44,T&S Overseas - Accommodation
BEIS,UKRI - AHRC,08/10/2019,T&S Overseas - Accommodation,International,Corporate Travel Management (North) Ltd,98599989,441.51,T&S Overseas - Accommodation
BEIS,UKRI - AHRC,08/10/2019,T&S Overseas - Accommodation,International,Corporate Travel Management (North) Ltd,98599989,120.13,T&S Overseas - Accommodation
BEIS,UKRI - AHRC,08/10/2019,T&S Overseas - Accommodation,International,Corporate Travel Management (North) Ltd,98599989,1.17,T&S Overseas - Accommodation
BEIS,UKRI - AHRC,08/10/2019,T&S Overseas - Accommodation,JPI Cultural Heritage Project,Corporate Travel Management (North) Ltd,98599989,400.24,T&S Overseas - Accommodation
BEIS,UKRI - AHRC,08/10/2019,T&S Overseas - Flights,International,Corporate Travel Management (North) Ltd,98599989,2.50,T&S Overseas - Flights
BEIS,UKRI - AHRC,08/10/2019,T&S Overseas - Flights,International,Corporate Travel Management (North) Ltd,98599989,161.10,T&S Overseas - Flights
BEIS,UKRI - AHRC,08/10/2019,T&S Overseas - Flights,Newton Programme Delivery,Corporate Travel Management (North) Ltd,98599989,2.50,T&S Overseas - Flights
BEIS,UKRI - AHRC,08/10/2019,T&S Overseas - Flights,Newton Programme Delivery,Corporate Travel Management (North) Ltd,98599989,144.42,T&S Overseas - Flights
BEIS,UKRI - AHRC,08/10/2019,T&S Overseas - Flights,Newton Programme Delivery,Corporate Travel Management (North) Ltd,98599989,2.50,T&S Overseas - Flights
BEIS,UKRI - AHRC,08/10/2019,T&S Overseas - Flights,Newton Programme Delivery,Corporate Travel Management (North) Ltd,98599989,320.02,T&S Overseas - Flights
BEIS,UKRI - AHRC,08/10/2019,T&S Overseas - Flights,Newton Programme Delivery,Corporate Travel Management (North) Ltd,98599989,2.50,T&S Overseas - Flights
BEIS,UKRI - AHRC,08/10/2019,T&S Overseas - Flights,Newton Programme Delivery,Corporate Travel Management (North) Ltd,98599989,145.40,T&S Overseas - Flights
BEIS,UKRI - AHRC,08/10/2019,T&S Overseas - Flights,SMT,Corporate Travel Management (North) Ltd,98599989,2.50,T&S Overseas - Flights
BEIS,UKRI - AHRC,08/10/2019,T&S Overseas - Flights,SMT,Corporate Travel Management (North) Ltd,98599989,4050.62,T&S Overseas - Flights
BEIS,UKRI - AHRC,08/10/2019,T&S Overseas - Other Charges,Skills Strategy,Corporate Travel Management (North) Ltd,98599989,2.50,T&S Overseas - Other Charges
BEIS,UKRI - AHRC,08/10/2019,T&S Overseas - Other Charges,Skills Strategy,Corporate Travel Management (North) Ltd,98599989,178.00,T&S Overseas - Other Charges
BEIS,UKRI - AHRC,08/10/2019,T&S UK - Accommodation,Digital Arts and Humanities and Creative Industries,Corporate Travel Management (North) Ltd,98599989,2.00,T&S UK - Accommodation
BEIS,UKRI - AHRC,08/10/2019,T&S UK - Accommodation,Digital Arts and Humanities and Creative Industries,Corporate Travel Management (North) Ltd,98599989,0.50,T&S UK - Accommodation
BEIS,UKRI - AHRC,08/10/2019,T&S UK - Accommodation,Digital Arts and Humanities and Creative Industries,Corporate Travel Management (North) Ltd,98599989,174.00,T&S UK - Accommodation
BEIS,UKRI - AHRC,08/10/2019,T&S UK - Accommodation,Digital Arts and Humanities and Creative Industries,Corporate Travel Management (North) Ltd,98599989,0.50,T&S UK - Accommodation
BEIS,UKRI - AHRC,08/10/2019,T&S UK - Accommodation,Finance,Corporate Travel Management (North) Ltd,98599989,0.80,T&S UK - Accommodation
BEIS,UKRI - AHRC,08/10/2019,T&S UK - Accommodation,Finance,Corporate Travel Management (North) Ltd,98599989,240.00,T&S UK - Accommodation
BEIS,UKRI - AHRC,08/10/2019,T&S UK - Accommodation,Finance,Corporate Travel Management (North) Ltd,98599989,0.16,T&S UK - Accommodation
BEIS,UKRI - AHRC,08/10/2019,T&S UK - Accommodation,GCRF - Programme Delivery,Corporate Travel Management (North) Ltd,98599989,0.50,T&S UK - Accommodation
BEIS,UKRI - AHRC,08/10/2019,T&S UK - Accommodation,GCRF - Programme Delivery,Corporate Travel Management (North) Ltd,98599989,75.00,T&S UK - Accommodation
BEIS,UKRI - AHRC,08/10/2019,T&S UK - Accommodation,GCRF - Programme Delivery,Corporate Travel Management (North) Ltd,98599989,0.80,T&S UK - Accommodation
BEIS,UKRI - AHRC,08/10/2019,T&S UK - Accommodation,GCRF - Programme Delivery,Corporate Travel Management (North) Ltd,98599989,115.23,T&S UK - Accommodation
BEIS,UKRI - AHRC,08/10/2019,T&S UK - Accommodation,GCRF - Programme Delivery,Corporate Travel Management (North) Ltd,98599989,0.26,T&S UK - Accommodation
BEIS,UKRI - AHRC,08/10/2019,T&S UK - Accommodation,HR,Corporate Travel Management (North) Ltd,98599989,0.80,T&S UK - Accommodation
BEIS,UKRI - AHRC,08/10/2019,T&S UK - Accommodation,HR,Corporate Travel Management (North) Ltd,98599989,130.00,T&S UK - Accommodation
BEIS,UKRI - AHRC,08/10/2019,T&S UK - Accommodation,HR,Corporate Travel Management (North) Ltd,98599989,0.16,T&S UK - Accommodation
BEIS,UKRI - AHRC,08/10/2019,T&S UK - Accommodation,"History, Heritage, Languages and Literature",Corporate Travel Management (North) Ltd,98599989,0.80,T&S UK - Accommodation
BEIS,UKRI - AHRC,08/10/2019,T&S UK - Accommodation,"History, Heritage, Languages and Literature",Corporate Travel Management (North) Ltd,98599989,39.24,T&S UK - Accommodation
BEIS,UKRI - AHRC,08/10/2019,T&S UK - Accommodation,"History, Heritage, Languages and Literature",Corporate Travel Management (North) Ltd,98599989,0.16,T&S UK - Accommodation
BEIS,UKRI - AHRC,08/10/2019,T&S UK - Accommodation,Industrial Strategy Challenge Fund (ISCF) - Creative Clusters,Corporate Travel Management (North) Ltd,98599989,0.80,T&S UK - Accommodation
BEIS,UKRI - AHRC,08/10/2019,T&S UK - Accommodation,Industrial Strategy Challenge Fund (ISCF) - Creative Clusters,Corporate Travel Management (North) Ltd,98599989,87.00,T&S UK - Accommodation
BEIS,UKRI - AHRC,08/10/2019,T&S UK - Accommodation,Industrial Strategy Challenge Fund (ISCF) - Creative Clusters,Corporate Travel Management (North) Ltd,98599989,0.80,T&S UK - Accommodation
BEIS,UKRI - AHRC,08/10/2019,T&S UK - Accommodation,Industrial Strategy Challenge Fund (ISCF) - Creative Clusters,Corporate Travel Management (North) Ltd,98599989,174.00,T&S UK - Accommodation
BEIS,UKRI - AHRC,08/10/2019,T&S UK - Accommodation,Industrial Strategy Challenge Fund (ISCF) - Creative Clusters,Corporate Travel Management (North) Ltd,98599989,0.50,T&S UK - Accommodation
BEIS,UKRI - AHRC,08/10/2019,T&S UK - Accommodation,Industrial Strategy Challenge Fund (ISCF) - Creative Clusters,Corporate Travel Management (North) Ltd,98599989,87.00,T&S UK - Accommodation
BEIS,UKRI - AHRC,08/10/2019,T&S UK - Accommodation,Industrial Strategy Challenge Fund (ISCF) - Creative Clusters,Corporate Travel Management (North) Ltd,98599989,0.42,T&S UK - Accommodation
BEIS,UKRI - AHRC,08/10/2019,T&S UK - Accommodation,International Partnership and Engagement,Corporate Travel Management (North) Ltd,98599989,0.80,T&S UK - Accommodation
BEIS,UKRI - AHRC,08/10/2019,T&S UK - Accommodation,International Partnership and Engagement,Corporate Travel Management (North) Ltd,98599989,119.00,T&S UK - Accommodation
BEIS,UKRI - AHRC,08/10/2019,T&S UK - Accommodation,International Partnership and Engagement,Corporate Travel Management (North) Ltd,98599989,0.80,T&S UK - Accommodation
BEIS,UKRI - AHRC,08/10/2019,T&S UK - Accommodation,International Partnership and Engagement,Corporate Travel Management (North) Ltd,98599989,86.00,T&S UK - Accommodation
BEIS,UKRI - AHRC,08/10/2019,T&S UK - Accommodation,International Partnership and Engagement,Corporate Travel Management (North) Ltd,98599989,0.32,T&S UK - Accommodation
BEIS,UKRI - AHRC,08/10/2019,T&S UK - Accommodation,Landscape Decisions (SPF),Corporate Travel Management (North) Ltd,98599989,0.80,T&S UK - Accommodation
BEIS,UKRI - AHRC,08/10/2019,T&S UK - Accommodation,Landscape Decisions (SPF),Corporate Travel Management (North) Ltd,98599989,75.00,T&S UK - Accommodation
BEIS,UKRI - AHRC,08/10/2019,T&S UK - Accommodation,Landscape Decisions (SPF),Corporate Travel Management (North) Ltd,98599989,0.80,T&S UK - Accommodation
BEIS,UKRI - AHRC,08/10/2019,T&S UK - Accommodation,Landscape Decisions (SPF),Corporate Travel Management (North) Ltd,98599989,75.00,T&S UK - Accommodation
BEIS,UKRI - AHRC,08/10/2019,T&S UK - Accommodation,Landscape Decisions (SPF),Corporate Travel Management (North) Ltd,98599989,0.80,T&S UK - Accommodation
BEIS,UKRI - AHRC,08/10/2019,T&S UK - Accommodation,Landscape Decisions (SPF),Corporate Travel Management (North) Ltd,98599989,92.00,T&S UK - Accommodation
BEIS,UKRI - AHRC,08/10/2019,T&S UK - Accommodation,Landscape Decisions (SPF),Corporate Travel Management (North) Ltd,98599989,0.80,T&S UK - Accommodation
BEIS,UKRI - AHRC,08/10/2019,T&S UK - Accommodation,Landscape Decisions (SPF),Corporate Travel Management (North) Ltd,98599989,75.00,T&S UK - Accommodation
BEIS,UKRI - AHRC,08/10/2019,T&S UK - Accommodation,Landscape Decisions (SPF),Corporate Travel Management (North) Ltd,98599989,0.80,T&S UK - Accommodation
BEIS,UKRI - AHRC,08/10/2019,T&S UK - Accommodation,Landscape Decisions (SPF),Corporate Travel Management (North) Ltd,98599989,75.00,T&S UK - Accommodation
BEIS,UKRI - AHRC,08/10/2019,T&S UK - Accommodation,Landscape Decisions (SPF),Corporate Travel Management (North) Ltd,98599989,0.80,T&S UK - Accommodation
BEIS,UKRI - AHRC,08/10/2019,T&S UK - Accommodation,Landscape Decisions (SPF),Corporate Travel Management (North) Ltd,98599989,75.00,T&S UK - Accommodation
BEIS,UKRI - AHRC,08/10/2019,T&S UK - Accommodation,Landscape Decisions (SPF),Corporate Travel Management (North) Ltd,98599989,0.96,T&S UK - Accommodation
BEIS,UKRI - AHRC,08/10/2019,T&S UK - Accommodation,Operations,Corporate Travel Management (North) Ltd,98599989,0.80,T&S UK - Accommodation
BEIS,UKRI - AHRC,08/10/2019,T&S UK - Accommodation,Operations,Corporate Travel Management (North) Ltd,98599989,65.00,T&S UK - Accommodation
BEIS,UKRI - AHRC,08/10/2019,T&S UK - Accommodation,Operations,Corporate Travel Management (North) Ltd,98599989,0.80,T&S UK - Accommodation
BEIS,UKRI - AHRC,08/10/2019,T&S UK - Accommodation,Operations,Corporate Travel Management (North) Ltd,98599989,65.00,T&S UK - Accommodation
BEIS,UKRI - AHRC,08/10/2019,T&S UK - Accommodation,Operations,Corporate Travel Management (North) Ltd,98599989,0.80,T&S UK - Accommodation
BEIS,UKRI - AHRC,08/10/2019,T&S UK - Accommodation,Operations,Corporate Travel Management (North) Ltd,98599989,65.00,T&S UK - Accommodation
BEIS,UKRI - AHRC,08/10/2019,T&S UK - Accommodation,Operations,Corporate Travel Management (North) Ltd,98599989,0.80,T&S UK - Accommodation
BEIS,UKRI - AHRC,08/10/2019,T&S UK - Accommodation,Operations,Corporate Travel Management (North) Ltd,98599989,65.00,T&S UK - Accommodation
BEIS,UKRI - AHRC,08/10/2019,T&S UK - Accommodation,Operations,Corporate Travel Management (North) Ltd,98599989,0.80,T&S UK - Accommodation
BEIS,UKRI - AHRC,08/10/2019,T&S UK - Accommodation,Operations,Corporate Travel Management (North) Ltd,98599989,65.00,T&S UK - Accommodation
BEIS,UKRI - AHRC,08/10/2019,T&S UK - Accommodation,Operations,Corporate Travel Management (North) Ltd,98599989,0.80,T&S UK - Accommodation
BEIS,UKRI - AHRC,08/10/2019,T&S UK - Accommodation,Operations,Corporate Travel Management (North) Ltd,98599989,187.20,T&S UK - Accommodation
BEIS,UKRI - AHRC,08/10/2019,T&S UK - Accommodation,Operations,Corporate Travel Management (North) Ltd,98599989,0.80,T&S UK - Accommodation
BEIS,UKRI - AHRC,08/10/2019,T&S UK - Accommodation,Operations,Corporate Travel Management (North) Ltd,98599989,90.00,T&S UK - Accommodation
BEIS,UKRI - AHRC,08/10/2019,T&S UK - Accommodation,Operations,Corporate Travel Management (North) Ltd,98599989,0.80,T&S UK - Accommodation
BEIS,UKRI - AHRC,08/10/2019,T&S UK - Accommodation,Operations,Corporate Travel Management (North) Ltd,98599989,165.00,T&S UK - Accommodation
BEIS,UKRI - AHRC,08/10/2019,T&S UK - Accommodation,Operations,Corporate Travel Management (North) Ltd,98599989,0.80,T&S UK - Accommodation
BEIS,UKRI - AHRC,08/10/2019,T&S UK - Accommodation,Operations,Corporate Travel Management (North) Ltd,98599989,103.50,T&S UK - Accommodation
BEIS,UKRI - AHRC,08/10/2019,T&S UK - Accommodation,Operations,Corporate Travel Management (North) Ltd,98599989,0.80,T&S UK - Accommodation
BEIS,UKRI - AHRC,08/10/2019,T&S UK - Accommodation,Operations,Corporate Travel Management (North) Ltd,98599989,85.00,T&S UK - Accommodation
BEIS,UKRI - AHRC,08/10/2019,T&S UK - Accommodation,Operations,Corporate Travel Management (North) Ltd,98599989,0.80,T&S UK - Accommodation
BEIS,UKRI - AHRC,08/10/2019,T&S UK - Accommodation,Operations,Corporate Travel Management (North) Ltd,98599989,85.00,T&S UK - Accommodation
BEIS,UKRI - AHRC,08/10/2019,T&S UK - Accommodation,Operations,Corporate Travel Management (North) Ltd,98599989,0.80,T&S UK - Accommodation
BEIS,UKRI - AHRC,08/10/2019,T&S UK - Accommodation,Operations,Corporate Travel Management (North) Ltd,98599989,85.00,T&S UK - Accommodation
BEIS,UKRI - AHRC,08/10/2019,T&S UK - Accommodation,Operations,Corporate Travel Management (North) Ltd,98599989,0.80,T&S UK - Accommodation
BEIS,UKRI - AHRC,08/10/2019,T&S UK - Accommodation,Operations,Corporate Travel Management (North) Ltd,98599989,0.80,T&S UK - Accommodation
BEIS,UKRI - AHRC,08/10/2019,T&S UK - Accommodation,Operations,Corporate Travel Management (North) Ltd,98599989,85.00,T&S UK - Accommodation
BEIS,UKRI - AHRC,08/10/2019,T&S UK - Accommodation,Operations,Corporate Travel Management (North) Ltd,98599989,0.80,T&S UK - Accommodation
BEIS,UKRI - AHRC,08/10/2019,T&S UK - Accommodation,Operations,Corporate Travel Management (North) Ltd,98599989,85.00,T&S UK - Accommodation
BEIS,UKRI - AHRC,08/10/2019,T&S UK - Accommodation,Operations,Corporate Travel Management (North) Ltd,98599989,0.80,T&S UK - Accommodation
BEIS,UKRI - AHRC,08/10/2019,T&S UK - Accommodation,Operations,Corporate Travel Management (North) Ltd,98599989,85.00,T&S UK - Accommodation
BEIS,UKRI - AHRC,08/10/2019,T&S UK - Accommodation,Operations,Corporate Travel Management (North) Ltd,98599989,0.80,T&S UK - Accommodation
BEIS,UKRI - AHRC,08/10/2019,T&S UK - Accommodation,Operations,Corporate Travel Management (North) Ltd,98599989,85.00,T&S UK - Accommodation
BEIS,UKRI - AHRC,08/10/2019,T&S UK - Accommodation,Operations,Corporate Travel Management (North) Ltd,98599989,0.80,T&S UK - Accommodation
BEIS,UKRI - AHRC,08/10/2019,T&S UK - Accommodation,Operations,Corporate Travel Management (North) Ltd,98599989,169.00,T&S UK - Accommodation
BEIS,UKRI - AHRC,08/10/2019,T&S UK - Accommodation,Operations,Corporate Travel Management (North) Ltd,98599989,0.80,T&S UK - Accommodation
BEIS,UKRI - AHRC,08/10/2019,T&S UK - Accommodation,Operations,Corporate Travel Management (North) Ltd,98599989,103.50,T&S UK - Accommodation
BEIS,UKRI - AHRC,08/10/2019,T&S UK - Accommodation,Operations,Corporate Travel Management (North) Ltd,98599989,0.80,T&S UK - Accommodation
BEIS,UKRI - AHRC,08/10/2019,T&S UK - Accommodation,Operations,Corporate Travel Management (North) Ltd,98599989,207.00,T&S UK - Accommodation
BEIS,UKRI - AHRC,08/10/2019,T&S UK - Accommodation,Operations,Corporate Travel Management (North) Ltd,98599989,0.80,T&S UK - Accommodation
BEIS,UKRI - AHRC,08/10/2019,T&S UK - Accommodation,Operations,Corporate Travel Management (North) Ltd,98599989,150.00,T&S UK - Accommodation
BEIS,UKRI - AHRC,08/10/2019,T&S UK - Accommodation,Operations,Corporate Travel Management (North) Ltd,98599989,3.36,T&S UK - Accommodation
BEIS,UKRI - AHRC,08/10/2019,T&S UK - Accommodation,Public and Stakeholder Engagement,Corporate Travel Management (North) Ltd,98599989,2.00,T&S UK - Accommodation
BEIS,UKRI - AHRC,08/10/2019,T&S UK - Accommodation,Public and Stakeholder Engagement,Corporate Travel Management (North) Ltd,98599989,43.63,T&S UK - Accommodation
BEIS,UKRI - AHRC,08/10/2019,T&S UK - Accommodation,Public and Stakeholder Engagement,Corporate Travel Management (North) Ltd,98599989,0.80,T&S UK - Accommodation
BEIS,UKRI - AHRC,08/10/2019,T&S UK - Accommodation,Public and Stakeholder Engagement,Corporate Travel Management (North) Ltd,98599989,43.63,T&S UK - Accommodation
BEIS,UKRI - AHRC,08/10/2019,T&S UK - Accommodation,Public and Stakeholder Engagement,Corporate Travel Management (North) Ltd,98599989,0.56,T&S UK - Accommodation
BEIS,UKRI - AHRC,08/10/2019,T&S UK - Accommodation,SMT,Corporate Travel Management (North) Ltd,98599989,0.80,T&S UK - Accommodation
BEIS,UKRI - AHRC,08/10/2019,T&S UK - Accommodation,SMT,Corporate Travel Management (North) Ltd,98599989,196.00,T&S UK - Accommodation
BEIS,UKRI - AHRC,08/10/2019,T&S UK - Accommodation,SMT,Corporate Travel Management (North) Ltd,98599989,1.60,T&S UK - Accommodation
BEIS,UKRI - AHRC,08/10/2019,T&S UK - Accommodation,SMT,Corporate Travel Management (North) Ltd,98599989,309.40,T&S UK - Accommodation
BEIS,UKRI - AHRC,08/10/2019,T&S UK - Accommodation,SMT,Corporate Travel Management (North) Ltd,98599989,229.24,T&S UK - Accommodation
BEIS,UKRI - AHRC,08/10/2019,T&S UK - Accommodation,SMT,Corporate Travel Management (North) Ltd,98599989,0.80,T&S UK - Accommodation
BEIS,UKRI - AHRC,08/10/2019,T&S UK - Accommodation,SMT,Corporate Travel Management (North) Ltd,98599989,195.00,T&S UK - Accommodation
BEIS,UKRI - AHRC,08/10/2019,T&S UK - Accommodation,SMT,Corporate Travel Management (North) Ltd,98599989,0.80,T&S UK - Accommodation
BEIS,UKRI - AHRC,08/10/2019,T&S UK - Accommodation,SMT,Corporate Travel Management (North) Ltd,98599989,125.75,T&S UK - Accommodation
BEIS,UKRI - AHRC,08/10/2019,T&S UK - Accommodation,SMT,Corporate Travel Management (North) Ltd,98599989,0.80,T&S UK - Accommodation
BEIS,UKRI - AHRC,08/10/2019,T&S UK - Accommodation,SMT,Corporate Travel Management (North) Ltd,98599989,113.25,T&S UK - Accommodation
BEIS,UKRI - AHRC,08/10/2019,T&S UK - Accommodation,SMT,Corporate Travel Management (North) Ltd,98599989,0.96,T&S UK - Accommodation
BEIS,UKRI - AHRC,08/10/2019,T&S UK - Accommodation,Secretariat,Corporate Travel Management (North) Ltd,98599989,0.80,T&S UK - Accommodation
BEIS,UKRI - AHRC,08/10/2019,T&S UK - Accommodation,Secretariat,Corporate Travel Management (North) Ltd,98599989,145.01,T&S UK - Accommodation
BEIS,UKRI - AHRC,08/10/2019,T&S UK - Accommodation,Secretariat,Corporate Travel Management (North) Ltd,98599989,0.80,T&S UK - Accommodation
BEIS,UKRI - AHRC,08/10/2019,T&S UK - Accommodation,Secretariat,Corporate Travel Management (North) Ltd,98599989,145.01,T&S UK - Accommodation
BEIS,UKRI - AHRC,08/10/2019,T&S UK - Accommodation,Secretariat,Corporate Travel Management (North) Ltd,98599989,0.80,T&S UK - Accommodation
BEIS,UKRI - AHRC,08/10/2019,T&S UK - Accommodation,Secretariat,Corporate Travel Management (North) Ltd,98599989,145.01,T&S UK - Accommodation
BEIS,UKRI - AHRC,08/10/2019,T&S UK - Accommodation,Secretariat,Corporate Travel Management (North) Ltd,98599989,0.80,T&S UK - Accommodation
BEIS,UKRI - AHRC,08/10/2019,T&S UK - Accommodation,Secretariat,Corporate Travel Management (North) Ltd,98599989,145.01,T&S UK - Accommodation
BEIS,UKRI - AHRC,08/10/2019,T&S UK - Accommodation,Secretariat,Corporate Travel Management (North) Ltd,98599989,0.80,T&S UK - Accommodation
BEIS,UKRI - AHRC,08/10/2019,T&S UK - Accommodation,Secretariat,Corporate Travel Management (North) Ltd,98599989,145.01,T&S UK - Accommodation
BEIS,UKRI - AHRC,08/10/2019,T&S UK - Accommodation,Secretariat,Corporate Travel Management (North) Ltd,98599989,0.80,T&S UK - Accommodation
BEIS,UKRI - AHRC,08/10/2019,T&S UK - Accommodation,Secretariat,Corporate Travel Management (North) Ltd,98599989,145.01,T&S UK - Accommodation
BEIS,UKRI - AHRC,08/10/2019,T&S UK - Accommodation,Secretariat,Corporate Travel Management (North) Ltd,98599989,0.80,T&S UK - Accommodation
BEIS,UKRI - AHRC,08/10/2019,T&S UK - Accommodation,Secretariat,Corporate Travel Management (North) Ltd,98599989,145.01,T&S UK - Accommodation
BEIS,UKRI - AHRC,08/10/2019,T&S UK - Accommodation,Secretariat,Corporate Travel Management (North) Ltd,98599989,0.80,T&S UK - Accommodation
BEIS,UKRI - AHRC,08/10/2019,T&S UK - Accommodation,Secretariat,Corporate Travel Management (North) Ltd,98599989,145.01,T&S UK - Accommodation
BEIS,UKRI - AHRC,08/10/2019,T&S UK - Accommodation,Secretariat,Corporate Travel Management (North) Ltd,98599989,0.80,T&S UK - Accommodation
BEIS,UKRI - AHRC,08/10/2019,T&S UK - Accommodation,Secretariat,Corporate Travel Management (North) Ltd,98599989,1.44,T&S UK - Accommodation
BEIS,UKRI - AHRC,08/10/2019,T&S UK - Flights,Digital Arts and Humanities and Creative Industries,Corporate Travel Management (North) Ltd,98599989,2.50,T&S UK - Flights
BEIS,UKRI - AHRC,08/10/2019,T&S UK - Flights,Digital Arts and Humanities and Creative Industries,Corporate Travel Management (North) Ltd,98599989,141.06,T&S UK - Flights
BEIS,UKRI - AHRC,08/10/2019,T&S UK - Flights,Finance,Corporate Travel Management (North) Ltd,98599989,2.50,T&S UK - Flights
BEIS,UKRI - AHRC,08/10/2019,T&S UK - Flights,Finance,Corporate Travel Management (North) Ltd,98599989,102.86,T&S UK - Flights
BEIS,UKRI - AHRC,08/10/2019,T&S UK - Flights,Fund for International Collaboration,Corporate Travel Management (North) Ltd,98599989,0.83,T&S UK - Flights
BEIS,UKRI - AHRC,08/10/2019,T&S UK - Flights,Fund for International Collaboration,Corporate Travel Management (North) Ltd,98599989,399.34,T&S UK - Flights
BEIS,UKRI - AHRC,08/10/2019,T&S UK - Flights,Fund for International Collaboration,Corporate Travel Management (North) Ltd,98599989,0.83,T&S UK - Flights
BEIS,UKRI - AHRC,08/10/2019,T&S UK - Flights,Fund for International Collaboration,Corporate Travel Management (North) Ltd,98599989,399.34,T&S UK - Flights
BEIS,UKRI - AHRC,08/10/2019,T&S UK - Flights,International Partnership and Engagement,Corporate Travel Management (North) Ltd,98599989,2.50,T&S UK - Flights
BEIS,UKRI - AHRC,08/10/2019,T&S UK - Flights,International Partnership and Engagement,Corporate Travel Management (North) Ltd,98599989,440.46,T&S UK - Flights
BEIS,UKRI - AHRC,08/10/2019,T&S UK - Flights,Public and Stakeholder Engagement,Corporate Travel Management (North) Ltd,98599989,2.50,T&S UK - Flights
BEIS,UKRI - AHRC,08/10/2019,T&S UK - Flights,Public and Stakeholder Engagement,Corporate Travel Management (North) Ltd,98599989,115.99,T&S UK - Flights
BEIS,UKRI - AHRC,08/10/2019,T&S UK - Public Transport,Digital Arts and Humanities and Creative Industries,Corporate Travel Management (North) Ltd,98599989,0.50,T&S UK - Public Transport
BEIS,UKRI - AHRC,08/10/2019,T&S UK - Public Transport,Digital Arts and Humanities and Creative Industries,Corporate Travel Management (North) Ltd,98599989,9.80,T&S UK - Public Transport
BEIS,UKRI - AHRC,08/10/2019,T&S UK - Public Transport,Digital Arts and Humanities and Creative Industries,Corporate Travel Management (North) Ltd,98599989,138.00,T&S UK - Public Transport
BEIS,UKRI - AHRC,08/10/2019,T&S UK - Public Transport,Digital Arts and Humanities and Creative Industries,Corporate Travel Management (North) Ltd,98599989,0.25,T&S UK - Public Transport
BEIS,UKRI - AHRC,08/10/2019,T&S UK - Public Transport,Digital Arts and Humanities and Creative Industries,Corporate Travel Management (North) Ltd,98599989,36.00,T&S UK - Public Transport
BEIS,UKRI - AHRC,08/10/2019,T&S UK - Public Transport,Digital Arts and Humanities and Creative Industries,Corporate Travel Management (North) Ltd,98599989,0.25,T&S UK - Public Transport
BEIS,UKRI - AHRC,08/10/2019,T&S UK - Public Transport,Digital Arts and Humanities and Creative Industries,Corporate Travel Management (North) Ltd,98599989,178.10,T&S UK - Public Transport
BEIS,UKRI - AHRC,08/10/2019,T&S UK - Public Transport,Digital Arts and Humanities and Creative Industries,Corporate Travel Management (North) Ltd,98599989,0.25,T&S UK - Public Transport
BEIS,UKRI - AHRC,08/10/2019,T&S UK - Public Transport,Digital Arts and Humanities and Creative Industries,Corporate Travel Management (North) Ltd,98599989,120.00,T&S UK - Public Transport
BEIS,UKRI - AHRC,08/10/2019,T&S UK - Public Transport,Digital Arts and Humanities and Creative Industries,Corporate Travel Management (North) Ltd,98599989,0.25,T&S UK - Public Transport
BEIS,UKRI - AHRC,08/10/2019,T&S UK - Public Transport,Digital Arts and Humanities and Creative Industries,Corporate Travel Management (North) Ltd,98599989,69.90,T&S UK - Public Transport
BEIS,UKRI - AHRC,08/10/2019,T&S UK - Public Transport,Digital Arts and Humanities and Creative Industries,Corporate Travel Management (North) Ltd,98599989,0.25,T&S UK - Public Transport
BEIS,UKRI - AHRC,08/10/2019,T&S UK - Public Transport,Digital Arts and Humanities and Creative Industries,Corporate Travel Management (North) Ltd,98599989,23.30,T&S UK - Public Transport
BEIS,UKRI - AHRC,08/10/2019,T&S UK - Public Transport,Digital Arts and Humanities and Creative Industries,Corporate Travel Management (North) Ltd,98599989,0.25,T&S UK - Public Transport
BEIS,UKRI - AHRC,08/10/2019,T&S UK - Public Transport,Digital Arts and Humanities and Creative Industries,Corporate Travel Management (North) Ltd,98599989,36.00,T&S UK - Public Transport
BEIS,UKRI - AHRC,08/10/2019,T&S UK - Public Transport,Digital Arts and Humanities and Creative Industries,Corporate Travel Management (North) Ltd,98599989,0.50,T&S UK - Public Transport
BEIS,UKRI - AHRC,08/10/2019,T&S UK - Public Transport,Digital Arts and Humanities and Creative Industries,Corporate Travel Management (North) Ltd,98599989,9.80,T&S UK - Public Transport
BEIS,UKRI - AHRC,08/10/2019,T&S UK - Public Transport,Digital Arts and Humanities and Creative Industries,Corporate Travel Management (North) Ltd,98599989,49.80,T&S UK - Public Transport
BEIS,UKRI - AHRC,08/10/2019,T&S UK - Public Transport,Digital Arts and Humanities and Creative Industries,Corporate Travel Management (North) Ltd,98599989,0.25,T&S UK - Public Transport
BEIS,UKRI - AHRC,08/10/2019,T&S UK - Public Transport,Digital Arts and Humanities and Creative Industries,Corporate Travel Management (North) Ltd,98599989,39.40,T&S UK - Public Transport
BEIS,UKRI - AHRC,08/10/2019,T&S UK - Public Transport,Digital Arts and Humanities and Creative Industries,Corporate Travel Management (North) Ltd,98599989,0.25,T&S UK - Public Transport
BEIS,UKRI - AHRC,08/10/2019,T&S UK - Public Transport,Digital Arts and Humanities and Creative Industries,Corporate Travel Management (North) Ltd,98599989,103.80,T&S UK - Public Transport
BEIS,UKRI - AHRC,08/10/2019,T&S UK - Public Transport,Digital Arts and Humanities and Creative Industries,Corporate Travel Management (North) Ltd,98599989,0.50,T&S UK - Public Transport
BEIS,UKRI - AHRC,08/10/2019,T&S UK - Public Transport,Digital Arts and Humanities and Creative Industries,Corporate Travel Management (North) Ltd,98599989,9.80,T&S UK - Public Transport
BEIS,UKRI - AHRC,08/10/2019,T&S UK - Public Transport,Digital Arts and Humanities and Creative Industries,Corporate Travel Management (North) Ltd,98599989,98.40,T&S UK - Public Transport
BEIS,UKRI - AHRC,08/10/2019,T&S UK - Public Transport,Digital Arts and Humanities and Creative Industries,Corporate Travel Management (North) Ltd,98599989,0.25,T&S UK - Public Transport
BEIS,UKRI - AHRC,08/10/2019,T&S UK - Public Transport,Digital Arts and Humanities and Creative Industries,Corporate Travel Management (North) Ltd,98599989,138.00,T&S UK - Public Transport
BEIS,UKRI - AHRC,08/10/2019,T&S UK - Public Transport,Digital Arts and Humanities and Creative Industries,Corporate Travel Management (North) Ltd,98599989,0.25,T&S UK - Public Transport
BEIS,UKRI - AHRC,08/10/2019,T&S UK - Public Transport,Digital Arts and Humanities and Creative Industries,Corporate Travel Management (North) Ltd,98599989,138.00,T&S UK - Public Transport
BEIS,UKRI - AHRC,08/10/2019,T&S UK - Public Transport,Digital Arts and Humanities and Creative Industries,Corporate Travel Management (North) Ltd,98599989,0.25,T&S UK - Public Transport
BEIS,UKRI - AHRC,08/10/2019,T&S UK - Public Transport,Digital Arts and Humanities and Creative Industries,Corporate Travel Management (North) Ltd,98599989,160.00,T&S UK - Public Transport
BEIS,UKRI - AHRC,08/10/2019,T&S UK - Public Transport,Executive Office,Corporate Travel Management (North) Ltd,98599989,0.25,T&S UK - Public Transport
BEIS,UKRI - AHRC,08/10/2019,T&S UK - Public Transport,Executive Office,Corporate Travel Management (North) Ltd,98599989,138.00,T&S UK - Public Transport
BEIS,UKRI - AHRC,08/10/2019,T&S UK - Public Transport,Finance,Corporate Travel Management (North) Ltd,98599989,0.25,T&S UK - Public Transport
BEIS,UKRI - AHRC,08/10/2019,T&S UK - Public Transport,Finance,Corporate Travel Management (North) Ltd,98599989,23.70,T&S UK - Public Transport
BEIS,UKRI - AHRC,08/10/2019,T&S UK - Public Transport,Finance,Corporate Travel Management (North) Ltd,98599989,0.25,T&S UK - Public Transport
BEIS,UKRI - AHRC,08/10/2019,T&S UK - Public Transport,Finance,Corporate Travel Management (North) Ltd,98599989,23.70,T&S UK - Public Transport
BEIS,UKRI - AHRC,08/10/2019,T&S UK - Public Transport,Finance,Corporate Travel Management (North) Ltd,98599989,0.25,T&S UK - Public Transport
BEIS,UKRI - AHRC,08/10/2019,T&S UK - Public Transport,Finance,Corporate Travel Management (North) Ltd,98599989,19.60,T&S UK - Public Transport
BEIS,UKRI - AHRC,08/10/2019,T&S UK - Public Transport,Fund for International Collaboration,Corporate Travel Management (North) Ltd,98599989,0.25,T&S UK - Public Transport
BEIS,UKRI - AHRC,08/10/2019,T&S UK - Public Transport,Fund for International Collaboration,Corporate Travel Management (North) Ltd,98599989,194.40,T&S UK - Public Transport
BEIS,UKRI - AHRC,08/10/2019,T&S UK - Public Transport,Fund for International Collaboration,Corporate Travel Management (North) Ltd,98599989,0.25,T&S UK - Public Transport
BEIS,UKRI - AHRC,08/10/2019,T&S UK - Public Transport,Fund for International Collaboration,Corporate Travel Management (North) Ltd,98599989,107.50,T&S UK - Public Transport
BEIS,UKRI - AHRC,08/10/2019,T&S UK - Public Transport,GCRF - Programme Delivery,Corporate Travel Management (North) Ltd,98599989,0.25,T&S UK - Public Transport
BEIS,UKRI - AHRC,08/10/2019,T&S UK - Public Transport,GCRF - Programme Delivery,Corporate Travel Management (North) Ltd,98599989,99.60,T&S UK - Public Transport
BEIS,UKRI - AHRC,08/10/2019,T&S UK - Public Transport,GCRF - Programme Delivery,Corporate Travel Management (North) Ltd,98599989,0.25,T&S UK - Public Transport
BEIS,UKRI - AHRC,08/10/2019,T&S UK - Public Transport,GCRF - Programme Delivery,Corporate Travel Management (North) Ltd,98599989,144.00,T&S UK - Public Transport
BEIS,UKRI - AHRC,08/10/2019,T&S UK - Public Transport,GCRF - Programme Delivery,Corporate Travel Management (North) Ltd,98599989,0.25,T&S UK - Public Transport
BEIS,UKRI - AHRC,08/10/2019,T&S UK - Public Transport,GCRF - Programme Delivery,Corporate Travel Management (North) Ltd,98599989,218.00,T&S UK - Public Transport
BEIS,UKRI - AHRC,08/10/2019,T&S UK - Public Transport,GCRF - Programme Delivery,Corporate Travel Management (North) Ltd,98599989,0.25,T&S UK - Public Transport
BEIS,UKRI - AHRC,08/10/2019,T&S UK - Public Transport,GCRF - Programme Delivery,Corporate Travel Management (North) Ltd,98599989,144.70,T&S UK - Public Transport
BEIS,UKRI - AHRC,08/10/2019,T&S UK - Public Transport,GCRF - Programme Delivery,Corporate Travel Management (North) Ltd,98599989,0.50,T&S UK - Public Transport
BEIS,UKRI - AHRC,08/10/2019,T&S UK - Public Transport,GCRF - Programme Delivery,Corporate Travel Management (North) Ltd,98599989,59.50,T&S UK - Public Transport
BEIS,UKRI - AHRC,08/10/2019,T&S UK - Public Transport,GCRF - Programme Delivery,Corporate Travel Management (North) Ltd,98599989,82.50,T&S UK - Public Transport
BEIS,UKRI - AHRC,08/10/2019,T&S UK - Public Transport,GCRF - Programme Delivery,Corporate Travel Management (North) Ltd,98599989,0.25,T&S UK - Public Transport
BEIS,UKRI - AHRC,08/10/2019,T&S UK - Public Transport,GCRF - Programme Delivery,Corporate Travel Management (North) Ltd,98599989,144.70,T&S UK - Public Transport
BEIS,UKRI - AHRC,08/10/2019,T&S UK - Public Transport,HR,Corporate Travel Management (North) Ltd,98599989,0.25,T&S UK - Public Transport
BEIS,UKRI - AHRC,08/10/2019,T&S UK - Public Transport,HR,Corporate Travel Management (North) Ltd,98599989,96.10,T&S UK - Public Transport
BEIS,UKRI - AHRC,08/10/2019,T&S UK - Public Transport,HR,Corporate Travel Management (North) Ltd,98599989,0.25,T&S UK - Public Transport
BEIS,UKRI - AHRC,08/10/2019,T&S UK - Public Transport,HR,Corporate Travel Management (North) Ltd,98599989,96.10,T&S UK - Public Transport
BEIS,UKRI - AHRC,08/10/2019,T&S UK - Public Transport,"History, Heritage, Languages and Literature",Corporate Travel Management (North) Ltd,98599989,0.75,T&S UK - Public Transport
BEIS,UKRI - AHRC,08/10/2019,T&S UK - Public Transport,"History, Heritage, Languages and Literature",Corporate Travel Management (North) Ltd,98599989,373.10,T&S UK - Public Transport
BEIS,UKRI - AHRC,08/10/2019,T&S UK - Public Transport,"History, Heritage, Languages and Literature",Corporate Travel Management (North) Ltd,98599989,9.80,T&S UK - Public Transport
BEIS,UKRI - AHRC,08/10/2019,T&S UK - Public Transport,"History, Heritage, Languages and Literature",Corporate Travel Management (North) Ltd,98599989,0.25,T&S UK - Public Transport
BEIS,UKRI - AHRC,08/10/2019,T&S UK - Public Transport,"History, Heritage, Languages and Literature",Corporate Travel Management (North) Ltd,98599989,89.95,T&S UK - Public Transport
BEIS,UKRI - AHRC,08/10/2019,T&S UK - Public Transport,"History, Heritage, Languages and Literature",Corporate Travel Management (North) Ltd,98599989,0.25,T&S UK - Public Transport
BEIS,UKRI - AHRC,08/10/2019,T&S UK - Public Transport,"History, Heritage, Languages and Literature",Corporate Travel Management (North) Ltd,98599989,101.50,T&S UK - Public Transport
BEIS,UKRI - AHRC,08/10/2019,T&S UK - Public Transport,"History, Heritage, Languages and Literature",Corporate Travel Management (North) Ltd,98599989,0.25,T&S UK - Public Transport
BEIS,UKRI - AHRC,08/10/2019,T&S UK - Public Transport,"History, Heritage, Languages and Literature",Corporate Travel Management (North) Ltd,98599989,150.40,T&S UK - Public Transport
BEIS,UKRI - AHRC,08/10/2019,T&S UK - Public Transport,"History, Heritage, Languages and Literature",Corporate Travel Management (North) Ltd,98599989,0.25,T&S UK - Public Transport
BEIS,UKRI - AHRC,08/10/2019,T&S UK - Public Transport,"History, Heritage, Languages and Literature",Corporate Travel Management (North) Ltd,98599989,88.55,T&S UK - Public Transport
BEIS,UKRI - AHRC,08/10/2019,T&S UK - Public Transport,"History, Heritage, Languages and Literature",Corporate Travel Management (North) Ltd,98599989,0.75,T&S UK - Public Transport
BEIS,UKRI - AHRC,08/10/2019,T&S UK - Public Transport,"History, Heritage, Languages and Literature",Corporate Travel Management (North) Ltd,98599989,57.65,T&S UK - Public Transport
BEIS,UKRI - AHRC,08/10/2019,T&S UK - Public Transport,"History, Heritage, Languages and Literature",Corporate Travel Management (North) Ltd,98599989,16.40,T&S UK - Public Transport
BEIS,UKRI - AHRC,08/10/2019,T&S UK - Public Transport,"History, Heritage, Languages and Literature",Corporate Travel Management (North) Ltd,98599989,48.85,T&S UK - Public Transport
BEIS,UKRI - AHRC,08/10/2019,T&S UK - Public Transport,"History, Heritage, Languages and Literature",Corporate Travel Management (North) Ltd,98599989,0.25,T&S UK - Public Transport
BEIS,UKRI - AHRC,08/10/2019,T&S UK - Public Transport,"History, Heritage, Languages and Literature",Corporate Travel Management (North) Ltd,98599989,144.00,T&S UK - Public Transport
BEIS,UKRI - AHRC,08/10/2019,T&S UK - Public Transport,"History, Heritage, Languages and Literature",Corporate Travel Management (North) Ltd,98599989,0.25,T&S UK - Public Transport
BEIS,UKRI - AHRC,08/10/2019,T&S UK - Public Transport,"History, Heritage, Languages and Literature",Corporate Travel Management (North) Ltd,98599989,59.50,T&S UK - Public Transport
BEIS,UKRI - AHRC,08/10/2019,T&S UK - Public Transport,"History, Heritage, Languages and Literature",Corporate Travel Management (North) Ltd,98599989,0.25,T&S UK - Public Transport
BEIS,UKRI - AHRC,08/10/2019,T&S UK - Public Transport,"History, Heritage, Languages and Literature",Corporate Travel Management (North) Ltd,98599989,153.35,T&S UK - Public Transport
BEIS,UKRI - AHRC,08/10/2019,T&S UK - Public Transport,"History, Heritage, Languages and Literature",Corporate Travel Management (North) Ltd,98599989,0.25,T&S UK - Public Transport
BEIS,UKRI - AHRC,08/10/2019,T&S UK - Public Transport,"History, Heritage, Languages and Literature",Corporate Travel Management (North) Ltd,98599989,24.60,T&S UK - Public Transport
BEIS,UKRI - AHRC,08/10/2019,T&S UK - Public Transport,"History, Heritage, Languages and Literature",Corporate Travel Management (North) Ltd,98599989,0.25,T&S UK - Public Transport
BEIS,UKRI - AHRC,08/10/2019,T&S UK - Public Transport,"History, Heritage, Languages and Literature",Corporate Travel Management (North) Ltd,98599989,88.30,T&S UK - Public Transport
BEIS,UKRI - AHRC,08/10/2019,T&S UK - Public Transport,"History, Heritage, Languages and Literature",Corporate Travel Management (North) Ltd,98599989,-160.40,T&S UK - Public Transport
BEIS,UKRI - AHRC,08/10/2019,T&S UK - Public Transport,Industrial Strategy Challenge Fund (ISCF) - Creative Clusters,Corporate Travel Management (North) Ltd,98599989,0.25,T&S UK - Public Transport
BEIS,UKRI - AHRC,08/10/2019,T&S UK - Public Transport,Industrial Strategy Challenge Fund (ISCF) - Creative Clusters,Corporate Travel Management (North) Ltd,98599989,97.80,T&S UK - Public Transport
BEIS,UKRI - AHRC,08/10/2019,T&S UK - Public Transport,Industrial Strategy Challenge Fund (ISCF) - Creative Clusters,Corporate Travel Management (North) Ltd,98599989,0.25,T&S UK - Public Transport
BEIS,UKRI - AHRC,08/10/2019,T&S UK - Public Transport,Industrial Strategy Challenge Fund (ISCF) - Creative Clusters,Corporate Travel Management (North) Ltd,98599989,97.80,T&S UK - Public Transport
BEIS,UKRI - AHRC,08/10/2019,T&S UK - Public Transport,Industrial Strategy Challenge Fund (ISCF) - Creative Clusters,Corporate Travel Management (North) Ltd,98599989,0.25,T&S UK - Public Transport
BEIS,UKRI - AHRC,08/10/2019,T&S UK - Public Transport,Industrial Strategy Challenge Fund (ISCF) - Creative Clusters,Corporate Travel Management (North) Ltd,98599989,23.70,T&S UK - Public Transport
BEIS,UKRI - AHRC,08/10/2019,T&S UK - Public Transport,Industrial Strategy Challenge Fund (ISCF) - Creative Clusters,Corporate Travel Management (North) Ltd,98599989,0.25,T&S UK - Public Transport
BEIS,UKRI - AHRC,08/10/2019,T&S UK - Public Transport,Industrial Strategy Challenge Fund (ISCF) - Creative Clusters,Corporate Travel Management (North) Ltd,98599989,17.90,T&S UK - Public Transport
BEIS,UKRI - AHRC,08/10/2019,T&S UK - Public Transport,Industrial Strategy Challenge Fund (ISCF) - Creative Clusters,Corporate Travel Management (North) Ltd,98599989,0.25,T&S UK - Public Transport
BEIS,UKRI - AHRC,08/10/2019,T&S UK - Public Transport,Industrial Strategy Challenge Fund (ISCF) - Creative Clusters,Corporate Travel Management (North) Ltd,98599989,23.70,T&S UK - Public Transport
BEIS,UKRI - AHRC,08/10/2019,T&S UK - Public Transport,Industrial Strategy Challenge Fund (ISCF) - Creative Clusters,Corporate Travel Management (North) Ltd,98599989,0.25,T&S UK - Public Transport
BEIS,UKRI - AHRC,08/10/2019,T&S UK - Public Transport,Industrial Strategy Challenge Fund (ISCF) - Creative Clusters,Corporate Travel Management (North) Ltd,98599989,12.30,T&S UK - Public Transport
BEIS,UKRI - AHRC,08/10/2019,T&S UK - Public Transport,Industrial Strategy Challenge Fund (ISCF) - Creative Clusters,Corporate Travel Management (North) Ltd,98599989,0.25,T&S UK - Public Transport
BEIS,UKRI - AHRC,08/10/2019,T&S UK - Public Transport,Industrial Strategy Challenge Fund (ISCF) - Creative Clusters,Corporate Travel Management (North) Ltd,98599989,23.70,T&S UK - Public Transport
BEIS,UKRI - AHRC,08/10/2019,T&S UK - Public Transport,Industrial Strategy Challenge Fund (ISCF) - Creative Clusters,Corporate Travel Management (North) Ltd,98599989,0.25,T&S UK - Public Transport
BEIS,UKRI - AHRC,08/10/2019,T&S UK - Public Transport,Industrial Strategy Challenge Fund (ISCF) - Creative Clusters,Corporate Travel Management (North) Ltd,98599989,22.80,T&S UK - Public Transport
BEIS,UKRI - AHRC,08/10/2019,T&S UK - Public Transport,International,Corporate Travel Management (North) Ltd,98599989,0.50,T&S UK - Public Transport
BEIS,UKRI - AHRC,08/10/2019,T&S UK - Public Transport,International,Corporate Travel Management (North) Ltd,98599989,9.80,T&S UK - Public Transport
BEIS,UKRI - AHRC,08/10/2019,T&S UK - Public Transport,International,Corporate Travel Management (North) Ltd,98599989,118.00,T&S UK - Public Transport
BEIS,UKRI - AHRC,08/10/2019,T&S UK - Public Transport,International Development and Area Studies,Corporate Travel Management (North) Ltd,98599989,0.25,T&S UK - Public Transport
BEIS,UKRI - AHRC,08/10/2019,T&S UK - Public Transport,International Development and Area Studies,Corporate Travel Management (North) Ltd,98599989,177.00,T&S UK - Public Transport
BEIS,UKRI - AHRC,08/10/2019,T&S UK - Public Transport,International Development and Area Studies,Corporate Travel Management (North) Ltd,98599989,0.25,T&S UK - Public Transport
BEIS,UKRI - AHRC,08/10/2019,T&S UK - Public Transport,International Development and Area Studies,Corporate Travel Management (North) Ltd,98599989,66.10,T&S UK - Public Transport
BEIS,UKRI - AHRC,08/10/2019,T&S UK - Public Transport,International Development and Area Studies,Corporate Travel Management (North) Ltd,98599989,0.25,T&S UK - Public Transport
BEIS,UKRI - AHRC,08/10/2019,T&S UK - Public Transport,International Development and Area Studies,Corporate Travel Management (North) Ltd,98599989,218.00,T&S UK - Public Transport
BEIS,UKRI - AHRC,08/10/2019,T&S UK - Public Transport,International Development and Area Studies,Corporate Travel Management (North) Ltd,98599989,0.50,T&S UK - Public Transport
BEIS,UKRI - AHRC,08/10/2019,T&S UK - Public Transport,International Development and Area Studies,Corporate Travel Management (North) Ltd,98599989,9.80,T&S UK - Public Transport
BEIS,UKRI - AHRC,08/10/2019,T&S UK - Public Transport,International Development and Area Studies,Corporate Travel Management (North) Ltd,98599989,133.50,T&S UK - Public Transport
BEIS,UKRI - AHRC,08/10/2019,T&S UK - Public Transport,International Development and Area Studies,Corporate Travel Management (North) Ltd,98599989,0.50,T&S UK - Public Transport
BEIS,UKRI - AHRC,08/10/2019,T&S UK - Public Transport,International Development and Area Studies,Corporate Travel Management (North) Ltd,98599989,9.80,T&S UK - Public Transport
BEIS,UKRI - AHRC,08/10/2019,T&S UK - Public Transport,International Development and Area Studies,Corporate Travel Management (North) Ltd,98599989,138.00,T&S UK - Public Transport
BEIS,UKRI - AHRC,08/10/2019,T&S UK - Public Transport,International Partnership and Engagement,Corporate Travel Management (North) Ltd,98599989,0.25,T&S UK - Public Transport
BEIS,UKRI - AHRC,08/10/2019,T&S UK - Public Transport,International Partnership and Engagement,Corporate Travel Management (North) Ltd,98599989,124.50,T&S UK - Public Transport
BEIS,UKRI - AHRC,08/10/2019,T&S UK - Public Transport,International Partnership and Engagement,Corporate Travel Management (North) Ltd,98599989,0.25,T&S UK - Public Transport
BEIS,UKRI - AHRC,08/10/2019,T&S UK - Public Transport,International Partnership and Engagement,Corporate Travel Management (North) Ltd,98599989,132.10,T&S UK - Public Transport
BEIS,UKRI - AHRC,08/10/2019,T&S UK - Public Transport,International Partnership and Engagement,Corporate Travel Management (North) Ltd,98599989,0.25,T&S UK - Public Transport
BEIS,UKRI - AHRC,08/10/2019,T&S UK - Public Transport,International Partnership and Engagement,Corporate Travel Management (North) Ltd,98599989,78.80,T&S UK - Public Transport
BEIS,UKRI - AHRC,08/10/2019,T&S UK - Public Transport,International Partnership and Engagement,Corporate Travel Management (North) Ltd,98599989,0.25,T&S UK - Public Transport
BEIS,UKRI - AHRC,08/10/2019,T&S UK - Public Transport,International Partnership and Engagement,Corporate Travel Management (North) Ltd,98599989,22.20,T&S UK - Public Transport
BEIS,UKRI - AHRC,08/10/2019,T&S UK - Public Transport,International Partnership and Engagement,Corporate Travel Management (North) Ltd,98599989,0.25,T&S UK - Public Transport
BEIS,UKRI - AHRC,08/10/2019,T&S UK - Public Transport,International Partnership and Engagement,Corporate Travel Management (North) Ltd,98599989,55.40,T&S UK - Public Transport
BEIS,UKRI - AHRC,08/10/2019,T&S UK - Public Transport,International Partnership and Engagement,Corporate Travel Management (North) Ltd,98599989,0.25,T&S UK - Public Transport
BEIS,UKRI - AHRC,08/10/2019,T&S UK - Public Transport,International Partnership and Engagement,Corporate Travel Management (North) Ltd,98599989,94.90,T&S UK - Public Transport
BEIS,UKRI - AHRC,08/10/2019,T&S UK - Public Transport,JPI Cultural Heritage Project,Corporate Travel Management (North) Ltd,98599989,0.25,T&S UK - Public Transport
BEIS,UKRI - AHRC,08/10/2019,T&S UK - Public Transport,JPI Cultural Heritage Project,Corporate Travel Management (North) Ltd,98599989,26.50,T&S UK - Public Transport
BEIS,UKRI - AHRC,08/10/2019,T&S UK - Public Transport,JPI Cultural Heritage Project,Corporate Travel Management (North) Ltd,98599989,0.25,T&S UK - Public Transport
BEIS,UKRI - AHRC,08/10/2019,T&S UK - Public Transport,JPI Cultural Heritage Project,Corporate Travel Management (North) Ltd,98599989,95.05,T&S UK - Public Transport
BEIS,UKRI - AHRC,08/10/2019,T&S UK - Public Transport,JPI Cultural Heritage Project,Corporate Travel Management (North) Ltd,98599989,0.25,T&S UK - Public Transport
BEIS,UKRI - AHRC,08/10/2019,T&S UK - Public Transport,JPI Cultural Heritage Project,Corporate Travel Management (North) Ltd,98599989,39.40,T&S UK - Public Transport
BEIS,UKRI - AHRC,08/10/2019,T&S UK - Public Transport,Newton Programme Delivery,Corporate Travel Management (North) Ltd,98599989,0.25,T&S UK - Public Transport
BEIS,UKRI - AHRC,08/10/2019,T&S UK - Public Transport,Newton Programme Delivery,Corporate Travel Management (North) Ltd,98599989,53.80,T&S UK - Public Transport
BEIS,UKRI - AHRC,08/10/2019,T&S UK - Public Transport,Operations,Corporate Travel Management (North) Ltd,98599989,0.25,T&S UK - Public Transport
BEIS,UKRI - AHRC,08/10/2019,T&S UK - Public Transport,Operations,Corporate Travel Management (North) Ltd,98599989,110.90,T&S UK - Public Transport
BEIS,UKRI - AHRC,08/10/2019,T&S UK - Public Transport,Operations,Corporate Travel Management (North) Ltd,98599989,0.25,T&S UK - Public Transport
BEIS,UKRI - AHRC,08/10/2019,T&S UK - Public Transport,Operations,Corporate Travel Management (North) Ltd,98599989,110.90,T&S UK - Public Transport
BEIS,UKRI - AHRC,08/10/2019,T&S UK - Public Transport,Operations,Corporate Travel Management (North) Ltd,98599989,0.25,T&S UK - Public Transport
BEIS,UKRI - AHRC,08/10/2019,T&S UK - Public Transport,Operations,Corporate Travel Management (North) Ltd,98599989,110.90,T&S UK - Public Transport
BEIS,UKRI - AHRC,08/10/2019,T&S UK - Public Transport,Operations,Corporate Travel Management (North) Ltd,98599989,0.25,T&S UK - Public Transport
BEIS,UKRI - AHRC,08/10/2019,T&S UK - Public Transport,Operations,Corporate Travel Management (North) Ltd,98599989,110.90,T&S UK - Public Transport
BEIS,UKRI - AHRC,08/10/2019,T&S UK - Public Transport,Operations,Corporate Travel Management (North) Ltd,98599989,0.25,T&S UK - Public Transport
BEIS,UKRI - AHRC,08/10/2019,T&S UK - Public Transport,Operations,Corporate Travel Management (North) Ltd,98599989,144.00,T&S UK - Public Transport
BEIS,UKRI - AHRC,08/10/2019,T&S UK - Public Transport,Operations,Corporate Travel Management (North) Ltd,98599989,0.25,T&S UK - Public Transport
BEIS,UKRI - AHRC,08/10/2019,T&S UK - Public Transport,Operations,Corporate Travel Management (North) Ltd,98599989,82.30,T&S UK - Public Transport
BEIS,UKRI - AHRC,08/10/2019,T&S UK - Public Transport,Operations,Corporate Travel Management (North) Ltd,98599989,0.25,T&S UK - Public Transport
BEIS,UKRI - AHRC,08/10/2019,T&S UK - Public Transport,Operations,Corporate Travel Management (North) Ltd,98599989,148.50,T&S UK - Public Transport
BEIS,UKRI - AHRC,08/10/2019,T&S UK - Public Transport,Operations,Corporate Travel Management (North) Ltd,98599989,0.25,T&S UK - Public Transport
BEIS,UKRI - AHRC,08/10/2019,T&S UK - Public Transport,Operations,Corporate Travel Management (North) Ltd,98599989,47.00,T&S UK - Public Transport
BEIS,UKRI - AHRC,08/10/2019,T&S UK - Public Transport,PSU JRS,Corporate Travel Management (North) Ltd,98599989,0.12,T&S UK - Public Transport
BEIS,UKRI - AHRC,08/10/2019,T&S UK - Public Transport,PSU JRS,Corporate Travel Management (North) Ltd,98599989,36.00,T&S UK - Public Transport
BEIS,UKRI - AHRC,08/10/2019,T&S UK - Public Transport,PSU JRS,Corporate Travel Management (North) Ltd,98599989,0.13,T&S UK - Public Transport
BEIS,UKRI - AHRC,08/10/2019,T&S UK - Public Transport,PSU JRS,Corporate Travel Management (North) Ltd,98599989,36.00,T&S UK - Public Transport
BEIS,UKRI - AHRC,08/10/2019,T&S UK - Public Transport,PSU JRS,Corporate Travel Management (North) Ltd,98599989,0.12,T&S UK - Public Transport
BEIS,UKRI - AHRC,08/10/2019,T&S UK - Public Transport,PSU JRS,Corporate Travel Management (North) Ltd,98599989,36.00,T&S UK - Public Transport
BEIS,UKRI - AHRC,08/10/2019,T&S UK - Public Transport,PSU JRS,Corporate Travel Management (North) Ltd,98599989,0.13,T&S UK - Public Transport
BEIS,UKRI - AHRC,08/10/2019,T&S UK - Public Transport,PSU JRS,Corporate Travel Management (North) Ltd,98599989,36.00,T&S UK - Public Transport
BEIS,UKRI - AHRC,08/10/2019,T&S UK - Public Transport,PSU JRS,Corporate Travel Management (North) Ltd,98599989,0.12,T&S UK - Public Transport
BEIS,UKRI - AHRC,08/10/2019,T&S UK - Public Transport,PSU JRS,Corporate Travel Management (North) Ltd,98599989,36.00,T&S UK - Public Transport
BEIS,UKRI - AHRC,08/10/2019,T&S UK - Public Transport,PSU JRS,Corporate Travel Management (North) Ltd,98599989,0.13,T&S UK - Public Transport
BEIS,UKRI - AHRC,08/10/2019,T&S UK - Public Transport,PSU JRS,Corporate Travel Management (North) Ltd,98599989,36.00,T&S UK - Public Transport
BEIS,UKRI - AHRC,08/10/2019,T&S UK - Public Transport,PSU JRS,Corporate Travel Management (North) Ltd,98599989,0.12,T&S UK - Public Transport
BEIS,UKRI - AHRC,08/10/2019,T&S UK - Public Transport,PSU JRS,Corporate Travel Management (North) Ltd,98599989,36.00,T&S UK - Public Transport
BEIS,UKRI - AHRC,08/10/2019,T&S UK - Public Transport,PSU JRS,Corporate Travel Management (North) Ltd,98599989,0.13,T&S UK - Public Transport
BEIS,UKRI - AHRC,08/10/2019,T&S UK - Public Transport,PSU JRS,Corporate Travel Management (North) Ltd,98599989,36.00,T&S UK - Public Transport
BEIS,UKRI - AHRC,08/10/2019,T&S UK - Public Transport,PSU JRS,Corporate Travel Management (North) Ltd,98599989,0.12,T&S UK - Public Transport
BEIS,UKRI - AHRC,08/10/2019,T&S UK - Public Transport,PSU JRS,Corporate Travel Management (North) Ltd,98599989,36.00,T&S UK - Public Transport
BEIS,UKRI - AHRC,08/10/2019,T&S UK - Public Transport,PSU JRS,Corporate Travel Management (North) Ltd,98599989,0.13,T&S UK - Public Transport
BEIS,UKRI - AHRC,08/10/2019,T&S UK - Public Transport,PSU JRS,Corporate Travel Management (North) Ltd,98599989,36.00,T&S UK - Public Transport
BEIS,UKRI - AHRC,08/10/2019,T&S UK - Public Transport,PSU Project Office,Corporate Travel Management (North) Ltd,98599989,0.07,T&S UK - Public Transport
BEIS,UKRI - AHRC,08/10/2019,T&S UK - Public Transport,PSU Project Office,Corporate Travel Management (North) Ltd,98599989,114.55,T&S UK - Public Transport
BEIS,UKRI - AHRC,08/10/2019,T&S UK - Public Transport,PSU Project Office,Corporate Travel Management (North) Ltd,98599989,0.06,T&S UK - Public Transport
BEIS,UKRI - AHRC,08/10/2019,T&S UK - Public Transport,PSU Project Office,Corporate Travel Management (North) Ltd,98599989,114.55,T&S UK - Public Transport
BEIS,UKRI - AHRC,08/10/2019,T&S UK - Public Transport,PSU Project Office,Corporate Travel Management (North) Ltd,98599989,0.06,T&S UK - Public Transport
BEIS,UKRI - AHRC,08/10/2019,T&S UK - Public Transport,PSU Project Office,Corporate Travel Management (North) Ltd,98599989,114.55,T&S UK - Public Transport
BEIS,UKRI - AHRC,08/10/2019,T&S UK - Public Transport,PSU Project Office,Corporate Travel Management (North) Ltd,98599989,0.06,T&S UK - Public Transport
BEIS,UKRI - AHRC,08/10/2019,T&S UK - Public Transport,PSU Project Office,Corporate Travel Management (North) Ltd,98599989,114.55,T&S UK - Public Transport
BEIS,UKRI - AHRC,08/10/2019,T&S UK - Public Transport,PSU Project Office,Corporate Travel Management (North) Ltd,98599989,0.25,T&S UK - Public Transport
BEIS,UKRI - AHRC,08/10/2019,T&S UK - Public Transport,PSU Project Office,Corporate Travel Management (North) Ltd,98599989,194.80,T&S UK - Public Transport
BEIS,UKRI - AHRC,08/10/2019,T&S UK - Public Transport,PSU Project Office,Corporate Travel Management (North) Ltd,98599989,0.50,T&S UK - Public Transport
BEIS,UKRI - AHRC,08/10/2019,T&S UK - Public Transport,PSU Project Office,Corporate Travel Management (North) Ltd,98599989,13.10,T&S UK - Public Transport
BEIS,UKRI - AHRC,08/10/2019,T&S UK - Public Transport,PSU Project Office,Corporate Travel Management (North) Ltd,98599989,95.50,T&S UK - Public Transport
BEIS,UKRI - AHRC,08/10/2019,T&S UK - Public Transport,PSU Project Office,Corporate Travel Management (North) Ltd,98599989,0.50,T&S UK - Public Transport
BEIS,UKRI - AHRC,08/10/2019,T&S UK - Public Transport,PSU Project Office,Corporate Travel Management (North) Ltd,98599989,13.10,T&S UK - Public Transport
BEIS,UKRI - AHRC,08/10/2019,T&S UK - Public Transport,PSU Project Office,Corporate Travel Management (North) Ltd,98599989,95.50,T&S UK - Public Transport
BEIS,UKRI - AHRC,08/10/2019,T&S UK - Public Transport,PSU Project Office,Corporate Travel Management (North) Ltd,98599989,0.05,T&S UK - Public Transport
BEIS,UKRI - AHRC,08/10/2019,T&S UK - Public Transport,PSU Project Office,Corporate Travel Management (North) Ltd,98599989,144.00,T&S UK - Public Transport
BEIS,UKRI - AHRC,08/10/2019,T&S UK - Public Transport,PSU Project Office,Corporate Travel Management (North) Ltd,98599989,0.30,T&S UK - Public Transport
BEIS,UKRI - AHRC,08/10/2019,T&S UK - Public Transport,PSU Project Office,Corporate Travel Management (North) Ltd,98599989,248.90,T&S UK - Public Transport
BEIS,UKRI - AHRC,08/10/2019,T&S UK - Public Transport,PSU Project Office,Corporate Travel Management (North) Ltd,98599989,0.05,T&S UK - Public Transport
BEIS,UKRI - AHRC,08/10/2019,T&S UK - Public Transport,PSU Project Office,Corporate Travel Management (North) Ltd,98599989,144.00,T&S UK - Public Transport
BEIS,UKRI - AHRC,08/10/2019,T&S UK - Public Transport,PSU Project Office,Corporate Travel Management (North) Ltd,98599989,0.05,T&S UK - Public Transport
BEIS,UKRI - AHRC,08/10/2019,T&S UK - Public Transport,PSU Project Office,Corporate Travel Management (North) Ltd,98599989,144.00,T&S UK - Public Transport
BEIS,UKRI - AHRC,08/10/2019,T&S UK - Public Transport,PSU Project Office,Corporate Travel Management (North) Ltd,98599989,0.25,T&S UK - Public Transport
BEIS,UKRI - AHRC,08/10/2019,T&S UK - Public Transport,PSU Project Office,Corporate Travel Management (North) Ltd,98599989,104.90,T&S UK - Public Transport
BEIS,UKRI - AHRC,08/10/2019,T&S UK - Public Transport,PSU Project Office,Corporate Travel Management (North) Ltd,98599989,0.25,T&S UK - Public Transport
BEIS,UKRI - AHRC,08/10/2019,T&S UK - Public Transport,PSU Project Office,Corporate Travel Management (North) Ltd,98599989,30.10,T&S UK - Public Transport
BEIS,UKRI - AHRC,08/10/2019,T&S UK - Public Transport,PSU Project Office,Corporate Travel Management (North) Ltd,98599989,0.05,T&S UK - Public Transport
BEIS,UKRI - AHRC,08/10/2019,T&S UK - Public Transport,PSU Project Office,Corporate Travel Management (North) Ltd,98599989,144.00,T&S UK - Public Transport
BEIS,UKRI - AHRC,08/10/2019,T&S UK - Public Transport,PSU Project Office,Corporate Travel Management (North) Ltd,98599989,0.25,T&S UK - Public Transport
BEIS,UKRI - AHRC,08/10/2019,T&S UK - Public Transport,PSU Project Office,Corporate Travel Management (North) Ltd,98599989,23.90,T&S UK - Public Transport
BEIS,UKRI - AHRC,08/10/2019,T&S UK - Public Transport,Public and Stakeholder Engagement,Corporate Travel Management (North) Ltd,98599989,0.25,T&S UK - Public Transport
BEIS,UKRI - AHRC,08/10/2019,T&S UK - Public Transport,Public and Stakeholder Engagement,Corporate Travel Management (North) Ltd,98599989,9.10,T&S UK - Public Transport
BEIS,UKRI - AHRC,08/10/2019,T&S UK - Public Transport,Public and Stakeholder Engagement,Corporate Travel Management (North) Ltd,98599989,10.00,T&S UK - Public Transport
BEIS,UKRI - AHRC,08/10/2019,T&S UK - Public Transport,Public and Stakeholder Engagement,Corporate Travel Management (North) Ltd,98599989,-91.30,T&S UK - Public Transport
BEIS,UKRI - AHRC,08/10/2019,T&S UK - Public Transport,Public and Stakeholder Engagement,Corporate Travel Management (North) Ltd,98599989,0.25,T&S UK - Public Transport
BEIS,UKRI - AHRC,08/10/2019,T&S UK - Public Transport,Public and Stakeholder Engagement,Corporate Travel Management (North) Ltd,98599989,87.00,T&S UK - Public Transport
BEIS,UKRI - AHRC,08/10/2019,T&S UK - Public Transport,Public and Stakeholder Engagement,Corporate Travel Management (North) Ltd,98599989,0.25,T&S UK - Public Transport
BEIS,UKRI - AHRC,08/10/2019,T&S UK - Public Transport,Public and Stakeholder Engagement,Corporate Travel Management (North) Ltd,98599989,151.60,T&S UK - Public Transport
BEIS,UKRI - AHRC,08/10/2019,T&S UK - Public Transport,Public and Stakeholder Engagement,Corporate Travel Management (North) Ltd,98599989,10.00,T&S UK - Public Transport
BEIS,UKRI - AHRC,08/10/2019,T&S UK - Public Transport,Public and Stakeholder Engagement,Corporate Travel Management (North) Ltd,98599989,-132.90,T&S UK - Public Transport
BEIS,UKRI - AHRC,08/10/2019,T&S UK - Public Transport,Public and Stakeholder Engagement,Corporate Travel Management (North) Ltd,98599989,0.25,T&S UK - Public Transport
BEIS,UKRI - AHRC,08/10/2019,T&S UK - Public Transport,Public and Stakeholder Engagement,Corporate Travel Management (North) Ltd,98599989,138.00,T&S UK - Public Transport
BEIS,UKRI - AHRC,08/10/2019,T&S UK - Public Transport,Public and Stakeholder Engagement,Corporate Travel Management (North) Ltd,98599989,0.25,T&S UK - Public Transport
BEIS,UKRI - AHRC,08/10/2019,T&S UK - Public Transport,Public and Stakeholder Engagement,Corporate Travel Management (North) Ltd,98599989,95.50,T&S UK - Public Transport
BEIS,UKRI - AHRC,08/10/2019,T&S UK - Public Transport,Public and Stakeholder Engagement,Corporate Travel Management (North) Ltd,98599989,0.25,T&S UK - Public Transport
BEIS,UKRI - AHRC,08/10/2019,T&S UK - Public Transport,Public and Stakeholder Engagement,Corporate Travel Management (North) Ltd,98599989,151.60,T&S UK - Public Transport
BEIS,UKRI - AHRC,08/10/2019,T&S UK - Public Transport,Public and Stakeholder Engagement,Corporate Travel Management (North) Ltd,98599989,0.25,T&S UK - Public Transport
BEIS,UKRI - AHRC,08/10/2019,T&S UK - Public Transport,Public and Stakeholder Engagement,Corporate Travel Management (North) Ltd,98599989,26.50,T&S UK - Public Transport
BEIS,UKRI - AHRC,08/10/2019,T&S UK - Public Transport,Public and Stakeholder Engagement,Corporate Travel Management (North) Ltd,98599989,0.25,T&S UK - Public Transport
BEIS,UKRI - AHRC,08/10/2019,T&S UK - Public Transport,Public and Stakeholder Engagement,Corporate Travel Management (North) Ltd,98599989,107.90,T&S UK - Public Transport
BEIS,UKRI - AHRC,08/10/2019,T&S UK - Public Transport,Public and Stakeholder Engagement,Corporate Travel Management (North) Ltd,98599989,0.25,T&S UK - Public Transport
BEIS,UKRI - AHRC,08/10/2019,T&S UK - Public Transport,Public and Stakeholder Engagement,Corporate Travel Management (North) Ltd,98599989,82.30,T&S UK - Public Transport
BEIS,UKRI - AHRC,08/10/2019,T&S UK - Public Transport,SMT,Corporate Travel Management (North) Ltd,98599989,0.25,T&S UK - Public Transport
BEIS,UKRI - AHRC,08/10/2019,T&S UK - Public Transport,SMT,Corporate Travel Management (North) Ltd,98599989,159.10,T&S UK - Public Transport
BEIS,UKRI - AHRC,08/10/2019,T&S UK - Public Transport,SMT,Corporate Travel Management (North) Ltd,98599989,0.25,T&S UK - Public Transport
BEIS,UKRI - AHRC,08/10/2019,T&S UK - Public Transport,SMT,Corporate Travel Management (North) Ltd,98599989,76.70,T&S UK - Public Transport
BEIS,UKRI - AHRC,08/10/2019,T&S UK - Public Transport,SMT,Corporate Travel Management (North) Ltd,98599989,0.25,T&S UK - Public Transport
BEIS,UKRI - AHRC,08/10/2019,T&S UK - Public Transport,SMT,Corporate Travel Management (North) Ltd,98599989,69.00,T&S UK - Public Transport
BEIS,UKRI - AHRC,08/10/2019,T&S UK - Public Transport,SMT,Corporate Travel Management (North) Ltd,98599989,0.25,T&S UK - Public Transport
BEIS,UKRI - AHRC,08/10/2019,T&S UK - Public Transport,SMT,Corporate Travel Management (North) Ltd,98599989,218.00,T&S UK - Public Transport
BEIS,UKRI - AHRC,08/10/2019,T&S UK - Public Transport,SMT,Corporate Travel Management (North) Ltd,98599989,0.25,T&S UK - Public Transport
BEIS,UKRI - AHRC,08/10/2019,T&S UK - Public Transport,SMT,Corporate Travel Management (North) Ltd,98599989,108.40,T&S UK - Public Transport
BEIS,UKRI - AHRC,08/10/2019,T&S UK - Public Transport,SMT,Corporate Travel Management (North) Ltd,98599989,0.50,T&S UK - Public Transport
BEIS,UKRI - AHRC,08/10/2019,T&S UK - Public Transport,SMT,Corporate Travel Management (North) Ltd,98599989,43.00,T&S UK - Public Transport
BEIS,UKRI - AHRC,08/10/2019,T&S UK - Public Transport,SMT,Corporate Travel Management (North) Ltd,98599989,18.60,T&S UK - Public Transport
BEIS,UKRI - AHRC,08/10/2019,T&S UK - Public Transport,SMT,Corporate Travel Management (North) Ltd,98599989,0.25,T&S UK - Public Transport
BEIS,UKRI - AHRC,08/10/2019,T&S UK - Public Transport,SMT,Corporate Travel Management (North) Ltd,98599989,163.80,T&S UK - Public Transport
BEIS,UKRI - AHRC,08/10/2019,T&S UK - Public Transport,SMT,Corporate Travel Management (North) Ltd,98599989,0.25,T&S UK - Public Transport
BEIS,UKRI - AHRC,08/10/2019,T&S UK - Public Transport,SMT,Corporate Travel Management (North) Ltd,98599989,44.80,T&S UK - Public Transport
BEIS,UKRI - AHRC,08/10/2019,T&S UK - Public Transport,SMT,Corporate Travel Management (North) Ltd,98599989,24.14,T&S UK - Public Transport
BEIS,UKRI - AHRC,08/10/2019,T&S UK - Public Transport,SMT,Corporate Travel Management (North) Ltd,98599989,0.25,T&S UK - Public Transport
BEIS,UKRI - AHRC,08/10/2019,T&S UK - Public Transport,SMT,Corporate Travel Management (North) Ltd,98599989,116.20,T&S UK - Public Transport
BEIS,UKRI - AHRC,08/10/2019,T&S UK - Public Transport,SMT,Corporate Travel Management (North) Ltd,98599989,0.25,T&S UK - Public Transport
BEIS,UKRI - AHRC,08/10/2019,T&S UK - Public Transport,SMT,Corporate Travel Management (North) Ltd,98599989,20.50,T&S UK - Public Transport
BEIS,UKRI - AHRC,08/10/2019,T&S UK - Public Transport,SMT,Corporate Travel Management (North) Ltd,98599989,30.53,T&S UK - Public Transport
BEIS,UKRI - AHRC,08/10/2019,T&S UK - Public Transport,SMT,Corporate Travel Management (North) Ltd,98599989,0.25,T&S UK - Public Transport
BEIS,UKRI - AHRC,08/10/2019,T&S UK - Public Transport,SMT,Corporate Travel Management (North) Ltd,98599989,178.00,T&S UK - Public Transport
BEIS,UKRI - AHRC,08/10/2019,T&S UK - Public Transport,SMT,Corporate Travel Management (North) Ltd,98599989,0.25,T&S UK - Public Transport
BEIS,UKRI - AHRC,08/10/2019,T&S UK - Public Transport,SMT,Corporate Travel Management (North) Ltd,98599989,33.70,T&S UK - Public Transport
BEIS,UKRI - AHRC,08/10/2019,T&S UK - Public Transport,SMT,Corporate Travel Management (North) Ltd,98599989,0.25,T&S UK - Public Transport
BEIS,UKRI - AHRC,08/10/2019,T&S UK - Public Transport,SMT,Corporate Travel Management (North) Ltd,98599989,97.80,T&S UK - Public Transport
BEIS,UKRI - AHRC,08/10/2019,T&S UK - Public Transport,SMT,Corporate Travel Management (North) Ltd,98599989,0.50,T&S UK - Public Transport
BEIS,UKRI - AHRC,08/10/2019,T&S UK - Public Transport,SMT,Corporate Travel Management (North) Ltd,98599989,59.00,T&S UK - Public Transport
BEIS,UKRI - AHRC,08/10/2019,T&S UK - Public Transport,SMT,Corporate Travel Management (North) Ltd,98599989,39.40,T&S UK - Public Transport
BEIS,UKRI - AHRC,08/10/2019,T&S UK - Public Transport,SMT,Corporate Travel Management (North) Ltd,98599989,0.25,T&S UK - Public Transport
BEIS,UKRI - AHRC,08/10/2019,T&S UK - Public Transport,SMT,Corporate Travel Management (North) Ltd,98599989,137.40,T&S UK - Public Transport
BEIS,UKRI - AHRC,08/10/2019,T&S UK - Public Transport,SMT,Corporate Travel Management (North) Ltd,98599989,0.50,T&S UK - Public Transport
BEIS,UKRI - AHRC,08/10/2019,T&S UK - Public Transport,SMT,Corporate Travel Management (North) Ltd,98599989,39.40,T&S UK - Public Transport
BEIS,UKRI - AHRC,08/10/2019,T&S UK - Public Transport,SMT,Corporate Travel Management (North) Ltd,98599989,28.80,T&S UK - Public Transport
BEIS,UKRI - AHRC,08/10/2019,T&S UK - Public Transport,SMT,Corporate Travel Management (North) Ltd,98599989,0.25,T&S UK - Public Transport
BEIS,UKRI - AHRC,08/10/2019,T&S UK - Public Transport,SMT,Corporate Travel Management (North) Ltd,98599989,69.00,T&S UK - Public Transport
BEIS,UKRI - AHRC,08/10/2019,T&S UK - Public Transport,SMT,Corporate Travel Management (North) Ltd,98599989,0.25,T&S UK - Public Transport
BEIS,UKRI - AHRC,08/10/2019,T&S UK - Public Transport,SMT,Corporate Travel Management (North) Ltd,98599989,74.60,T&S UK - Public Transport
BEIS,UKRI - AHRC,08/10/2019,T&S UK - Public Transport,SMT,Corporate Travel Management (North) Ltd,98599989,0.25,T&S UK - Public Transport
BEIS,UKRI - AHRC,08/10/2019,T&S UK - Public Transport,SMT,Corporate Travel Management (North) Ltd,98599989,218.00,T&S UK - Public Transport
BEIS,UKRI - AHRC,08/10/2019,T&S UK - Public Transport,SMT,Corporate Travel Management (North) Ltd,98599989,0.25,T&S UK - Public Transport
BEIS,UKRI - AHRC,08/10/2019,T&S UK - Public Transport,SMT,Corporate Travel Management (North) Ltd,98599989,39.40,T&S UK - Public Transport
BEIS,UKRI - AHRC,08/10/2019,T&S UK - Public Transport,SMT,Corporate Travel Management (North) Ltd,98599989,0.25,T&S UK - Public Transport
BEIS,UKRI - AHRC,08/10/2019,T&S UK - Public Transport,SMT,Corporate Travel Management (North) Ltd,98599989,51.70,T&S UK - Public Transport
BEIS,UKRI - AHRC,08/10/2019,T&S UK - Public Transport,SMT,Corporate Travel Management (North) Ltd,98599989,0.25,T&S UK - Public Transport
BEIS,UKRI - AHRC,08/10/2019,T&S UK - Public Transport,SMT,Corporate Travel Management (North) Ltd,98599989,218.00,T&S UK - Public Transport
BEIS,UKRI - AHRC,08/10/2019,T&S UK - Public Transport,SMT,Corporate Travel Management (North) Ltd,98599989,0.25,T&S UK - Public Transport
BEIS,UKRI - AHRC,08/10/2019,T&S UK - Public Transport,SMT,Corporate Travel Management (North) Ltd,98599989,20.50,T&S UK - Public Transport
BEIS,UKRI - AHRC,08/10/2019,T&S UK - Public Transport,SMT,Corporate Travel Management (North) Ltd,98599989,0.25,T&S UK - Public Transport
BEIS,UKRI - AHRC,08/10/2019,T&S UK - Public Transport,SMT,Corporate Travel Management (North) Ltd,98599989,133.10,T&S UK - Public Transport
BEIS,UKRI - AHRC,08/10/2019,T&S UK - Public Transport,SMT,Corporate Travel Management (North) Ltd,98599989,0.25,T&S UK - Public Transport
BEIS,UKRI - AHRC,08/10/2019,T&S UK - Public Transport,SMT,Corporate Travel Management (North) Ltd,98599989,51.70,T&S UK - Public Transport
BEIS,UKRI - AHRC,08/10/2019,T&S UK - Public Transport,SMT,Corporate Travel Management (North) Ltd,98599989,0.25,T&S UK - Public Transport
BEIS,UKRI - AHRC,08/10/2019,T&S UK - Public Transport,SMT,Corporate Travel Management (North) Ltd,98599989,21.40,T&S UK - Public Transport
BEIS,UKRI - AHRC,08/10/2019,T&S UK - Public Transport,SMT,Corporate Travel Management (North) Ltd,98599989,0.25,T&S UK - Public Transport
BEIS,UKRI - AHRC,08/10/2019,T&S UK - Public Transport,SMT,Corporate Travel Management (North) Ltd,98599989,28.80,T&S UK - Public Transport
BEIS,UKRI - AHRC,08/10/2019,T&S UK - Public Transport,SMT,Corporate Travel Management (North) Ltd,98599989,0.25,T&S UK - Public Transport
BEIS,UKRI - AHRC,08/10/2019,T&S UK - Public Transport,SMT,Corporate Travel Management (North) Ltd,98599989,76.70,T&S UK - Public Transport
BEIS,UKRI - AHRC,08/10/2019,T&S UK - Public Transport,SMT,Corporate Travel Management (North) Ltd,98599989,0.25,T&S UK - Public Transport
BEIS,UKRI - AHRC,08/10/2019,T&S UK - Public Transport,SMT,Corporate Travel Management (North) Ltd,98599989,33.70,T&S UK - Public Transport
BEIS,UKRI - AHRC,08/10/2019,T&S UK - Public Transport,SMT,Corporate Travel Management (North) Ltd,98599989,0.25,T&S UK - Public Transport
BEIS,UKRI - AHRC,08/10/2019,T&S UK - Public Transport,SMT,Corporate Travel Management (North) Ltd,98599989,103.00,T&S UK - Public Transport
BEIS,UKRI - AHRC,08/10/2019,T&S UK - Public Transport,SMT,Corporate Travel Management (North) Ltd,98599989,0.25,T&S UK - Public Transport
BEIS,UKRI - AHRC,08/10/2019,T&S UK - Public Transport,SMT,Corporate Travel Management (North) Ltd,98599989,121.60,T&S UK - Public Transport
BEIS,UKRI - AHRC,08/10/2019,T&S UK - Public Transport,SMT,Corporate Travel Management (North) Ltd,98599989,0.25,T&S UK - Public Transport
BEIS,UKRI - AHRC,08/10/2019,T&S UK - Public Transport,SMT,Corporate Travel Management (North) Ltd,98599989,133.00,T&S UK - Public Transport
BEIS,UKRI - AHRC,08/10/2019,T&S UK - Public Transport,SMT,Corporate Travel Management (North) Ltd,98599989,0.50,T&S UK - Public Transport
BEIS,UKRI - AHRC,08/10/2019,T&S UK - Public Transport,SMT,Corporate Travel Management (North) Ltd,98599989,23.70,T&S UK - Public Transport
BEIS,UKRI - AHRC,08/10/2019,T&S UK - Public Transport,SMT,Corporate Travel Management (North) Ltd,98599989,138.00,T&S UK - Public Transport
BEIS,UKRI - AHRC,08/10/2019,T&S UK - Public Transport,SMT,Corporate Travel Management (North) Ltd,98599989,0.75,T&S UK - Public Transport
BEIS,UKRI - AHRC,08/10/2019,T&S UK - Public Transport,SMT,Corporate Travel Management (North) Ltd,98599989,66.60,T&S UK - Public Transport
BEIS,UKRI - AHRC,08/10/2019,T&S UK - Public Transport,SMT,Corporate Travel Management (North) Ltd,98599989,71.00,T&S UK - Public Transport
BEIS,UKRI - AHRC,08/10/2019,T&S UK - Public Transport,SMT,Corporate Travel Management (North) Ltd,98599989,153.00,T&S UK - Public Transport
BEIS,UKRI - AHRC,08/10/2019,T&S UK - Public Transport,SMT,Corporate Travel Management (North) Ltd,98599989,0.25,T&S UK - Public Transport
BEIS,UKRI - AHRC,08/10/2019,T&S UK - Public Transport,SMT,Corporate Travel Management (North) Ltd,98599989,121.60,T&S UK - Public Transport
BEIS,UKRI - AHRC,08/10/2019,T&S UK - Public Transport,SMT,Corporate Travel Management (North) Ltd,98599989,0.25,T&S UK - Public Transport
BEIS,UKRI - AHRC,08/10/2019,T&S UK - Public Transport,SMT,Corporate Travel Management (North) Ltd,98599989,76.70,T&S UK - Public Transport
BEIS,UKRI - AHRC,08/10/2019,T&S UK - Public Transport,SMT,Corporate Travel Management (North) Ltd,98599989,0.25,T&S UK - Public Transport
BEIS,UKRI - AHRC,08/10/2019,T&S UK - Public Transport,SMT,Corporate Travel Management (North) Ltd,98599989,33.70,T&S UK - Public Transport
BEIS,UKRI - AHRC,08/10/2019,T&S UK - Public Transport,SMT,Corporate Travel Management (North) Ltd,98599989,0.25,T&S UK - Public Transport
BEIS,UKRI - AHRC,08/10/2019,T&S UK - Public Transport,SMT,Corporate Travel Management (North) Ltd,98599989,159.10,T&S UK - Public Transport
BEIS,UKRI - AHRC,08/10/2019,T&S UK - Public Transport,SMT,Corporate Travel Management (North) Ltd,98599989,0.25,T&S UK - Public Transport
BEIS,UKRI - AHRC,08/10/2019,T&S UK - Public Transport,SMT,Corporate Travel Management (North) Ltd,98599989,97.80,T&S UK - Public Transport
BEIS,UKRI - AHRC,08/10/2019,T&S UK - Public Transport,SMT,Corporate Travel Management (North) Ltd,98599989,0.25,T&S UK - Public Transport
BEIS,UKRI - AHRC,08/10/2019,T&S UK - Public Transport,SMT,Corporate Travel Management (North) Ltd,98599989,71.10,T&S UK - Public Transport
BEIS,UKRI - AHRC,08/10/2019,T&S UK - Public Transport,SMT,Corporate Travel Management (North) Ltd,98599989,0.25,T&S UK - Public Transport
BEIS,UKRI - AHRC,08/10/2019,T&S UK - Public Transport,SMT,Corporate Travel Management (North) Ltd,98599989,74.60,T&S UK - Public Transport
BEIS,UKRI - AHRC,08/10/2019,T&S UK - Public Transport,SMT,Corporate Travel Management (North) Ltd,98599989,0.25,T&S UK - Public Transport
BEIS,UKRI - AHRC,08/10/2019,T&S UK - Public Transport,SMT,Corporate Travel Management (North) Ltd,98599989,33.70,T&S UK - Public Transport
BEIS,UKRI - AHRC,08/10/2019,T&S UK - Public Transport,Secretariat,Corporate Travel Management (North) Ltd,98599989,35.70,T&S UK - Public Transport
BEIS,UKRI - AHRC,08/10/2019,T&S UK - Public Transport,Secretariat,Corporate Travel Management (North) Ltd,98599989,9.60,T&S UK - Public Transport
BEIS,UKRI - AHRC,08/10/2019,T&S UK - Public Transport,Skills Strategy,Corporate Travel Management (North) Ltd,98599989,0.25,T&S UK - Public Transport
BEIS,UKRI - AHRC,08/10/2019,T&S UK - Public Transport,Skills Strategy,Corporate Travel Management (North) Ltd,98599989,92.00,T&S UK - Public Transport
BEIS,UKRI - AHRC,08/10/2019,T&S UK - Public Transport,Skills Strategy,Corporate Travel Management (North) Ltd,98599989,0.75,T&S UK - Public Transport
BEIS,UKRI - AHRC,08/10/2019,T&S UK - Public Transport,Skills Strategy,Corporate Travel Management (North) Ltd,98599989,159.10,T&S UK - Public Transport
BEIS,UKRI - AHRC,08/10/2019,T&S UK - Public Transport,Skills Strategy,Corporate Travel Management (North) Ltd,98599989,9.80,T&S UK - Public Transport
BEIS,UKRI - AHRC,08/10/2019,T&S UK - Public Transport,Skills Strategy,Corporate Travel Management (North) Ltd,98599989,138.00,T&S UK - Public Transport
BEIS,UKRI - AHRC,08/10/2019,T&S UK - Public Transport,Skills Strategy,Corporate Travel Management (North) Ltd,98599989,0.25,T&S UK - Public Transport
BEIS,UKRI - AHRC,08/10/2019,T&S UK - Public Transport,Skills Strategy,Corporate Travel Management (North) Ltd,98599989,106.20,T&S UK - Public Transport
BEIS,UKRI - AHRC,08/10/2019,T&S UK - Public Transport,Skills Strategy,Corporate Travel Management (North) Ltd,98599989,0.25,T&S UK - Public Transport
BEIS,UKRI - AHRC,08/10/2019,T&S UK - Public Transport,Skills Strategy,Corporate Travel Management (North) Ltd,98599989,116.70,T&S UK - Public Transport
BEIS,UKRI - AHRC,08/10/2019,T&S UK - Public Transport,Skills Strategy,Corporate Travel Management (North) Ltd,98599989,0.25,T&S UK - Public Transport
BEIS,UKRI - AHRC,08/10/2019,T&S UK - Public Transport,Skills Strategy,Corporate Travel Management (North) Ltd,98599989,80.40,T&S UK - Public Transport
BEIS,UKRI - AHRC,08/10/2019,T&S UK - Public Transport,Skills Strategy,Corporate Travel Management (North) Ltd,98599989,0.25,T&S UK - Public Transport
BEIS,UKRI - AHRC,08/10/2019,T&S UK - Public Transport,Skills Strategy,Corporate Travel Management (North) Ltd,98599989,92.40,T&S UK - Public Transport
BEIS,UKRI - AHRC,08/10/2019,T&S UK - Public Transport,Skills Strategy,Corporate Travel Management (North) Ltd,98599989,0.25,T&S UK - Public Transport
BEIS,UKRI - AHRC,08/10/2019,T&S UK - Public Transport,Skills Strategy,Corporate Travel Management (North) Ltd,98599989,95.50,T&S UK - Public Transport
BEIS,UKRI - AHRC,08/10/2019,T&S UK - Public Transport,Skills Strategy,Corporate Travel Management (North) Ltd,98599989,0.25,T&S UK - Public Transport
BEIS,UKRI - AHRC,08/10/2019,T&S UK - Public Transport,Skills Strategy,Corporate Travel Management (North) Ltd,98599989,144.70,T&S UK - Public Transport
BEIS,UKRI - AHRC,08/10/2019,T&S UK - Public Transport,Skills Strategy,Corporate Travel Management (North) Ltd,98599989,0.25,T&S UK - Public Transport
BEIS,UKRI - AHRC,08/10/2019,T&S UK - Public Transport,Skills Strategy,Corporate Travel Management (North) Ltd,98599989,95.50,T&S UK - Public Transport
BEIS,UKRI - AHRC,08/10/2019,Non-staff travel and subsistance,Operations,Non Employee Expenses Supplier,98600153,17.80,Non-staff travel and subsistance
BEIS,UKRI - AHRC,08/10/2019,Non-staff travel and subsistance,Operations,Non Employee Expenses Supplier,98600154,17.40,Non-staff travel and subsistance
BEIS,UKRI - AHRC,08/10/2019,Non-staff travel and subsistance,Operations,Non Employee Expenses Supplier,98600155,91.30,Non-staff travel and subsistance
BEIS,UKRI - AHRC,08/10/2019,Non-staff travel and subsistance,Operations,Non Employee Expenses Supplier,98600156,195.81,Non-staff travel and subsistance
BEIS,UKRI - AHRC,08/10/2019,Non-staff travel and subsistance,GCRF - Programme Delivery,Non Employee Expenses Supplier,98600157,128.89,Non-staff travel and subsistance
BEIS,UKRI - AHRC,08/10/2019,Non-staff travel and subsistance,Operations,Non Employee Expenses Supplier,98600158,173.15,Non-staff travel and subsistance
BEIS,UKRI - AHRC,08/10/2019,Staff Training,SMT,Helen Warner Ltd,98600169,1843.20,Staff Training
BEIS,UKRI - AHRC,08/10/2019,Legal & Professional Services,SMT,Unspecified,98600171,885.23,Legal & Professional Services
BEIS,UKRI - AHRC,08/10/2019,T&S UK - Public Transport,SMT,Unspecified,98600185,20.50,T&S UK - Public Transport
BEIS,UKRI - AHRC,08/10/2019,T&S UK - Subsistence,SMT,Unspecified,98600185,8.40,T&S UK - Subsistence
BEIS,UKRI - AHRC,09/10/2019,Recruitment Costs,Corporate Services,Onefix Recruitment Ltd,98597596,150.00,Recruitment Costs
BEIS,UKRI - AHRC,09/10/2019,Recruitment Costs,Corporate Services,Agenda Resource Management Ltd,98599015,155.91,Recruitment Costs
BEIS,UKRI - AHRC,09/10/2019,Recruitment Costs,Corporate Services,Agenda Resource Management Ltd,98599020,155.91,Recruitment Costs
BEIS,UKRI - AHRC,09/10/2019,Hospitality,JPI Cultural Heritage Project,Berkeley Catering Ltd,98600254,194.40,Hospitality
BEIS,UKRI - AHRC,10/10/2019,Non-staff travel and subsistance,Operations,Non Employee Expenses Supplier,98602112,188.45,Non-staff travel and subsistance
BEIS,UKRI - AHRC,10/10/2019,T&S UK - Mileage,SMT,Unspecified,98602115,36.00,T&S UK - Mileage
BEIS,UKRI - AHRC,11/10/2019,Training Awards - Postgraduates,BGP Award,"Royal Holloway, University of London",98597025,587482.88,Training Awards - Postgraduates
BEIS,UKRI - AHRC,11/10/2019,Training Awards - Postgraduates,BGP Award,University of the West of England,98597026,103456.51,Training Awards - Postgraduates
BEIS,UKRI - AHRC,11/10/2019,Training Awards - Postgraduates,BGP Award,University of Hull,98597027,77592.38,Training Awards - Postgraduates
BEIS,UKRI - AHRC,11/10/2019,Training Awards - Postgraduates,BGP Award,University College London,98597028,112314.83,Training Awards - Postgraduates
BEIS,UKRI - AHRC,11/10/2019,Training Awards - Postgraduates,BGP Award,University College London,98597029,820486.80,Training Awards - Postgraduates
BEIS,UKRI - AHRC,11/10/2019,Training Awards - Postgraduates,BGP Award,University of Oxford,98597030,620739.00,Training Awards - Postgraduates
BEIS,UKRI - AHRC,11/10/2019,Training Awards - Postgraduates,BGP Award,University of Glasgow,98597031,620739.00,Training Awards - Postgraduates
BEIS,UKRI - AHRC,11/10/2019,Training Awards - Postgraduates,BGP Award,University of Newcastle Upon Tyne,98597032,486245.55,Training Awards - Postgraduates
BEIS,UKRI - AHRC,11/10/2019,Training Awards - Postgraduates,BGP Award,University of Bristol GRANT,98597033,620739.00,Training Awards - Postgraduates
BEIS,UKRI - AHRC,11/10/2019,Training Awards - Postgraduates,BGP Award,University of Glasgow,98597034,77592.38,Training Awards - Postgraduates
BEIS,UKRI - AHRC,11/10/2019,Training Awards - Postgraduates,BGP Award,Northumbria University,98597035,51728.25,Training Awards - Postgraduates
BEIS,UKRI - AHRC,11/10/2019,Training Awards - Postgraduates,BGP Award,The University of Manchester,98597036,620739.00,Training Awards - Postgraduates
BEIS,UKRI - AHRC,11/10/2019,Training Awards - Postgraduates,BGP Award,University of Cambridge,98597037,620739.00,Training Awards - Postgraduates
BEIS,UKRI - AHRC,11/10/2019,Training Awards - Postgraduates,BGP Award,University of Reading,98597038,95300.10,Training Awards - Postgraduates
BEIS,UKRI - AHRC,11/10/2019,Training Awards - Postgraduates,BGP Award,University of Sussex,98597039,739796.93,Training Awards - Postgraduates
BEIS,UKRI - AHRC,11/10/2019,Training Awards - Postgraduates,BGP Award,University of Nottingham,98597040,636257.48,Training Awards - Postgraduates
BEIS,UKRI - AHRC,11/10/2019,Training Awards - Postgraduates,BGP Award,University of York,98597041,829222.65,Training Awards - Postgraduates
BEIS,UKRI - AHRC,11/10/2019,Training Awards - Postgraduates,BGP Award,Royal College of Art,98597042,102560.85,Training Awards - Postgraduates
BEIS,UKRI - AHRC,11/10/2019,Training Awards - Postgraduates,Collabrative Doctoral Grants - Block Payment,University of Liverpool,98597043,9918.50,Training Awards - Postgraduates
BEIS,UKRI - AHRC,11/10/2019,Training Awards - Postgraduates,Collabrative Doctoral Grants - Block Payment,University of Central Lancashire,98597044,5064.00,Training Awards - Postgraduates
BEIS,UKRI - AHRC,11/10/2019,Training Awards - Postgraduates,Collabrative Doctoral Grants - Block Payment,University of St Andrews,98597045,2532.01,Training Awards - Postgraduates
BEIS,UKRI - AHRC,11/10/2019,Training Awards - Postgraduates,Collabrative Doctoral Grants - Block Payment,University of Glasgow,98597046,2532.01,Training Awards - Postgraduates
BEIS,UKRI - AHRC,11/10/2019,Training Awards - Postgraduates,Collabrative Doctoral Grants - Block Payment,University of Glasgow,98597047,2532.01,Training Awards - Postgraduates
BEIS,UKRI - AHRC,11/10/2019,Training Awards - Postgraduates,Collabrative Doctoral Grants - Block Payment,University of Liverpool,98597048,5064.00,Training Awards - Postgraduates
BEIS,UKRI - AHRC,11/10/2019,Training Awards - Postgraduates,Collabrative Doctoral Grants - Block Payment,University of Sheffield,98597049,2532.01,Training Awards - Postgraduates
BEIS,UKRI - AHRC,11/10/2019,Training Awards - Postgraduates,Collabrative Doctoral Grants - Block Payment,University of Huddersfield,98597050,2532.01,Training Awards - Postgraduates
BEIS,UKRI - AHRC,11/10/2019,Training Awards - Postgraduates,Collabrative Doctoral Grants - Block Payment,University College London,98597051,2782.01,Training Awards - Postgraduates
BEIS,UKRI - AHRC,11/10/2019,Training Awards - Postgraduates,Collabrative Doctoral Grants - Block Payment,University of York,98597052,5064.00,Training Awards - Postgraduates
BEIS,UKRI - AHRC,11/10/2019,Training Awards - Postgraduates,Collabrative Doctoral Grants - Block Payment,Coventry University,98597053,4963.75,Training Awards - Postgraduates
BEIS,UKRI - AHRC,11/10/2019,Training Awards - Postgraduates,Collabrative Doctoral Grants - Block Payment,University of Liverpool,98597054,5064.00,Training Awards - Postgraduates
BEIS,UKRI - AHRC,11/10/2019,Training Awards - Postgraduates,Collabrative Doctoral Grants - Block Payment,University of Nottingham,98597055,2532.01,Training Awards - Postgraduates
BEIS,UKRI - AHRC,11/10/2019,Training Awards - Postgraduates,Collabrative Doctoral Grants - Block Payment,University of the Highlands and Islands,98597056,2532.01,Training Awards - Postgraduates
BEIS,UKRI - AHRC,11/10/2019,Training Awards - Postgraduates,Collabrative Doctoral Grants - Block Payment,University College London,98597057,2782.01,Training Awards - Postgraduates
BEIS,UKRI - AHRC,11/10/2019,Training Awards - Postgraduates,Collabrative Doctoral Grants - Block Payment,University of Durham,98597058,2532.01,Training Awards - Postgraduates
BEIS,UKRI - AHRC,11/10/2019,Training Awards - Postgraduates,Collabrative Doctoral Grants - Block Payment,University of Liverpool,98597059,7596.01,Training Awards - Postgraduates
BEIS,UKRI - AHRC,11/10/2019,Training Awards - Postgraduates,Collabrative Doctoral Grants - Block Payment,London South Bank University,98597060,2782.01,Training Awards - Postgraduates
BEIS,UKRI - AHRC,11/10/2019,Training Awards - Postgraduates,Collabrative Doctoral Grants - Block Payment,University of Nottingham,98597061,2532.01,Training Awards - Postgraduates
BEIS,UKRI - AHRC,11/10/2019,Training Awards - Postgraduates,Collabrative Doctoral Grants - Block Payment,Queen Mary University of London,98597062,2782.01,Training Awards - Postgraduates
BEIS,UKRI - AHRC,11/10/2019,Training Awards - Postgraduates,Collabrative Doctoral Grants - Block Payment,Cardiff University,98597063,2532.01,Training Awards - Postgraduates
BEIS,UKRI - AHRC,11/10/2019,Training Awards - Postgraduates,Collabrative Doctoral Grants - Block Payment,"Royal Holloway, University of London",98597064,2782.01,Training Awards - Postgraduates
BEIS,UKRI - AHRC,11/10/2019,Training Awards - Postgraduates,Collabrative Doctoral Grants - Block Payment,Queen Mary University of London,98597065,2782.01,Training Awards - Postgraduates
BEIS,UKRI - AHRC,11/10/2019,Training Awards - Postgraduates,Collabrative Doctoral Grants - Block Payment,"Royal Holloway, University of London",98597066,2782.01,Training Awards - Postgraduates
BEIS,UKRI - AHRC,11/10/2019,Training Awards - Postgraduates,Collabrative Doctoral Grants - Block Payment,University of York,98597067,2532.01,Training Awards - Postgraduates
BEIS,UKRI - AHRC,11/10/2019,Training Awards - Postgraduates,Collabrative Doctoral Grants - Block Payment,University of Warwick,98597068,2532.01,Training Awards - Postgraduates
BEIS,UKRI - AHRC,11/10/2019,Training Awards - Postgraduates,Collabrative Doctoral Grants - Block Payment,Birkbeck College,98597069,2782.01,Training Awards - Postgraduates
BEIS,UKRI - AHRC,11/10/2019,Training Awards - Postgraduates,Collabrative Doctoral Grants - Block Payment,University of Cambridge,98597070,2532.01,Training Awards - Postgraduates
BEIS,UKRI - AHRC,11/10/2019,Training Awards - Postgraduates,Collabrative Doctoral Grants - Block Payment,University of Kent,98597071,2532.01,Training Awards - Postgraduates
BEIS,UKRI - AHRC,11/10/2019,Training Awards - Postgraduates,Collabrative Doctoral Grants - Block Payment,University of Lincoln,98597072,2532.01,Training Awards - Postgraduates
BEIS,UKRI - AHRC,11/10/2019,Training Awards - Postgraduates,Collabrative Doctoral Grants - Block Payment,University of Brighton,98597073,2532.01,Training Awards - Postgraduates
BEIS,UKRI - AHRC,11/10/2019,Training Awards - Postgraduates,Collabrative Doctoral Grants - Block Payment,Swansea University,98597074,2532.01,Training Awards - Postgraduates
BEIS,UKRI - AHRC,11/10/2019,Training Awards - Postgraduates,Collabrative Doctoral Grants - Block Payment,Bath Spa University,98597075,2532.01,Training Awards - Postgraduates
BEIS,UKRI - AHRC,11/10/2019,Training Awards - Postgraduates,Collabrative Doctoral Grants - Block Payment,University of Leeds,98597076,2532.01,Training Awards - Postgraduates
BEIS,UKRI - AHRC,11/10/2019,Training Awards - Postgraduates,Collabrative Doctoral Grants - Block Payment,University of Brighton,98597077,2532.01,Training Awards - Postgraduates
BEIS,UKRI - AHRC,11/10/2019,Training Awards - Postgraduates,Collabrative Doctoral Grants - Block Payment,University of Leeds,98597078,2532.01,Training Awards - Postgraduates
BEIS,UKRI - AHRC,11/10/2019,Training Awards - Postgraduates,Collabrative Doctoral Grants - Block Payment,University of Durham,98597079,2532.01,Training Awards - Postgraduates
BEIS,UKRI - AHRC,11/10/2019,Training Awards - Postgraduates,Collabrative Doctoral Grants - Block Payment,Manchester Metropolitan University,98597080,2532.01,Training Awards - Postgraduates
BEIS,UKRI - AHRC,11/10/2019,Training Awards - Postgraduates,Collabrative Doctoral Grants - Block Payment,University of Durham,98597081,2532.01,Training Awards - Postgraduates
BEIS,UKRI - AHRC,11/10/2019,Training Awards - Postgraduates,Collabrative Doctoral Grants - Block Payment,University of Aberdeen,98597082,2532.01,Training Awards - Postgraduates
BEIS,UKRI - AHRC,11/10/2019,Training Awards - Postgraduates,Collabrative Doctoral Grants - Block Payment,University of Reading,98597083,2532.01,Training Awards - Postgraduates
BEIS,UKRI - AHRC,11/10/2019,Training Awards - Postgraduates,Collabrative Doctoral Grants - Block Payment,University of Bristol GRANT,98597084,2532.01,Training Awards - Postgraduates
BEIS,UKRI - AHRC,11/10/2019,Training Awards - Postgraduates,Collabrative Doctoral Grants - Block Payment,Royal College of Art,98597085,2782.01,Training Awards - Postgraduates
BEIS,UKRI - AHRC,11/10/2019,Training Awards - Postgraduates,Collabrative Doctoral Grants - Block Payment,University of Newcastle Upon Tyne,98597086,2532.01,Training Awards - Postgraduates
BEIS,UKRI - AHRC,11/10/2019,Training Awards - Postgraduates,Collabrative Doctoral Grants - Block Payment,University of Bedfordshire,98597087,2532.01,Training Awards - Postgraduates
BEIS,UKRI - AHRC,11/10/2019,Training Awards - Postgraduates,Collabrative Doctoral Grants - Block Payment,Guildhall School of Music & Drama,98597088,2782.01,Training Awards - Postgraduates
BEIS,UKRI - AHRC,11/10/2019,Training Awards - Postgraduates,Collabrative Doctoral Grants - Block Payment,The University of Manchester,98597089,2532.01,Training Awards - Postgraduates
BEIS,UKRI - AHRC,11/10/2019,Training Awards - Postgraduates,Collabrative Doctoral Grants - Block Payment,University of Glasgow,98597090,2532.01,Training Awards - Postgraduates
BEIS,UKRI - AHRC,11/10/2019,Training Awards - Postgraduates,Collabrative Doctoral Grants - Block Payment,University College London,98597091,2782.01,Training Awards - Postgraduates
BEIS,UKRI - AHRC,11/10/2019,Training Awards - Postgraduates,Collabrative Doctoral Grants - Block Payment,University of Leicester,98597092,2532.01,Training Awards - Postgraduates
BEIS,UKRI - AHRC,11/10/2019,Training Awards - Postgraduates,Collabrative Doctoral Grants - Block Payment,The University of Manchester,98597093,2532.01,Training Awards - Postgraduates
BEIS,UKRI - AHRC,11/10/2019,Training Awards - Postgraduates,Collabrative Doctoral Grants - Block Payment,Heriot Watt University,98597094,2532.01,Training Awards - Postgraduates
BEIS,UKRI - AHRC,11/10/2019,Training Awards - Postgraduates,Collabrative Doctoral Grants - Block Payment,University of Cambridge,98597095,2532.01,Training Awards - Postgraduates
BEIS,UKRI - AHRC,11/10/2019,Training Awards - Postgraduates,Collabrative Doctoral Grants - Block Payment,University of Northampton,98597096,2532.01,Training Awards - Postgraduates
BEIS,UKRI - AHRC,11/10/2019,Training Awards - Postgraduates,Collabrative Doctoral Grants - Block Payment,Queen Mary University of London,98597097,2782.01,Training Awards - Postgraduates
BEIS,UKRI - AHRC,11/10/2019,Training Awards - Postgraduates,Collabrative Doctoral Grants - Block Payment,University of York,98597098,2532.01,Training Awards - Postgraduates
BEIS,UKRI - AHRC,11/10/2019,Training Awards - Postgraduates,Collabrative Doctoral Grants - Block Payment,University of Leeds,98597099,2532.01,Training Awards - Postgraduates
BEIS,UKRI - AHRC,11/10/2019,Training Awards - Postgraduates,Collabrative Doctoral Grants - Block Payment,"City, University of London",98597100,2782.01,Training Awards - Postgraduates
BEIS,UKRI - AHRC,11/10/2019,Training Awards - Postgraduates,Collabrative Doctoral Grants - Block Payment,University of Bradford,98597101,4963.75,Training Awards - Postgraduates
BEIS,UKRI - AHRC,11/10/2019,Training Awards - Postgraduates,Collabrative Doctoral Grants - Block Payment,Birkbeck College,98597102,2782.01,Training Awards - Postgraduates
BEIS,UKRI - AHRC,11/10/2019,Training Awards - Postgraduates,Collabrative Doctoral Grants - Block Payment,University of Bristol GRANT,98597103,2532.01,Training Awards - Postgraduates
BEIS,UKRI - AHRC,11/10/2019,Training Awards - Postgraduates,Collabrative Doctoral Grants - Block Payment,Queen Mary University of London,98597104,2782.01,Training Awards - Postgraduates
BEIS,UKRI - AHRC,11/10/2019,Training Awards - Postgraduates,Collabrative Doctoral Grants - Block Payment,University of Edinburgh,98597105,2532.01,Training Awards - Postgraduates
BEIS,UKRI - AHRC,11/10/2019,Training Awards - Postgraduates,Collabrative Doctoral Grants - Block Payment,"SOAS, University of London",98597106,2782.01,Training Awards - Postgraduates
BEIS,UKRI - AHRC,11/10/2019,Training Awards - Postgraduates,Collabrative Doctoral Grants - Block Payment,"SOAS, University of London",98597106,5463.75,Training Awards - Postgraduates
BEIS,UKRI - AHRC,11/10/2019,Training Awards - Postgraduates,Collabrative Doctoral Grants - Block Payment,University College London,98597107,2782.01,Training Awards - Postgraduates
BEIS,UKRI - AHRC,11/10/2019,Training Awards - Postgraduates,Collabrative Doctoral Grants - Block Payment,University of Edinburgh,98597108,5057.75,Training Awards - Postgraduates
BEIS,UKRI - AHRC,11/10/2019,Training Awards - Postgraduates,Collabrative Doctoral Grants - Block Payment,University of Oxford,98597109,5064.00,Training Awards - Postgraduates
BEIS,UKRI - AHRC,11/10/2019,Training Awards - Postgraduates,Collabrative Doctoral Grants - Block Payment,Nottingham Trent University,98597110,5064.00,Training Awards - Postgraduates
BEIS,UKRI - AHRC,11/10/2019,Training Awards - Postgraduates,Collabrative Doctoral Grants - Block Payment,"Royal Holloway, University of London",98597111,5564.00,Training Awards - Postgraduates
BEIS,UKRI - AHRC,11/10/2019,Training Awards - Postgraduates,Collabrative Doctoral Grants - Block Payment,Nottingham Trent University,98597112,5064.00,Training Awards - Postgraduates
BEIS,UKRI - AHRC,11/10/2019,Training Awards - Postgraduates,Collabrative Doctoral Grants - Block Payment,University of Sheffield,98597113,5064.00,Training Awards - Postgraduates
BEIS,UKRI - AHRC,11/10/2019,Training Awards - Postgraduates,Collabrative Doctoral Grants - Block Payment,University of Kent,98597114,5064.00,Training Awards - Postgraduates
BEIS,UKRI - AHRC,11/10/2019,Training Awards - Postgraduates,Collabrative Doctoral Grants - Block Payment,Birkbeck College,98597115,5564.00,Training Awards - Postgraduates
BEIS,UKRI - AHRC,11/10/2019,Training Awards - Postgraduates,Collabrative Doctoral Grants - Block Payment,University of Wolverhampton,98597116,5064.00,Training Awards - Postgraduates
BEIS,UKRI - AHRC,11/10/2019,Training Awards - Postgraduates,Collabrative Doctoral Grants - Block Payment,University of Edinburgh,98597117,5064.00,Training Awards - Postgraduates
BEIS,UKRI - AHRC,11/10/2019,Training Awards - Postgraduates,Collabrative Doctoral Grants - Block Payment,University of Bristol GRANT,98597118,5064.00,Training Awards - Postgraduates
BEIS,UKRI - AHRC,11/10/2019,Training Awards - Postgraduates,Collabrative Doctoral Grants - Block Payment,University of Edinburgh,98597119,5064.00,Training Awards - Postgraduates
BEIS,UKRI - AHRC,11/10/2019,Training Awards - Postgraduates,Collabrative Doctoral Grants - Block Payment,University of Durham,98597120,5064.00,Training Awards - Postgraduates
BEIS,UKRI - AHRC,11/10/2019,Training Awards - Postgraduates,Collabrative Doctoral Grants - Block Payment,University of Leeds,98597121,5064.00,Training Awards - Postgraduates
BEIS,UKRI - AHRC,11/10/2019,Training Awards - Postgraduates,Collabrative Doctoral Grants - Block Payment,University of Leicester,98597122,5064.00,Training Awards - Postgraduates
BEIS,UKRI - AHRC,11/10/2019,Training Awards - Postgraduates,Collabrative Doctoral Grants - Block Payment,University of Stirling,98597123,5064.00,Training Awards - Postgraduates
BEIS,UKRI - AHRC,11/10/2019,Training Awards - Postgraduates,Collabrative Doctoral Grants - Block Payment,University of Leeds,98597124,5064.00,Training Awards - Postgraduates
BEIS,UKRI - AHRC,11/10/2019,Training Awards - Postgraduates,Collabrative Doctoral Grants - Block Payment,University of St Andrews,98597125,5064.00,Training Awards - Postgraduates
BEIS,UKRI - AHRC,11/10/2019,Training Awards - Postgraduates,Collabrative Doctoral Grants - Block Payment,University of Leicester,98597126,5064.00,Training Awards - Postgraduates
BEIS,UKRI - AHRC,11/10/2019,Training Awards - Postgraduates,Collabrative Doctoral Grants - Block Payment,University of Central Lancashire,98597127,5064.00,Training Awards - Postgraduates
BEIS,UKRI - AHRC,11/10/2019,Training Awards - Postgraduates,Collabrative Doctoral Grants - Block Payment,University of Sussex,98597128,5064.00,Training Awards - Postgraduates
BEIS,UKRI - AHRC,11/10/2019,Training Awards - Postgraduates,Collabrative Doctoral Grants - Block Payment,University of Exeter,98597129,5064.00,Training Awards - Postgraduates
BEIS,UKRI - AHRC,11/10/2019,Training Awards - Postgraduates,Collabrative Doctoral Grants - Block Payment,University of Edinburgh,98597130,5064.00,Training Awards - Postgraduates
BEIS,UKRI - AHRC,11/10/2019,Training Awards - Postgraduates,Collabrative Doctoral Grants - Block Payment,University of Nottingham,98597131,5064.00,Training Awards - Postgraduates
BEIS,UKRI - AHRC,11/10/2019,Training Awards - Postgraduates,Collabrative Doctoral Grants - Block Payment,University of Glasgow,98597132,5064.00,Training Awards - Postgraduates
BEIS,UKRI - AHRC,11/10/2019,Training Awards - Postgraduates,Collabrative Doctoral Grants - Block Payment,University College London,98597133,5564.00,Training Awards - Postgraduates
BEIS,UKRI - AHRC,11/10/2019,Training Awards - Postgraduates,Collabrative Doctoral Grants - Block Payment,University of Birmingham GRANT,98597134,5064.00,Training Awards - Postgraduates
BEIS,UKRI - AHRC,11/10/2019,Training Awards - Postgraduates,Collabrative Doctoral Grants - Block Payment,Birkbeck College,98597135,5564.00,Training Awards - Postgraduates
BEIS,UKRI - AHRC,11/10/2019,Training Awards - Postgraduates,Collabrative Doctoral Grants - Block Payment,University of Oxford,98597136,5064.00,Training Awards - Postgraduates
BEIS,UKRI - AHRC,11/10/2019,Training Awards - Postgraduates,Collabrative Doctoral Grants - Block Payment,University of London,98597137,5564.00,Training Awards - Postgraduates
BEIS,UKRI - AHRC,11/10/2019,Training Awards - Postgraduates,Collabrative Doctoral Grants - Block Payment,University of Leicester,98597138,5064.00,Training Awards - Postgraduates
BEIS,UKRI - AHRC,11/10/2019,Training Awards - Postgraduates,Collabrative Doctoral Grants - Block Payment,King's College London,98597139,5564.00,Training Awards - Postgraduates
BEIS,UKRI - AHRC,11/10/2019,Training Awards - Postgraduates,Collabrative Doctoral Grants - Block Payment,University of Leeds,98597140,5026.72,Training Awards - Postgraduates
BEIS,UKRI - AHRC,11/10/2019,Training Awards - Postgraduates,Collabrative Doctoral Grants - Block Payment,De Montfort University,98597141,5064.00,Training Awards - Postgraduates
BEIS,UKRI - AHRC,11/10/2019,Training Awards - Postgraduates,Collabrative Doctoral Grants - Block Payment,University of Leicester,98597142,5064.00,Training Awards - Postgraduates
BEIS,UKRI - AHRC,11/10/2019,Training Awards - Postgraduates,Collabrative Doctoral Grants - Block Payment,Birkbeck College,98597143,5564.00,Training Awards - Postgraduates
BEIS,UKRI - AHRC,11/10/2019,Training Awards - Postgraduates,Collabrative Doctoral Grants - Block Payment,University of Reading,98597144,5064.00,Training Awards - Postgraduates
BEIS,UKRI - AHRC,11/10/2019,Training Awards - Postgraduates,Collabrative Doctoral Grants - Block Payment,University of York,98597145,5064.00,Training Awards - Postgraduates
BEIS,UKRI - AHRC,11/10/2019,Training Awards - Postgraduates,Collabrative Doctoral Grants - Block Payment,Courtauld Institute of Art,98597146,5564.00,Training Awards - Postgraduates
BEIS,UKRI - AHRC,11/10/2019,Training Awards - Postgraduates,Collabrative Doctoral Grants - Block Payment,University of York,98597147,5064.00,Training Awards - Postgraduates
BEIS,UKRI - AHRC,11/10/2019,Training Awards - Postgraduates,Collabrative Doctoral Grants - Block Payment,The University of Manchester,98597148,5064.00,Training Awards - Postgraduates
BEIS,UKRI - AHRC,11/10/2019,Training Awards - Postgraduates,Collabrative Doctoral Grants - Block Payment,Cardiff University,98597149,5064.00,Training Awards - Postgraduates
BEIS,UKRI - AHRC,11/10/2019,Training Awards - Postgraduates,Collabrative Doctoral Grants - Block Payment,University of Reading,98597150,5064.00,Training Awards - Postgraduates
BEIS,UKRI - AHRC,11/10/2019,Training Awards - Postgraduates,Collabrative Doctoral Grants - Block Payment,De Montfort University,98597151,5064.00,Training Awards - Postgraduates
BEIS,UKRI - AHRC,11/10/2019,Training Awards - Postgraduates,Collabrative Doctoral Grants - Block Payment,University of Westminster,98597152,5564.00,Training Awards - Postgraduates
BEIS,UKRI - AHRC,11/10/2019,Training Awards - Postgraduates,Collabrative Doctoral Grants - Block Payment,The University of Manchester,98597153,5064.00,Training Awards - Postgraduates
BEIS,UKRI - AHRC,11/10/2019,Training Awards - Postgraduates,Collabrative Doctoral Grants - Block Payment,Royal College of Art,98597154,5564.00,Training Awards - Postgraduates
BEIS,UKRI - AHRC,11/10/2019,Training Awards - Postgraduates,Collabrative Doctoral Grants - Block Payment,Northumbria University,98597155,5064.00,Training Awards - Postgraduates
BEIS,UKRI - AHRC,11/10/2019,Training Awards - Postgraduates,Collabrative Doctoral Grants - Block Payment,Glasgow School of Art,98597156,5064.00,Training Awards - Postgraduates
BEIS,UKRI - AHRC,11/10/2019,Training Awards - Postgraduates,Collabrative Doctoral Grants - Block Payment,Royal College of Art,98597157,4720.08,Training Awards - Postgraduates
BEIS,UKRI - AHRC,11/10/2019,Training Awards - Postgraduates,BGP Award,University of Glasgow,98597158,63723.90,Training Awards - Postgraduates
BEIS,UKRI - AHRC,11/10/2019,Training Awards - Postgraduates,BGP Award,University of Newcastle Upon Tyne,98597159,63724.00,Training Awards - Postgraduates
BEIS,UKRI - AHRC,11/10/2019,Training Awards - Postgraduates,BGP Award,The University of Manchester,98597160,63724.00,Training Awards - Postgraduates
BEIS,UKRI - AHRC,11/10/2019,Training Awards - Postgraduates,BGP Award,University of the West of England,98597161,63723.90,Training Awards - Postgraduates
BEIS,UKRI - AHRC,11/10/2019,Training Awards - Postgraduates,BGP Award,University of Nottingham,98597162,53104.25,Training Awards - Postgraduates
BEIS,UKRI - AHRC,11/10/2019,Training Awards - Postgraduates,BGP Award,"Royal Holloway, University of London",98597163,68973.90,Training Awards - Postgraduates
BEIS,UKRI - AHRC,11/10/2019,Training Awards - Postgraduates,Collabrative Doctoral Grants - Block Payment,University of London,98597164,5523.25,Training Awards - Postgraduates
BEIS,UKRI - AHRC,11/10/2019,Training Awards - Postgraduates,Collabrative Doctoral Grants - Block Payment,University of Sheffield,98597165,5023.25,Training Awards - Postgraduates
BEIS,UKRI - AHRC,11/10/2019,Training Awards - Postgraduates,Collabrative Doctoral Grants - Block Payment,University College London,98597166,5500.75,Training Awards - Postgraduates
BEIS,UKRI - AHRC,11/10/2019,Training Awards - Postgraduates,Collabrative Doctoral Grants - Block Payment,University of Sheffield,98597167,5023.25,Training Awards - Postgraduates
BEIS,UKRI - AHRC,11/10/2019,Training Awards - Postgraduates,Collabrative Doctoral Grants - Block Payment,"SOAS, University of London",98597168,5523.25,Training Awards - Postgraduates
BEIS,UKRI - AHRC,11/10/2019,Training Awards - Postgraduates,Collabrative Doctoral Grants - Block Payment,"SOAS, University of London",98597168,5446.75,Training Awards - Postgraduates
BEIS,UKRI - AHRC,11/10/2019,Training Awards - Postgraduates,Collabrative Doctoral Grants - Block Payment,Northumbria University,98597169,5023.25,Training Awards - Postgraduates
BEIS,UKRI - AHRC,11/10/2019,Training Awards - Postgraduates,Collabrative Doctoral Grants - Block Payment,King's College London,98597170,5523.25,Training Awards - Postgraduates
BEIS,UKRI - AHRC,11/10/2019,Training Awards - Postgraduates,Collabrative Doctoral Grants - Block Payment,University of Brighton,98597171,5023.25,Training Awards - Postgraduates
BEIS,UKRI - AHRC,11/10/2019,Training Awards - Postgraduates,Collabrative Doctoral Grants - Block Payment,University of Stirling,98597172,5023.25,Training Awards - Postgraduates
BEIS,UKRI - AHRC,11/10/2019,Training Awards - Postgraduates,Collabrative Doctoral Grants - Block Payment,University of Liverpool,98597173,5023.25,Training Awards - Postgraduates
BEIS,UKRI - AHRC,11/10/2019,Training Awards - Postgraduates,Collabrative Doctoral Grants - Block Payment,Robert Gordon University,98597174,5023.25,Training Awards - Postgraduates
BEIS,UKRI - AHRC,11/10/2019,Training Awards - Postgraduates,Collabrative Doctoral Grants - Block Payment,University of Exeter,98597175,5023.25,Training Awards - Postgraduates
BEIS,UKRI - AHRC,11/10/2019,Training Awards - Postgraduates,Collabrative Doctoral Grants - Block Payment,University of Edinburgh,98597176,5023.25,Training Awards - Postgraduates
BEIS,UKRI - AHRC,11/10/2019,Training Awards - Postgraduates,Collabrative Doctoral Grants - Block Payment,University of Durham,98597177,5023.25,Training Awards - Postgraduates
BEIS,UKRI - AHRC,11/10/2019,Training Awards - Postgraduates,Collabrative Doctoral Grants - Block Payment,"City, University of London",98597178,5446.75,Training Awards - Postgraduates
BEIS,UKRI - AHRC,11/10/2019,Training Awards - Postgraduates,Collabrative Doctoral Grants - Block Payment,University of Strathclyde,98597179,4792.13,Training Awards - Postgraduates
BEIS,UKRI - AHRC,11/10/2019,Training Awards - Postgraduates,Collabrative Doctoral Grants - Block Payment,University College London,98597180,5523.25,Training Awards - Postgraduates
BEIS,UKRI - AHRC,11/10/2019,Training Awards - Postgraduates,Collabrative Doctoral Grants - Block Payment,University of Leeds,98597181,5023.25,Training Awards - Postgraduates
BEIS,UKRI - AHRC,11/10/2019,Training Awards - Postgraduates,Collabrative Doctoral Grants - Block Payment,University College London,98597182,5523.25,Training Awards - Postgraduates
BEIS,UKRI - AHRC,11/10/2019,Training Awards - Postgraduates,Collabrative Doctoral Grants - Block Payment,King's College London,98597183,5523.25,Training Awards - Postgraduates
BEIS,UKRI - AHRC,11/10/2019,Training Awards - Postgraduates,Collabrative Doctoral Grants - Block Payment,University of Southampton GRANT,98597184,5023.25,Training Awards - Postgraduates
BEIS,UKRI - AHRC,11/10/2019,Training Awards - Postgraduates,Collabrative Doctoral Grants - Block Payment,University of Central Lancashire,98597185,5023.25,Training Awards - Postgraduates
BEIS,UKRI - AHRC,11/10/2019,Training Awards - Postgraduates,Collabrative Doctoral Grants - Block Payment,Birkbeck College,98597186,5523.25,Training Awards - Postgraduates
BEIS,UKRI - AHRC,11/10/2019,Training Awards - Postgraduates,Collabrative Doctoral Grants - Block Payment,University of Glasgow,98597187,5023.25,Training Awards - Postgraduates
BEIS,UKRI - AHRC,11/10/2019,Training Awards - Postgraduates,Collabrative Doctoral Grants - Block Payment,University of Stirling,98597188,5023.25,Training Awards - Postgraduates
BEIS,UKRI - AHRC,11/10/2019,Training Awards - Postgraduates,Collabrative Doctoral Grants - Block Payment,University of Newcastle Upon Tyne,98597189,5023.25,Training Awards - Postgraduates
BEIS,UKRI - AHRC,11/10/2019,Training Awards - Postgraduates,Collabrative Doctoral Grants - Block Payment,University of Leeds,98597190,5023.25,Training Awards - Postgraduates
BEIS,UKRI - AHRC,11/10/2019,Training Awards - Postgraduates,Collabrative Doctoral Grants - Block Payment,University of Oxford,98597191,5023.25,Training Awards - Postgraduates
BEIS,UKRI - AHRC,11/10/2019,Training Awards - Postgraduates,Collabrative Doctoral Grants - Block Payment,University of York,98597192,5023.25,Training Awards - Postgraduates
BEIS,UKRI - AHRC,11/10/2019,Training Awards - Postgraduates,Collabrative Doctoral Grants - Block Payment,University of Kent,98597193,5023.25,Training Awards - Postgraduates
BEIS,UKRI - AHRC,11/10/2019,Training Awards - Postgraduates,Collabrative Doctoral Grants - Block Payment,University of Cambridge,98597194,5023.25,Training Awards - Postgraduates
BEIS,UKRI - AHRC,11/10/2019,Training Awards - Postgraduates,Collabrative Doctoral Grants - Block Payment,Courtauld Institute of Art,98597195,5523.25,Training Awards - Postgraduates
BEIS,UKRI - AHRC,11/10/2019,Training Awards - Postgraduates,Collabrative Doctoral Grants - Block Payment,Queen Mary University of London,98597196,5523.25,Training Awards - Postgraduates
BEIS,UKRI - AHRC,11/10/2019,Training Awards - Postgraduates,Collabrative Doctoral Grants - Block Payment,University of Aberdeen,98597197,5023.25,Training Awards - Postgraduates
BEIS,UKRI - AHRC,11/10/2019,Training Awards - Postgraduates,Collabrative Doctoral Grants - Block Payment,University of Durham,98597198,5023.25,Training Awards - Postgraduates
BEIS,UKRI - AHRC,11/10/2019,Training Awards - Postgraduates,Collabrative Doctoral Grants - Block Payment,University College London,98597199,5523.25,Training Awards - Postgraduates
BEIS,UKRI - AHRC,11/10/2019,Training Awards - Postgraduates,Collabrative Doctoral Grants - Block Payment,University of Kent,98597200,5023.25,Training Awards - Postgraduates
BEIS,UKRI - AHRC,11/10/2019,Training Awards - Postgraduates,Collabrative Doctoral Grants - Block Payment,University of Cambridge,98597201,5023.25,Training Awards - Postgraduates
BEIS,UKRI - AHRC,11/10/2019,Training Awards - Postgraduates,Collabrative Doctoral Grants - Block Payment,University of Cambridge,98597202,5023.25,Training Awards - Postgraduates
BEIS,UKRI - AHRC,11/10/2019,Training Awards - Postgraduates,Collabrative Doctoral Grants - Block Payment,University of Leeds,98597203,5023.25,Training Awards - Postgraduates
BEIS,UKRI - AHRC,11/10/2019,Training Awards - Postgraduates,Collabrative Doctoral Grants - Block Payment,University of Leeds,98597204,5023.25,Training Awards - Postgraduates
BEIS,UKRI - AHRC,11/10/2019,Training Awards - Postgraduates,Collabrative Doctoral Grants - Block Payment,University of Strathclyde,98597205,5023.25,Training Awards - Postgraduates
BEIS,UKRI - AHRC,11/10/2019,Training Awards - Postgraduates,Collabrative Doctoral Grants - Block Payment,University of London,98597206,4342.97,Training Awards - Postgraduates
BEIS,UKRI - AHRC,11/10/2019,Training Awards - Postgraduates,Collabrative Doctoral Grants - Block Payment,Keele University,98597207,5023.25,Training Awards - Postgraduates
BEIS,UKRI - AHRC,11/10/2019,Training Awards - Postgraduates,Collabrative Doctoral Grants - Block Payment,Goldsmiths College University of London,98597208,5523.25,Training Awards - Postgraduates
BEIS,UKRI - AHRC,11/10/2019,Training Awards - Postgraduates,Collabrative Doctoral Grants - Block Payment,De Montfort University,98597209,5023.25,Training Awards - Postgraduates
BEIS,UKRI - AHRC,11/10/2019,Training Awards - Postgraduates,Collabrative Doctoral Grants - Block Payment,Sheffield Hallam University,98597210,5023.25,Training Awards - Postgraduates
BEIS,UKRI - AHRC,11/10/2019,Training Awards - Postgraduates,Collabrative Doctoral Grants - Block Payment,De Montfort University,98597211,5023.25,Training Awards - Postgraduates
BEIS,UKRI - AHRC,11/10/2019,Training Awards - Postgraduates,Collabrative Doctoral Grants - Block Payment,University of the Arts London,98597212,5523.25,Training Awards - Postgraduates
BEIS,UKRI - AHRC,11/10/2019,Training Awards - Postgraduates,Collabrative Doctoral Grants - Block Payment,Royal College of Art,98597213,5523.25,Training Awards - Postgraduates
BEIS,UKRI - AHRC,11/10/2019,Training Awards - Postgraduates,Industrial Strategy Challenge Fund (ISCF) - Skills,The University of Manchester,98597214,19660.92,Training Awards - Postgraduates
BEIS,UKRI - AHRC,11/10/2019,Training Awards - Postgraduates,Industrial Strategy Challenge Fund (ISCF) - Skills,University of Glasgow,98597215,19660.92,Training Awards - Postgraduates
BEIS,UKRI - AHRC,11/10/2019,Training Awards - Postgraduates,Industrial Strategy Challenge Fund (ISCF) - Skills,University of Newcastle Upon Tyne,98597216,19660.92,Training Awards - Postgraduates
BEIS,UKRI - AHRC,11/10/2019,Training Awards - Postgraduates,Industrial Strategy Challenge Fund (ISCF) - Skills,"Royal Holloway, University of London",98597217,21632.93,Training Awards - Postgraduates
BEIS,UKRI - AHRC,11/10/2019,Training Awards - Postgraduates,Industrial Strategy Challenge Fund (ISCF) - Skills,University of Nottingham,98597218,19660.92,Training Awards - Postgraduates
BEIS,UKRI - AHRC,11/10/2019,Training Awards - Postgraduates,Industrial Strategy Challenge Fund (ISCF) - Skills,University of the West of England,98597219,19665.67,Training Awards - Postgraduates
BEIS,UKRI - AHRC,11/10/2019,Training Awards - Postgraduates,BGP Award,University College London,98597220,258670.13,Training Awards - Postgraduates
BEIS,UKRI - AHRC,11/10/2019,Training Awards - Postgraduates,BGP Award,University of Newcastle Upon Tyne,98597221,199031.18,Training Awards - Postgraduates
BEIS,UKRI - AHRC,11/10/2019,Training Awards - Postgraduates,BGP Award,The University of Manchester,98597222,157129.88,Training Awards - Postgraduates
BEIS,UKRI - AHRC,11/10/2019,Training Awards - Postgraduates,BGP Award,University of Oxford,98597223,266752.64,Training Awards - Postgraduates
BEIS,UKRI - AHRC,11/10/2019,Training Awards - Postgraduates,BGP Award,University of Glasgow,98597224,199031.18,Training Awards - Postgraduates
BEIS,UKRI - AHRC,11/10/2019,Training Awards - Postgraduates,BGP Award,"Royal Holloway, University of London",98597225,214991.18,Training Awards - Postgraduates
BEIS,UKRI - AHRC,11/10/2019,Training Awards - Postgraduates,BGP Award,University of Sussex,98597226,202971.83,Training Awards - Postgraduates
BEIS,UKRI - AHRC,11/10/2019,Training Awards - Postgraduates,Collabrative Doctoral Grants - Block Payment,University of St Andrews,98597227,5021.50,Training Awards - Postgraduates
BEIS,UKRI - AHRC,11/10/2019,Training Awards - Postgraduates,Collabrative Doctoral Grants - Block Payment,University of Leeds,98597228,5021.50,Training Awards - Postgraduates
BEIS,UKRI - AHRC,11/10/2019,Training Awards - Postgraduates,Collabrative Doctoral Grants - Block Payment,University of Leeds,98597229,5021.50,Training Awards - Postgraduates
BEIS,UKRI - AHRC,11/10/2019,Training Awards - Postgraduates,Collabrative Doctoral Grants - Block Payment,University of the Arts London,98597230,5521.50,Training Awards - Postgraduates
BEIS,UKRI - AHRC,11/10/2019,Training Awards - Postgraduates,Collabrative Doctoral Grants - Block Payment,University College London,98597231,5521.50,Training Awards - Postgraduates
BEIS,UKRI - AHRC,11/10/2019,Training Awards - Postgraduates,Collabrative Doctoral Grants - Block Payment,University of Leeds,98597232,5021.50,Training Awards - Postgraduates
BEIS,UKRI - AHRC,11/10/2019,Training Awards - Postgraduates,Collabrative Doctoral Grants - Block Payment,University College London,98597233,4987.53,Training Awards - Postgraduates
BEIS,UKRI - AHRC,11/10/2019,Training Awards - Postgraduates,Collabrative Doctoral Grants - Block Payment,University of Kent,98597234,5021.50,Training Awards - Postgraduates
BEIS,UKRI - AHRC,11/10/2019,Training Awards - Postgraduates,Collabrative Doctoral Grants - Block Payment,University of the Arts London,98597235,5521.50,Training Awards - Postgraduates
BEIS,UKRI - AHRC,11/10/2019,Training Awards - Postgraduates,Collabrative Doctoral Grants - Block Payment,University College London,98597236,5521.50,Training Awards - Postgraduates
BEIS,UKRI - AHRC,11/10/2019,Training Awards - Postgraduates,Collabrative Doctoral Grants - Block Payment,University of Warwick,98597237,3267.91,Training Awards - Postgraduates
BEIS,UKRI - AHRC,11/10/2019,Training Awards - Postgraduates,International Placement Scheme,University of Cambridge,98597238,4470.00,Training Awards - Postgraduates
BEIS,UKRI - AHRC,11/10/2019,Training Awards - Postgraduates,International Placement Scheme,University of Leeds,98597239,5670.00,Training Awards - Postgraduates
BEIS,UKRI - AHRC,11/10/2019,Training Awards - Postgraduates,International Placement Scheme,University of Oxford,98597240,4035.00,Training Awards - Postgraduates
BEIS,UKRI - AHRC,11/10/2019,Training Awards - Postgraduates,International Placement Scheme,University of East Anglia,98597241,4470.00,Training Awards - Postgraduates
BEIS,UKRI - AHRC,11/10/2019,Training Awards - Postgraduates,International Placement Scheme,University College London,98597242,4470.00,Training Awards - Postgraduates
BEIS,UKRI - AHRC,11/10/2019,Training Awards - Postgraduates,International Placement Scheme,Queen's University Belfast GRANT,98597243,5670.00,Training Awards - Postgraduates
BEIS,UKRI - AHRC,11/10/2019,Training Awards - Postgraduates,BGP Award,University of Nottingham,98597244,23947.75,Training Awards - Postgraduates
BEIS,UKRI - AHRC,11/10/2019,Training Awards - Postgraduates,Collabrative Doctoral Grants - Block Payment,"Royal Holloway, University of London",98597245,48.80,Training Awards - Postgraduates
BEIS,UKRI - AHRC,11/10/2019,Training Awards - Postgraduates,Collabrative Doctoral Grants - Block Payment,University of Glasgow,98597246,861.00,Training Awards - Postgraduates
BEIS,UKRI - AHRC,11/10/2019,Training Awards - Postgraduates,Collabrative Doctoral Grants - Block Payment,Courtauld Institute of Art,98597247,-600.00,Training Awards - Postgraduates
BEIS,UKRI - AHRC,11/10/2019,Training Awards - Postgraduates,Collabrative Doctoral Grants - Block Payment,University of York,98597248,3104.56,Training Awards - Postgraduates
BEIS,UKRI - AHRC,11/10/2019,Training Awards - Postgraduates,International Placement Scheme,University of Exeter,98597249,-26.88,Training Awards - Postgraduates
BEIS,UKRI - AHRC,11/10/2019,Training Awards - Postgraduates,International Placement Scheme,University of Leeds,98597250,3483.24,Training Awards - Postgraduates
BEIS,UKRI - AHRC,11/10/2019,Training Awards - Postgraduates,International Placement Scheme,University of Cambridge,98597251,5670.00,Training Awards - Postgraduates
BEIS,UKRI - AHRC,11/10/2019,Training Awards - Postgraduates,International Placement Scheme,"Royal Holloway, University of London",98597252,4470.00,Training Awards - Postgraduates
BEIS,UKRI - AHRC,11/10/2019,Training Awards - Postgraduates,International Placement Scheme,University of Brighton,98597253,4490.00,Training Awards - Postgraduates
BEIS,UKRI - AHRC,11/10/2019,Training Awards - Postgraduates,International Placement Scheme,University of Cambridge,98597254,5670.00,Training Awards - Postgraduates
BEIS,UKRI - AHRC,11/10/2019,Training Awards - Postgraduates,International Placement Scheme,University College London,98597255,5670.00,Training Awards - Postgraduates
BEIS,UKRI - AHRC,11/10/2019,Training Awards - Postgraduates,International Placement Scheme,University of Cambridge,98597256,3490.00,Training Awards - Postgraduates
BEIS,UKRI - AHRC,11/10/2019,Training Awards - Postgraduates,International Placement Scheme,University College London,98597257,3465.00,Training Awards - Postgraduates
BEIS,UKRI - AHRC,11/10/2019,Recruitment Costs,Corporate Services,Warwick University Services Ltd,98600238,250.00,Recruitment Costs
BEIS,UKRI - AHRC,11/10/2019,Corporate Events,Operations,Calder Conference Ltd,98600873,450.00,Corporate Events
BEIS,UKRI - AHRC,11/10/2019,T&S UK - Other Charges,Newton Programme Delivery,Unspecified,98602630,17.19,T&S UK - Other Charges
BEIS,UKRI - AHRC,11/10/2019,T&S UK - Other Charges,SMT,Unspecified,98602631,6.55,T&S UK - Other Charges
BEIS,UKRI - AHRC,11/10/2019,T&S UK - Parking Tolls Congestion Charges,SMT,Unspecified,98602631,43.60,T&S UK - Parking Tolls Congestion Charges
BEIS,UKRI - AHRC,11/10/2019,T&S UK - Subsistence,SMT,Unspecified,98602631,16.30,T&S UK - Subsistence
BEIS,UKRI - AHRC,11/10/2019,T&S UK - Subsistence,SMT,Unspecified,98602631,24.50,T&S UK - Subsistence
BEIS,UKRI - AHRC,11/10/2019,T&S UK - Subsistence,SMT,Unspecified,98602631,19.19,T&S UK - Subsistence
BEIS,UKRI - AHRC,11/10/2019,T&S UK - Mileage,SMT,Unspecified,98602632,45.00,T&S UK - Mileage
BEIS,UKRI - AHRC,11/10/2019,T&S UK - Mileage,Public and Stakeholder Engagement,Unspecified,98602633,59.07,T&S UK - Mileage
BEIS,UKRI - AHRC,11/10/2019,T&S UK - Subsistence,Public and Stakeholder Engagement,Unspecified,98602633,11.50,T&S UK - Subsistence
BEIS,UKRI - AHRC,11/10/2019,T&S Overseas - Public Transport,International Partnership and Engagement,Unspecified,98602634,51.40,T&S Overseas - Public Transport
BEIS,UKRI - AHRC,11/10/2019,T&S Overseas - Subsistence,International Partnership and Engagement,Unspecified,98602634,26.37,T&S Overseas - Subsistence
BEIS,UKRI - AHRC,11/10/2019,T&S Overseas - Subsistence,International Partnership and Engagement,Unspecified,98602634,6.99,T&S Overseas - Subsistence
BEIS,UKRI - AHRC,11/10/2019,T&S UK - Public Transport,International Partnership and Engagement,Unspecified,98602635,7.40,T&S UK - Public Transport
BEIS,UKRI - AHRC,11/10/2019,T&S UK - Subsistence,International Partnership and Engagement,Unspecified,98602635,2.50,T&S UK - Subsistence
BEIS,UKRI - AHRC,14/10/2019,Consultancy Services,HR,Everwell Occupational Health Ltd,98602739,144.00,Consultancy Services
BEIS,UKRI - AHRC,14/10/2019,Hospitality,Operations,Elior UK plc,98602749,453.30,Hospitality
BEIS,UKRI - AHRC,14/10/2019,NI Payable Salaries,Balance Sheet,HM Revenue & Customs,98602751,52353.82,NI Payable Salaries
BEIS,UKRI - AHRC,14/10/2019,PAYE Payable Salaries,Balance Sheet,HM Revenue & Customs,98602752,39268.70,PAYE Payable Salaries
BEIS,UKRI - AHRC,14/10/2019,Student Loans,Balance Sheet,HM Revenue & Customs,98602753,4836.00,Student Loans
BEIS,UKRI - AHRC,14/10/2019,Apprenticeship Levy,Corporate Services,HM Revenue & Customs,98602754,1374.00,Apprenticeship Levy
BEIS,UKRI - AHRC,14/10/2019,T&S UK - Other Charges,"History, Heritage, Languages and Literature",Unspecified,98604079,119.96,T&S UK - Other Charges
BEIS,UKRI - AHRC,14/10/2019,T&S UK - Parking Tolls Congestion Charges,SMT,Unspecified,98604080,50.50,T&S UK - Parking Tolls Congestion Charges
BEIS,UKRI - AHRC,14/10/2019,T&S UK - Public Transport,SMT,Unspecified,98604080,10.00,T&S UK - Public Transport
BEIS,UKRI - AHRC,14/10/2019,T&S UK - Subsistence,SMT,Unspecified,98604080,25.35,T&S UK - Subsistence
BEIS,UKRI - AHRC,14/10/2019,T&S UK - Subsistence,SMT,Unspecified,98604080,23.55,T&S UK - Subsistence
BEIS,UKRI - AHRC,14/10/2019,T&S UK - Subsistence,SMT,Unspecified,98604080,12.49,T&S UK - Subsistence
BEIS,UKRI - AHRC,14/10/2019,T&S UK - Subsistence,Public and Stakeholder Engagement,Unspecified,98604081,4.98,T&S UK - Subsistence
BEIS,UKRI - AHRC,14/10/2019,T&S UK - Subsistence,Public and Stakeholder Engagement,Unspecified,98604081,11.00,T&S UK - Subsistence
BEIS,UKRI - AHRC,15/10/2019,Voluntary Deductions,Balance Sheet,Chargive,98602759,9605.00,Voluntary Deductions
BEIS,UKRI - AHRC,15/10/2019,Union Deductions,Balance Sheet,PCS Union,98602761,96.29,Union Deductions
BEIS,UKRI - AHRC,15/10/2019,Ees Pension Deductions - JSS,Balance Sheet,RCPS Pension,98602762,10601.89,Ees Pension Deductions - JSS
BEIS,UKRI - AHRC,15/10/2019,Ers Pension Deductions - JSS,Balance Sheet,RCPS Pension,98602763,45820.85,Ers Pension Deductions - JSS
BEIS,UKRI - AHRC,15/10/2019,Partnership Pension Deductions,Balance Sheet,Scottish Widows,98602764,369.68,Partnership Pension Deductions
BEIS,UKRI - AHRC,15/10/2019,Ers Pension Deductions - JSS,Balance Sheet,Cabinet Office RM Shared Services,98602765,12.83,Ers Pension Deductions - JSS
BEIS,UKRI - AHRC,15/10/2019,Ees Pension Deductions - MyCSP,Balance Sheet,Cabinet Office RM Shared Services,98602766,4349.28,Ees Pension Deductions - MyCSP
BEIS,UKRI - AHRC,15/10/2019,Ers Pension Deductions - MyCSP,Balance Sheet,Cabinet Office RM Shared Services,98602767,22880.31,Ers Pension Deductions - MyCSP
BEIS,UKRI - AHRC,15/10/2019,Ees Pension Deductions - MRC,Balance Sheet,UKRI - Medical Research Council,98602768,341.88,Ees Pension Deductions - MRC
BEIS,UKRI - AHRC,15/10/2019,Ers Pension Deductions - MRC,Balance Sheet,UKRI - Medical Research Council,98602769,788.94,Ers Pension Deductions - MRC
BEIS,UKRI - AHRC,15/10/2019,Recruitment Costs,Corporate Services,Onefix Recruitment Ltd,98603469,798.00,Recruitment Costs
BEIS,UKRI - AHRC,15/10/2019,Non-staff travel and subsistance,Skills Strategy,Non Employee Expenses Supplier,98603854,70.85,Non-staff travel and subsistance
BEIS,UKRI - AHRC,15/10/2019,Non-staff travel and subsistance,International,Non Employee Expenses Supplier,98603855,325.10,Non-staff travel and subsistance
BEIS,UKRI - AHRC,15/10/2019,Contract Staff,PSU JRS,Alexander Mann Solutions Ltd,98604423,3423.12,Contract Staff
BEIS,UKRI - AHRC,15/10/2019,Contract Staff,PSU Project Office,Alexander Mann Solutions Ltd,98604435,2236.46,Contract Staff
BEIS,UKRI - AHRC,15/10/2019,T&S UK - Other Charges,Digital Arts and Humanities and Creative Industries,Unspecified,98604865,-125.00,T&S UK - Other Charges
BEIS,UKRI - AHRC,16/10/2019,T&S UK - Other Charges,Public and Stakeholder Engagement,Unspecified,98605507,6.00,T&S UK - Other Charges
BEIS,UKRI - AHRC,16/10/2019,T&S UK - Subsistence,Public and Stakeholder Engagement,Unspecified,98605507,13.85,T&S UK - Subsistence
BEIS,UKRI - AHRC,17/10/2019,Contract Staff,PSU Project Office,Alexander Mann Solutions Ltd,98593384,2795.58,Contract Staff
BEIS,UKRI - AHRC,17/10/2019,T&S UK - Public Transport,Industrial Strategy Challenge Fund (ISCF) - Creative Clusters,Unspecified,98605508,39.40,T&S UK - Public Transport
BEIS,UKRI - AHRC,17/10/2019,T&S UK - Subsistence,Industrial Strategy Challenge Fund (ISCF) - Creative Clusters,Unspecified,98605508,2.00,T&S UK - Subsistence
BEIS,UKRI - AHRC,17/10/2019,T&S UK - Subsistence,Industrial Strategy Challenge Fund (ISCF) - Creative Clusters,Unspecified,98605508,10.00,T&S UK - Subsistence
BEIS,UKRI - AHRC,18/10/2019,T&S UK - Public Transport,"History, Heritage, Languages and Literature",Unspecified,98607585,10.00,T&S UK - Public Transport
BEIS,UKRI - AHRC,18/10/2019,T&S UK - Subsistence,"History, Heritage, Languages and Literature",Unspecified,98607585,23.50,T&S UK - Subsistence
BEIS,UKRI - AHRC,18/10/2019,T&S UK - Subsistence,"History, Heritage, Languages and Literature",Unspecified,98607585,10.45,T&S UK - Subsistence
BEIS,UKRI - AHRC,18/10/2019,T&S UK - Public Transport,"History, Heritage, Languages and Literature",Unspecified,98607586,5.00,T&S UK - Public Transport
BEIS,UKRI - AHRC,18/10/2019,T&S UK - Public Transport,"History, Heritage, Languages and Literature",Unspecified,98607586,13.10,T&S UK - Public Transport
BEIS,UKRI - AHRC,21/10/2019,Marketing & PR,Public and Stakeholder Engagement,Unspecified,98607737,1750.00,Marketing & PR
BEIS,UKRI - AHRC,21/10/2019,T&S UK - Mileage,SMT,Unspecified,98608323,37.80,T&S UK - Mileage
BEIS,UKRI - AHRC,21/10/2019,T&S UK - Parking Tolls Congestion Charges,SMT,Unspecified,98608323,2.40,T&S UK - Parking Tolls Congestion Charges
BEIS,UKRI - AHRC,21/10/2019,T&S UK - Subsistence,PSU Project Office,Unspecified,98608324,6.70,T&S UK - Subsistence
BEIS,UKRI - AHRC,21/10/2019,T&S UK - Subsistence,PSU Project Office,Unspecified,98608324,6.20,T&S UK - Subsistence
BEIS,UKRI - AHRC,21/10/2019,T&S UK - Public Transport,PSU Project Office,Unspecified,98608325,13.10,T&S UK - Public Transport
BEIS,UKRI - AHRC,21/10/2019,T&S UK - Subsistence,PSU Project Office,Unspecified,98608325,6.00,T&S UK - Subsistence
BEIS,UKRI - AHRC,21/10/2019,T&S UK - Subsistence,PSU Project Office,Unspecified,98608325,23.98,T&S UK - Subsistence
BEIS,UKRI - AHRC,22/10/2019,Research Grant Expenditure,"History, Heritage, Languages and Literature",UKRI - Natural Environment Research Council,98601138,10000.00,Research Grant Expenditure
BEIS,UKRI - AHRC,22/10/2019,Nursery Deductions,Balance Sheet,EDENRED (UK GROUP) LTD,98607136,2268.73,Nursery Deductions
BEIS,UKRI - AHRC,22/10/2019,Non-staff travel and subsistance,Skills Strategy,Non Employee Expenses Supplier,98610221,56.40,Non-staff travel and subsistance
BEIS,UKRI - AHRC,22/10/2019,Non-staff travel and subsistance,Skills Strategy,Non Employee Expenses Supplier,98610222,296.95,Non-staff travel and subsistance
BEIS,UKRI - AHRC,22/10/2019,T&S UK - Vehicle Hire,SPF- Landscape Decisions,Non Employee Expenses Supplier,98610907,195.00,T&S UK - Vehicle Hire
BEIS,UKRI - AHRC,23/10/2019,Non-staff travel and subsistance,Operations,Non Employee Expenses Supplier,98611943,132.05,Non-staff travel and subsistance
BEIS,UKRI - AHRC,24/10/2019,Contract Staff,PSU JRS,Alexander Mann Solutions Ltd,98608194,3423.12,Contract Staff
BEIS,UKRI - AHRC,24/10/2019,T&S UK - Parking Tolls Congestion Charges,Public and Stakeholder Engagement,Unspecified,98612849,6.90,T&S UK - Parking Tolls Congestion Charges
BEIS,UKRI - AHRC,24/10/2019,T&S UK - Subsistence,Public and Stakeholder Engagement,Unspecified,98612849,6.90,T&S UK - Subsistence
BEIS,UKRI - AHRC,24/10/2019,T&S UK - Subsistence,Public and Stakeholder Engagement,Unspecified,98612849,2.45,T&S UK - Subsistence
BEIS,UKRI - AHRC,24/10/2019,T&S UK - Subsistence,Public and Stakeholder Engagement,Unspecified,98612849,12.45,T&S UK - Subsistence
BEIS,UKRI - AHRC,24/10/2019,T&S UK - Parking Tolls Congestion Charges,Public and Stakeholder Engagement,Unspecified,98612850,5.60,T&S UK - Parking Tolls Congestion Charges
BEIS,UKRI - AHRC,24/10/2019,T&S UK - Subsistence,Public and Stakeholder Engagement,Unspecified,98612850,9.74,T&S UK - Subsistence
BEIS,UKRI - AHRC,24/10/2019,Conferences & Seminars,Public and Stakeholder Engagement,Wiltshire Council,98613100,90.00,Conferences & Seminars
BEIS,UKRI - AHRC,24/10/2019,Non-staff travel and subsistance,SMT,Non Employee Expenses Supplier,98613266,186.55,Non-staff travel and subsistance
BEIS,UKRI - AHRC,24/10/2019,Non-staff travel and subsistance,SMT,Non Employee Expenses Supplier,98613267,163.30,Non-staff travel and subsistance
BEIS,UKRI - AHRC,24/10/2019,Non-staff travel and subsistance,SMT,Non Employee Expenses Supplier,98613268,320.66,Non-staff travel and subsistance
BEIS,UKRI - AHRC,24/10/2019,Non-staff travel and subsistance,SMT,Non Employee Expenses Supplier,98613269,140.08,Non-staff travel and subsistance
BEIS,UKRI - AHRC,24/10/2019,Non-staff travel and subsistance,SMT,Non Employee Expenses Supplier,98613270,112.28,Non-staff travel and subsistance
BEIS,UKRI - AHRC,24/10/2019,Non-staff travel and subsistance,Skills Strategy,Non Employee Expenses Supplier,98613271,235.00,Non-staff travel and subsistance
BEIS,UKRI - AHRC,24/10/2019,Non-staff travel and subsistance,Fund for International Collaboration,Non Employee Expenses Supplier,98613272,58.15,Non-staff travel and subsistance
BEIS,UKRI - AHRC,24/10/2019,Non-staff travel and subsistance,Fund for International Collaboration,Non Employee Expenses Supplier,98613273,83.73,Non-staff travel and subsistance
BEIS,UKRI - AHRC,24/10/2019,Non-staff travel and subsistance,Fund for International Collaboration,Non Employee Expenses Supplier,98613274,156.40,Non-staff travel and subsistance
BEIS,UKRI - AHRC,25/10/2019,Voluntary Deductions,Balance Sheet,Swindon Office Sports and Social Club,98602760,40.00,Voluntary Deductions
BEIS,UKRI - AHRC,25/10/2019,T&S UK - Subsistence,Digital Arts and Humanities and Creative Industries,Unspecified,98614397,4.00,T&S UK - Subsistence
BEIS,UKRI - AHRC,25/10/2019,T&S UK - Subsistence,Digital Arts and Humanities and Creative Industries,Unspecified,98614397,25.67,T&S UK - Subsistence
BEIS,UKRI - AHRC,25/10/2019,T&S UK - Subsistence,Digital Arts and Humanities and Creative Industries,Unspecified,98614397,12.17,T&S UK - Subsistence
BEIS,UKRI - AHRC,25/10/2019,T&S UK - Subsistence,Digital Arts and Humanities and Creative Industries,Unspecified,98614397,5.00,T&S UK - Subsistence
BEIS,UKRI - AHRC,25/10/2019,T&S UK - Mileage,Digital Arts and Humanities and Creative Industries,Unspecified,98614398,11.71,T&S UK - Mileage
BEIS,UKRI - AHRC,25/10/2019,T&S UK - Other Charges,Digital Arts and Humanities and Creative Industries,Unspecified,98614398,5.50,T&S UK - Other Charges
BEIS,UKRI - AHRC,25/10/2019,T&S UK - Parking Tolls Congestion Charges,Digital Arts and Humanities and Creative Industries,Unspecified,98614398,85.80,T&S UK - Parking Tolls Congestion Charges
BEIS,UKRI - AHRC,25/10/2019,T&S UK - Public Transport,Digital Arts and Humanities and Creative Industries,Unspecified,98614398,8.00,T&S UK - Public Transport
BEIS,UKRI - AHRC,25/10/2019,T&S UK - Subsistence,Digital Arts and Humanities and Creative Industries,Unspecified,98614398,8.68,T&S UK - Subsistence
BEIS,UKRI - AHRC,25/10/2019,T&S UK - Subsistence,Digital Arts and Humanities and Creative Industries,Unspecified,98614398,11.10,T&S UK - Subsistence
BEIS,UKRI - AHRC,25/10/2019,T&S UK - Subsistence,Digital Arts and Humanities and Creative Industries,Unspecified,98614398,15.00,T&S UK - Subsistence
BEIS,UKRI - AHRC,25/10/2019,T&S UK - Other Charges,Newton Programme Delivery,Unspecified,98614399,16.48,T&S UK - Other Charges
BEIS,UKRI - AHRC,25/10/2019,T&S Overseas - Public Transport,Newton Programme Delivery,Unspecified,98614400,2.42,T&S Overseas - Public Transport
BEIS,UKRI - AHRC,25/10/2019,T&S Overseas - Subsistence,Newton Programme Delivery,Unspecified,98614400,15.00,T&S Overseas - Subsistence
BEIS,UKRI - AHRC,25/10/2019,T&S Overseas - Subsistence,Newton Programme Delivery,Unspecified,98614400,7.50,T&S Overseas - Subsistence
BEIS,UKRI - AHRC,25/10/2019,T&S Overseas - Subsistence,Newton Programme Delivery,Unspecified,98614400,15.89,T&S Overseas - Subsistence
BEIS,UKRI - AHRC,25/10/2019,T&S Overseas - Subsistence,Newton Programme Delivery,Unspecified,98614400,52.18,T&S Overseas - Subsistence
BEIS,UKRI - AHRC,25/10/2019,T&S UK - Other Charges,International,Unspecified,98614401,3.03,T&S UK - Other Charges
BEIS,UKRI - AHRC,25/10/2019,T&S UK - Subsistence,International,Unspecified,98614401,20.95,T&S UK - Subsistence
BEIS,UKRI - AHRC,25/10/2019,T&S UK - Subsistence,International,Unspecified,98614401,5.00,T&S UK - Subsistence
BEIS,UKRI - AHRC,28/10/2019,Contract Staff,PSU JRS,Alexander Mann Solutions Ltd,98613798,1580.04,Contract Staff
BEIS,UKRI - AHRC,28/10/2019,Contract Staff,PSU JRS,Alexander Mann Solutions Ltd,98613798,1843.08,Contract Staff
BEIS,UKRI - AHRC,28/10/2019,Recruitment Costs,Corporate Services,Onefix Recruitment Ltd,98614219,798.00,Recruitment Costs
BEIS,UKRI - AHRC,29/10/2019,Non-staff travel and subsistance,Operations,Non Employee Expenses Supplier,98615481,85.40,Non-staff travel and subsistance
BEIS,UKRI - AHRC,29/10/2019,Non-staff travel and subsistance,International Partnership and Engagement,Non Employee Expenses Supplier,98615482,110.60,Non-staff travel and subsistance
BEIS,UKRI - AHRC,29/10/2019,Non-staff travel and subsistance,International Partnership and Engagement,Non Employee Expenses Supplier,98615483,241.55,Non-staff travel and subsistance
BEIS,UKRI - AHRC,29/10/2019,Non-staff travel and subsistance,Skills Strategy,Non Employee Expenses Supplier,98615484,49.70,Non-staff travel and subsistance
BEIS,UKRI - AHRC,29/10/2019,T&S UK - Other Charges,Newton Programme Delivery,Unspecified,98616345,4.99,T&S UK - Other Charges
BEIS,UKRI - AHRC,29/10/2019,T&S UK - Public Transport,Newton Programme Delivery,Unspecified,98616345,2.39,T&S UK - Public Transport
BEIS,UKRI - AHRC,29/10/2019,T&S UK - Public Transport,Newton Programme Delivery,Unspecified,98616345,11.75,T&S UK - Public Transport
BEIS,UKRI - AHRC,29/10/2019,T&S UK - Subsistence,Newton Programme Delivery,Unspecified,98616345,7.50,T&S UK - Subsistence
BEIS,UKRI - AHRC,29/10/2019,T&S UK - Subsistence,Newton Programme Delivery,Unspecified,98616345,16.94,T&S UK - Subsistence
BEIS,UKRI - AHRC,29/10/2019,T&S UK - Subsistence,Newton Programme Delivery,Unspecified,98616345,10.00,T&S UK - Subsistence
BEIS,UKRI - AHRC,29/10/2019,T&S UK - Accommodation,SMT,Unspecified,98616346,76.50,T&S UK - Accommodation
BEIS,UKRI - AHRC,29/10/2019,T&S UK - Public Transport,SMT,Unspecified,98616346,29.60,T&S UK - Public Transport
BEIS,UKRI - AHRC,29/10/2019,T&S UK - Subsistence,SMT,Unspecified,98616346,4.65,T&S UK - Subsistence
BEIS,UKRI - AHRC,29/10/2019,T&S Overseas - Public Transport,SMT,Unspecified,98616347,17.09,T&S Overseas - Public Transport
BEIS,UKRI - AHRC,29/10/2019,T&S Overseas - Subsistence,SMT,Unspecified,98616347,5.00,T&S Overseas - Subsistence
BEIS,UKRI - AHRC,29/10/2019,T&S Overseas - Subsistence,SMT,Unspecified,98616347,19.75,T&S Overseas - Subsistence
BEIS,UKRI - AHRC,30/10/2019,Non-staff travel and subsistance,SMT,Non Employee Expenses Supplier,98616806,206.00,Non-staff travel and subsistance
BEIS,UKRI - AHRC,30/10/2019,Consultancy Services,Digital Arts and Humanities and Creative Industries,Zeff Associates Ltd,98616952,600.00,Consultancy Services
BEIS,UKRI - AHRC,31/10/2019,Hospitality,International,Calder Conference Ltd,98617288,7320.00,Hospitality
BEIS,UKRI - AHRC,31/10/2019,Prepayments - AP USE ONLY,Balance Sheet,House of Commons,98617378,350.00,Prepayments - AP USE ONLY
BEIS,UKRI - AHRC,31/10/2019,Non-staff travel and subsistance,Fund for International Collaboration,Non Employee Expenses Supplier,98618107,126.17,Non-staff travel and subsistance
BEIS,UKRI - AHRC,31/10/2019,Non-staff travel and subsistance,Executive Office,Non Employee Expenses Supplier,98618108,113.00,Non-staff travel and subsistance
BEIS,UKRI - AHRC,31/10/2019,T&S UK - Mileage,SMT,Unspecified,98619018,36.00,T&S UK - Mileage
BEIS,UKRI - AHRC,31/10/2019,T&S UK - Accommodation,GCRF - Programme Delivery,Unspecified,98619019,119.00,T&S UK - Accommodation
BEIS,UKRI - AHRC,31/10/2019,T&S UK - Subsistence,GCRF - Programme Delivery,Unspecified,98619019,4.50,T&S UK - Subsistence
BEIS,UKRI - AHRC,31/10/2019,T&S UK - Subsistence,GCRF - Programme Delivery,Unspecified,98619019,8.10,T&S UK - Subsistence
BEIS,UKRI - AHRC,31/10/2019,T&S UK - Subsistence,GCRF - Programme Delivery,Unspecified,98619019,10.00,T&S UK - Subsistence
BEIS,UKRI - AHRC,31/10/2019,Health & Safety (inc. Medicals & Opticians),"History, Heritage, Languages and Literature",Unspecified,98619020,12.99,Health & Safety (inc. Medicals & Opticians)
BEIS,UKRI - BBSRC,01/10/2019,Research Grant Expenditure,FG - Accounts & Business Planning,UKRI - Medical Research Council,98590555,56657.47,Research Grant Expenditure
BEIS,UKRI - BBSRC,01/10/2019,Research Grant Expenditure,Science Group,UKRI - Medical Research Council,98590573,149229.50,Research Grant Expenditure
BEIS,UKRI - BBSRC,01/10/2019,Research Grant Expenditure,Science Group,UKRI - Medical Research Council,98590604,17480.97,Research Grant Expenditure
BEIS,UKRI - BBSRC,01/10/2019,Research Grant Expenditure,Science Group,UKRI - Medical Research Council,98590607,114942.17,Research Grant Expenditure
BEIS,UKRI - BBSRC,01/10/2019,Research Grant Expenditure,Science Group,UKRI - Medical Research Council,98590610,104726.67,Research Grant Expenditure
BEIS,UKRI - BBSRC,01/10/2019,Research Grant Expenditure,Science Group,UKRI - Medical Research Council,98590615,24565.74,Research Grant Expenditure
BEIS,UKRI - BBSRC,01/10/2019,Research Grant Expenditure,Science Group,UKRI - Medical Research Council,98590627,19966.13,Research Grant Expenditure
BEIS,UKRI - BBSRC,01/10/2019,International Awards - Non Capital,GCRF Awards,UKRI - Medical Research Council,98590637,314679.47,International Awards - Non Capital
BEIS,UKRI - BBSRC,01/10/2019,Research Grant Expenditure,Science Group,UKRI - Medical Research Council,98590641,8779.57,Research Grant Expenditure
BEIS,UKRI - BBSRC,01/10/2019,Research Grant Expenditure,Science Group,UKRI - Medical Research Council,98590642,8153.52,Research Grant Expenditure
BEIS,UKRI - BBSRC,01/10/2019,Research Grant Expenditure,FG - Accounts & Business Planning,UKRI - Medical Research Council,98590645,29307.03,Research Grant Expenditure
BEIS,UKRI - BBSRC,01/10/2019,Research Grant Expenditure,FG - Accounts & Business Planning,UKRI - Medical Research Council,98590647,18896.99,Research Grant Expenditure
BEIS,UKRI - BBSRC,01/10/2019,Research Grant Expenditure,Science Group,UKRI - Engineering & Physical Sciences Research Council,98591350,319831.38,Research Grant Expenditure
BEIS,UKRI - BBSRC,01/10/2019,Fellowships,Innovation and Skills Group,UKRI - Medical Research Council,98591382,83414.87,Fellowships
BEIS,UKRI - BBSRC,01/10/2019,Research Grant Expenditure,Science Group,UKRI - Medical Research Council,98591384,59906.23,Research Grant Expenditure
BEIS,UKRI - BBSRC,01/10/2019,Research Grant Expenditure,Science Group,UKRI - Medical Research Council,98591386,214048.97,Research Grant Expenditure
BEIS,UKRI - BBSRC,01/10/2019,Research Grant Expenditure,Science Group,UKRI - Medical Research Council,98591387,11003.17,Research Grant Expenditure
BEIS,UKRI - BBSRC,01/10/2019,Research Grant Expenditure,Science Group,UKRI - Medical Research Council,98591391,34901.34,Research Grant Expenditure
BEIS,UKRI - BBSRC,01/10/2019,Health & Safety (inc. Medicals & Opticians),PDG - Director,Abbey Business Interiors Ltd,98592464,133.20,Health & Safety (inc. Medicals & Opticians)
BEIS,UKRI - BBSRC,01/10/2019,Non-staff travel and subsistance,Science Group - Delivery Function,Non Employee Expenses Supplier,98592861,147.77,Non-staff travel and subsistance
BEIS,UKRI - BBSRC,01/10/2019,Non-staff travel and subsistance,Science Group - Delivery Function,Non Employee Expenses Supplier,98592862,107.80,Non-staff travel and subsistance
BEIS,UKRI - BBSRC,01/10/2019,Non-staff travel and subsistance,Science Group - Delivery Function,Non Employee Expenses Supplier,98592863,199.10,Non-staff travel and subsistance
BEIS,UKRI - BBSRC,01/10/2019,Non-staff travel and subsistance,Innovation and Skills Group CDSU,Non Employee Expenses Supplier,98592864,263.20,Non-staff travel and subsistance
BEIS,UKRI - BBSRC,01/10/2019,Non-staff travel and subsistance,Innovation and Skills Group CDSU,Non Employee Expenses Supplier,98592865,364.86,Non-staff travel and subsistance
BEIS,UKRI - BBSRC,01/10/2019,Research Grant Expenditure,Research: Strategic,Technology Strategy Board (Innovate UK),98593284,1500000.00,Research Grant Expenditure
BEIS,UKRI - BBSRC,01/10/2019,Printing & Stationery,CIMG - Director,Banner Group Ltd,98593633,7.55,Printing & Stationery
BEIS,UKRI - BBSRC,01/10/2019,Purchase of non capital equipment,CIMG - Director,Banner Group Ltd,98593633,1.06,Purchase of non capital equipment
BEIS,UKRI - BBSRC,01/10/2019,Printing & Stationery,CIMG - Director,Banner Group Ltd,98593634,4.54,Printing & Stationery
BEIS,UKRI - BBSRC,01/10/2019,Research Institutes - Capital Grants: Major Works,Pirbright,The Pirbright Institute,98593802,37353.49,Research Institutes - Capital Grants: Major Works
BEIS,UKRI - BBSRC,01/10/2019,Agency Staff,PDG - Director,Hays Specialist Recruitment Ltd,98593887,916.40,Agency Staff
BEIS,UKRI - BBSRC,01/10/2019,Recruitment Costs,PDG - Director,Warwick University Services Ltd,98594942,300.00,Recruitment Costs
BEIS,UKRI - BBSRC,01/10/2019,T&S UK - Other Charges,Science Group,Unspecified,98595060,2.10,T&S UK - Other Charges
BEIS,UKRI - BBSRC,01/10/2019,T&S UK - Public Transport,Science Group,Unspecified,98595060,26.00,T&S UK - Public Transport
BEIS,UKRI - BBSRC,01/10/2019,T&S UK - Subsistence,Science Group,Unspecified,98595060,5.40,T&S UK - Subsistence
BEIS,UKRI - BBSRC,01/10/2019,T&S UK - Subsistence,Science Group,Unspecified,98595060,32.58,T&S UK - Subsistence
BEIS,UKRI - BBSRC,01/10/2019,T&S UK - Subsistence,Science Group,Unspecified,98595060,12.75,T&S UK - Subsistence
BEIS,UKRI - BBSRC,01/10/2019,T&S UK - Subsistence,Science Group,Unspecified,98595060,10.00,T&S UK - Subsistence
BEIS,UKRI - BBSRC,01/10/2019,T&S UK - Accommodation,Science Group,Unspecified,98595061,135.00,T&S UK - Accommodation
BEIS,UKRI - BBSRC,01/10/2019,T&S UK - Public Transport,Science Group,Unspecified,98595061,44.00,T&S UK - Public Transport
BEIS,UKRI - BBSRC,01/10/2019,T&S UK - Subsistence,Science Group,Unspecified,98595061,6.45,T&S UK - Subsistence
BEIS,UKRI - BBSRC,01/10/2019,T&S UK - Subsistence,Science Group,Unspecified,98595061,5.00,T&S UK - Subsistence
BEIS,UKRI - BBSRC,02/10/2019,Agency Staff,PDG - Director,Hays Specialist Recruitment Ltd,98576436,743.95,Agency Staff
BEIS,UKRI - BBSRC,02/10/2019,Agency Staff,PDG - Director,Hays Specialist Recruitment Ltd,98576436,193.49,Agency Staff
BEIS,UKRI - BBSRC,02/10/2019,Conferences & Seminars,Innovation and Skills Group CDSU,Calder Conference Ltd,98586369,335.00,Conferences & Seminars
BEIS,UKRI - BBSRC,02/10/2019,Research Institutes - Capital Grants: Major Works,Estates - Projects,EMBL (European Molecular Biology Laboratory),98588854,11458.20,Research Institutes - Capital Grants: Major Works
BEIS,UKRI - BBSRC,02/10/2019,Meetings & Catering,CE - Chief Executive,Harbour & Jones Ltd T/A Dartmouth House,98594735,18.00,Meetings & Catering
BEIS,UKRI - BBSRC,02/10/2019,T&S UK - Public Transport,Innovation and Skills Group CDSU,Unspecified,98595063,6.70,T&S UK - Public Transport
BEIS,UKRI - BBSRC,02/10/2019,T&S UK - Subsistence,Innovation and Skills Group CDSU,Unspecified,98595063,5.00,T&S UK - Subsistence
BEIS,UKRI - BBSRC,02/10/2019,T&S UK - Subsistence,Innovation and Skills Group CDSU,Unspecified,98595534,10.00,T&S UK - Subsistence
BEIS,UKRI - BBSRC,02/10/2019,T&S UK - Subsistence,CE - Chief Executive,Unspecified,98595536,10.00,T&S UK - Subsistence
BEIS,UKRI - BBSRC,02/10/2019,T&S UK - Subsistence,CIMG - Director,Unspecified,98595537,25.00,T&S UK - Subsistence
BEIS,UKRI - BBSRC,02/10/2019,T&S UK - Subsistence,CIMG - Director,Unspecified,98595537,5.00,T&S UK - Subsistence
BEIS,UKRI - BBSRC,02/10/2019,T&S UK - Other Charges,Science Group - Delivery Function,Unspecified,98595538,5.00,T&S UK - Other Charges
BEIS,UKRI - BBSRC,02/10/2019,T&S UK - Subsistence,Science Group - Delivery Function,Unspecified,98595538,5.00,T&S UK - Subsistence
BEIS,UKRI - BBSRC,02/10/2019,T&S UK - Subsistence,CE - CPS,Unspecified,98595540,6.45,T&S UK - Subsistence
BEIS,UKRI - BBSRC,03/10/2019,Recruitment Costs,PDG - Director,Warwick University Services Ltd,98595762,300.00,Recruitment Costs
BEIS,UKRI - BBSRC,03/10/2019,Legal & Professional Services,CIMG - Director,Rothamsted Research Ltd,98595816,5000.00,Legal & Professional Services
BEIS,UKRI - BBSRC,03/10/2019,Research Institutes - Competitive Strategic Grant,IBERS,Ibers - Aberystwyth University,98596017,86360.99,Research Institutes - Competitive Strategic Grant
BEIS,UKRI - BBSRC,03/10/2019,Research Institutes - Competitive Strategic Grant,IBERS,Ibers - Aberystwyth University,98596017,46980.67,Research Institutes - Competitive Strategic Grant
BEIS,UKRI - BBSRC,03/10/2019,Research Institutes - Competitive Strategic Grant,IBERS,Ibers - Aberystwyth University,98596017,2916.67,Research Institutes - Competitive Strategic Grant
BEIS,UKRI - BBSRC,03/10/2019,T&S UK - Other Charges,Innovation and Skills Group,Unspecified,98596275,1.99,T&S UK - Other Charges
BEIS,UKRI - BBSRC,03/10/2019,T&S UK - Public Transport,Innovation and Skills Group,Unspecified,98596275,4.00,T&S UK - Public Transport
BEIS,UKRI - BBSRC,03/10/2019,T&S UK - Subsistence,Innovation and Skills Group,Unspecified,98596275,11.90,T&S UK - Subsistence
BEIS,UKRI - BBSRC,03/10/2019,T&S UK - Subsistence,Innovation and Skills Group,Unspecified,98596275,19.00,T&S UK - Subsistence
BEIS,UKRI - BBSRC,03/10/2019,T&S UK - Subsistence,Innovation and Skills Group,Unspecified,98596275,5.00,T&S UK - Subsistence
BEIS,UKRI - BBSRC,03/10/2019,T&S UK - Subsistence,Science Group,Unspecified,98596276,10.00,T&S UK - Subsistence
BEIS,UKRI - BBSRC,03/10/2019,T&S UK - Public Transport,RISD - UKRO,Unspecified,98596277,312.00,T&S UK - Public Transport
BEIS,UKRI - BBSRC,03/10/2019,T&S UK - Subsistence,RISD - UKRO,Unspecified,98596277,50.00,T&S UK - Subsistence
BEIS,UKRI - BBSRC,03/10/2019,T&S UK - Subsistence,RISD - UKRO,Unspecified,98596277,10.00,T&S UK - Subsistence
BEIS,UKRI - BBSRC,03/10/2019,T&S UK - Mileage,Innovation and Skills Group,Unspecified,98596278,348.30,T&S UK - Mileage
BEIS,UKRI - BBSRC,03/10/2019,T&S UK - Public Transport,Innovation and Skills Group,Unspecified,98596278,18.00,T&S UK - Public Transport
BEIS,UKRI - BBSRC,03/10/2019,T&S UK - Subsistence,Innovation and Skills Group,Unspecified,98596278,7.50,T&S UK - Subsistence
BEIS,UKRI - BBSRC,03/10/2019,T&S UK - Subsistence,Innovation and Skills Group,Unspecified,98596278,25.00,T&S UK - Subsistence
BEIS,UKRI - BBSRC,03/10/2019,T&S UK - Subsistence,Innovation and Skills Group,Unspecified,98596278,49.28,T&S UK - Subsistence
BEIS,UKRI - BBSRC,03/10/2019,T&S UK - Subsistence,Innovation and Skills Group,Unspecified,98596278,20.00,T&S UK - Subsistence
BEIS,UKRI - BBSRC,03/10/2019,T&S UK - Subsistence,Innovation and Skills Group,Unspecified,98596278,18.45,T&S UK - Subsistence
BEIS,UKRI - BBSRC,04/10/2019,Purchase of non capital equipment,JBOS - Maintenance,Abbey Business Interiors Ltd,98591954,761.27,Purchase of non capital equipment
BEIS,UKRI - BBSRC,04/10/2019,Recruitment Costs,PDG - Director,Onefix Recruitment Ltd,98596523,378.00,Recruitment Costs
BEIS,UKRI - BBSRC,04/10/2019,Recruitment Costs,PDG - Director,Onefix Recruitment Ltd,98596529,150.00,Recruitment Costs
BEIS,UKRI - BBSRC,04/10/2019,Recruitment Costs,PDG - Director,Onefix Recruitment Ltd,98596531,150.00,Recruitment Costs
BEIS,UKRI - BBSRC,04/10/2019,Security Services,FG - Estates,Babraham Institute,98596664,3780.00,Security Services
BEIS,UKRI - BBSRC,04/10/2019,Security Services,FG - Estates,Babraham Institute,98596666,4392.00,Security Services
BEIS,UKRI - BBSRC,04/10/2019,Legal & Professional Services,FG - Estates,Womble Bond Dickinson LLP,98596677,346.46,Legal & Professional Services
BEIS,UKRI - BBSRC,04/10/2019,Non-staff travel and subsistance,Science Group - Delivery Function,Corporate Travel Management (North) Ltd,98596690,0.25,Non-staff travel and subsistance
BEIS,UKRI - BBSRC,04/10/2019,Non-staff travel and subsistance,Science Group - Delivery Function,Corporate Travel Management (North) Ltd,98596690,75.00,Non-staff travel and subsistance
BEIS,UKRI - BBSRC,04/10/2019,Non-staff travel and subsistance,Science Group - Delivery Function,Corporate Travel Management (North) Ltd,98596690,0.25,Non-staff travel and subsistance
BEIS,UKRI - BBSRC,04/10/2019,Non-staff travel and subsistance,Science Group - Delivery Function,Corporate Travel Management (North) Ltd,98596690,75.00,Non-staff travel and subsistance
BEIS,UKRI - BBSRC,04/10/2019,T&S Overseas - Accommodation,BBSRC Champions,Corporate Travel Management (North) Ltd,98596690,179.88,T&S Overseas - Accommodation
BEIS,UKRI - BBSRC,04/10/2019,T&S Overseas - Accommodation,CE - IRU,Corporate Travel Management (North) Ltd,98596690,276.16,T&S Overseas - Accommodation
BEIS,UKRI - BBSRC,04/10/2019,T&S Overseas - Accommodation,CE - IRU,Corporate Travel Management (North) Ltd,98596690,211.28,T&S Overseas - Accommodation
BEIS,UKRI - BBSRC,04/10/2019,T&S Overseas - Accommodation,CE - IRU,Corporate Travel Management (North) Ltd,98596690,0.50,T&S Overseas - Accommodation
BEIS,UKRI - BBSRC,04/10/2019,T&S Overseas - Accommodation,CE - IRU,Corporate Travel Management (North) Ltd,98596690,1.44,T&S Overseas - Accommodation
BEIS,UKRI - BBSRC,04/10/2019,T&S Overseas - Accommodation,CE - IRU,Corporate Travel Management (North) Ltd,98596690,131.08,T&S Overseas - Accommodation
BEIS,UKRI - BBSRC,04/10/2019,T&S Overseas - Accommodation,CE - IRU,Corporate Travel Management (North) Ltd,98596690,0.39,T&S Overseas - Accommodation
BEIS,UKRI - BBSRC,04/10/2019,T&S Overseas - Accommodation,European Initiatives,Corporate Travel Management (North) Ltd,98596690,274.59,T&S Overseas - Accommodation
BEIS,UKRI - BBSRC,04/10/2019,T&S Overseas - Accommodation,Science Group,Corporate Travel Management (North) Ltd,98596690,174.61,T&S Overseas - Accommodation
BEIS,UKRI - BBSRC,04/10/2019,T&S Overseas - Accommodation,Science Group,Corporate Travel Management (North) Ltd,98596690,174.61,T&S Overseas - Accommodation
BEIS,UKRI - BBSRC,04/10/2019,T&S Overseas - Accommodation,Science Group,Corporate Travel Management (North) Ltd,98596690,211.28,T&S Overseas - Accommodation
BEIS,UKRI - BBSRC,04/10/2019,T&S Overseas - Accommodation,Science Group,Corporate Travel Management (North) Ltd,98596690,211.28,T&S Overseas - Accommodation
BEIS,UKRI - BBSRC,04/10/2019,T&S Overseas - Accommodation,Science Group,Corporate Travel Management (North) Ltd,98596690,0.80,T&S Overseas - Accommodation
BEIS,UKRI - BBSRC,04/10/2019,T&S Overseas - Accommodation,Science Group,Corporate Travel Management (North) Ltd,98596690,218.55,T&S Overseas - Accommodation
BEIS,UKRI - BBSRC,04/10/2019,T&S Overseas - Accommodation,Science Group,Corporate Travel Management (North) Ltd,98596690,2.00,T&S Overseas - Accommodation
BEIS,UKRI - BBSRC,04/10/2019,T&S Overseas - Accommodation,Science Group,Corporate Travel Management (North) Ltd,98596690,111.93,T&S Overseas - Accommodation
BEIS,UKRI - BBSRC,04/10/2019,T&S Overseas - Accommodation,Science Group,Corporate Travel Management (North) Ltd,98596690,256.34,T&S Overseas - Accommodation
BEIS,UKRI - BBSRC,04/10/2019,T&S Overseas - Accommodation,Science Group,Corporate Travel Management (North) Ltd,98596690,122.00,T&S Overseas - Accommodation
BEIS,UKRI - BBSRC,04/10/2019,T&S Overseas - Accommodation,Science Group,Corporate Travel Management (North) Ltd,98596690,0.40,T&S Overseas - Accommodation
BEIS,UKRI - BBSRC,04/10/2019,T&S Overseas - Accommodation,Science Group,Corporate Travel Management (North) Ltd,98596690,0.16,T&S Overseas - Accommodation
BEIS,UKRI - BBSRC,04/10/2019,T&S Overseas - Accommodation,Science Group � Admin Function,Corporate Travel Management (North) Ltd,98596690,307.96,T&S Overseas - Accommodation
BEIS,UKRI - BBSRC,04/10/2019,T&S Overseas - Flights,CE - CPS,Corporate Travel Management (North) Ltd,98596690,2.50,T&S Overseas - Flights
BEIS,UKRI - BBSRC,04/10/2019,T&S Overseas - Flights,CE - CPS,Corporate Travel Management (North) Ltd,98596690,131.98,T&S Overseas - Flights
BEIS,UKRI - BBSRC,04/10/2019,T&S Overseas - Flights,CE - IRU,Corporate Travel Management (North) Ltd,98596690,4.50,T&S Overseas - Flights
BEIS,UKRI - BBSRC,04/10/2019,T&S Overseas - Flights,CE - IRU,Corporate Travel Management (North) Ltd,98596690,199.00,T&S Overseas - Flights
BEIS,UKRI - BBSRC,04/10/2019,T&S Overseas - Flights,CE - IRU,Corporate Travel Management (North) Ltd,98596690,2.50,T&S Overseas - Flights
BEIS,UKRI - BBSRC,04/10/2019,T&S Overseas - Flights,CE - IRU,Corporate Travel Management (North) Ltd,98596690,751.64,T&S Overseas - Flights
BEIS,UKRI - BBSRC,04/10/2019,T&S Overseas - Flights,European Initiatives,Corporate Travel Management (North) Ltd,98596690,2.50,T&S Overseas - Flights
BEIS,UKRI - BBSRC,04/10/2019,T&S Overseas - Flights,European Initiatives,Corporate Travel Management (North) Ltd,98596690,51.00,T&S Overseas - Flights
BEIS,UKRI - BBSRC,04/10/2019,T&S Overseas - Flights,European Initiatives,Corporate Travel Management (North) Ltd,98596690,2.50,T&S Overseas - Flights
BEIS,UKRI - BBSRC,04/10/2019,T&S Overseas - Flights,European Initiatives,Corporate Travel Management (North) Ltd,98596690,104.00,T&S Overseas - Flights
BEIS,UKRI - BBSRC,04/10/2019,T&S Overseas - Flights,Innovation and Skills Group,Corporate Travel Management (North) Ltd,98596690,2.50,T&S Overseas - Flights
BEIS,UKRI - BBSRC,04/10/2019,T&S Overseas - Flights,Innovation and Skills Group,Corporate Travel Management (North) Ltd,98596690,443.44,T&S Overseas - Flights
BEIS,UKRI - BBSRC,04/10/2019,T&S Overseas - Flights,RISD - UKRO,Corporate Travel Management (North) Ltd,98596690,2.50,T&S Overseas - Flights
BEIS,UKRI - BBSRC,04/10/2019,T&S Overseas - Flights,RISD - UKRO,Corporate Travel Management (North) Ltd,98596690,18.60,T&S Overseas - Flights
BEIS,UKRI - BBSRC,04/10/2019,T&S Overseas - Flights,RISD - UKRO,Corporate Travel Management (North) Ltd,98596690,4.50,T&S Overseas - Flights
BEIS,UKRI - BBSRC,04/10/2019,T&S Overseas - Flights,RISD - UKRO,Corporate Travel Management (North) Ltd,98596690,60.00,T&S Overseas - Flights
BEIS,UKRI - BBSRC,04/10/2019,T&S Overseas - Flights,RISD - UKRO,Corporate Travel Management (North) Ltd,98596690,2.50,T&S Overseas - Flights
BEIS,UKRI - BBSRC,04/10/2019,T&S Overseas - Flights,RISD - UKRO,Corporate Travel Management (North) Ltd,98596690,98.69,T&S Overseas - Flights
BEIS,UKRI - BBSRC,04/10/2019,T&S Overseas - Flights,Science Group,Corporate Travel Management (North) Ltd,98596690,2.50,T&S Overseas - Flights
BEIS,UKRI - BBSRC,04/10/2019,T&S Overseas - Flights,Science Group,Corporate Travel Management (North) Ltd,98596690,145.82,T&S Overseas - Flights
BEIS,UKRI - BBSRC,04/10/2019,T&S Overseas - Flights,Science Group,Corporate Travel Management (North) Ltd,98596690,2.50,T&S Overseas - Flights
BEIS,UKRI - BBSRC,04/10/2019,T&S Overseas - Flights,Science Group,Corporate Travel Management (North) Ltd,98596690,222.84,T&S Overseas - Flights
BEIS,UKRI - BBSRC,04/10/2019,T&S Overseas - Public Transport,RISD - UKRO,Corporate Travel Management (North) Ltd,98596690,2.50,T&S Overseas - Public Transport
BEIS,UKRI - BBSRC,04/10/2019,T&S Overseas - Public Transport,RISD - UKRO,Corporate Travel Management (North) Ltd,98596690,90.00,T&S Overseas - Public Transport
BEIS,UKRI - BBSRC,04/10/2019,T&S Overseas - Public Transport,RISD - UKRO,Corporate Travel Management (North) Ltd,98596690,2.50,T&S Overseas - Public Transport
BEIS,UKRI - BBSRC,04/10/2019,T&S Overseas - Public Transport,RISD - UKRO,Corporate Travel Management (North) Ltd,98596690,113.36,T&S Overseas - Public Transport
BEIS,UKRI - BBSRC,04/10/2019,T&S Overseas - Public Transport,RISD - UKRO,Corporate Travel Management (North) Ltd,98596690,2.50,T&S Overseas - Public Transport
BEIS,UKRI - BBSRC,04/10/2019,T&S Overseas - Public Transport,RISD - UKRO,Corporate Travel Management (North) Ltd,98596690,136.00,T&S Overseas - Public Transport
BEIS,UKRI - BBSRC,04/10/2019,T&S Overseas - Public Transport,RISD - UKRO,Corporate Travel Management (North) Ltd,98596690,2.50,T&S Overseas - Public Transport
BEIS,UKRI - BBSRC,04/10/2019,T&S Overseas - Public Transport,RISD - UKRO,Corporate Travel Management (North) Ltd,98596690,55.87,T&S Overseas - Public Transport
BEIS,UKRI - BBSRC,04/10/2019,T&S Overseas - Public Transport,RISD - UKRO,Corporate Travel Management (North) Ltd,98596690,2.50,T&S Overseas - Public Transport
BEIS,UKRI - BBSRC,04/10/2019,T&S Overseas - Public Transport,RISD - UKRO,Corporate Travel Management (North) Ltd,98596690,67.00,T&S Overseas - Public Transport
BEIS,UKRI - BBSRC,04/10/2019,T&S Overseas - Public Transport,RISD - UKRO,Corporate Travel Management (North) Ltd,98596690,2.50,T&S Overseas - Public Transport
BEIS,UKRI - BBSRC,04/10/2019,T&S Overseas - Public Transport,RISD - UKRO,Corporate Travel Management (North) Ltd,98596690,188.00,T&S Overseas - Public Transport
BEIS,UKRI - BBSRC,04/10/2019,T&S Overseas - Public Transport,Science Group,Corporate Travel Management (North) Ltd,98596690,2.50,T&S Overseas - Public Transport
BEIS,UKRI - BBSRC,04/10/2019,T&S Overseas - Public Transport,Science Group,Corporate Travel Management (North) Ltd,98596690,440.54,T&S Overseas - Public Transport
BEIS,UKRI - BBSRC,04/10/2019,T&S UK - Accommodation,CE - CPS,Corporate Travel Management (North) Ltd,98596690,0.80,T&S UK - Accommodation
BEIS,UKRI - BBSRC,04/10/2019,T&S UK - Accommodation,CE - CPS,Corporate Travel Management (North) Ltd,98596690,0.16,T&S UK - Accommodation
BEIS,UKRI - BBSRC,04/10/2019,T&S UK - Accommodation,CE - Chief Executive,Corporate Travel Management (North) Ltd,98596690,0.80,T&S UK - Accommodation
BEIS,UKRI - BBSRC,04/10/2019,T&S UK - Accommodation,CE - Chief Executive,Corporate Travel Management (North) Ltd,98596690,129.25,T&S UK - Accommodation
BEIS,UKRI - BBSRC,04/10/2019,T&S UK - Accommodation,CE - Chief Executive,Corporate Travel Management (North) Ltd,98596690,2.80,T&S UK - Accommodation
BEIS,UKRI - BBSRC,04/10/2019,T&S UK - Accommodation,CE - Chief Executive,Corporate Travel Management (North) Ltd,98596690,193.00,T&S UK - Accommodation
BEIS,UKRI - BBSRC,04/10/2019,T&S UK - Accommodation,CE - Chief Executive,Corporate Travel Management (North) Ltd,98596690,0.80,T&S UK - Accommodation
BEIS,UKRI - BBSRC,04/10/2019,T&S UK - Accommodation,CE - Chief Executive,Corporate Travel Management (North) Ltd,98596690,0.88,T&S UK - Accommodation
BEIS,UKRI - BBSRC,04/10/2019,T&S UK - Accommodation,CE - IRU,Corporate Travel Management (North) Ltd,98596690,0.50,T&S UK - Accommodation
BEIS,UKRI - BBSRC,04/10/2019,T&S UK - Accommodation,CE - IRU,Corporate Travel Management (North) Ltd,98596690,1.44,T&S UK - Accommodation
BEIS,UKRI - BBSRC,04/10/2019,T&S UK - Accommodation,CE - IRU,Corporate Travel Management (North) Ltd,98596690,0.39,T&S UK - Accommodation
BEIS,UKRI - BBSRC,04/10/2019,T&S UK - Accommodation,CIMG - Council Secretariat,Corporate Travel Management (North) Ltd,98596690,2.00,T&S UK - Accommodation
BEIS,UKRI - BBSRC,04/10/2019,T&S UK - Accommodation,CIMG - Council Secretariat,Corporate Travel Management (North) Ltd,98596690,173.63,T&S UK - Accommodation
BEIS,UKRI - BBSRC,04/10/2019,T&S UK - Accommodation,CIMG - Council Secretariat,Corporate Travel Management (North) Ltd,98596690,0.80,T&S UK - Accommodation
BEIS,UKRI - BBSRC,04/10/2019,T&S UK - Accommodation,CIMG - Council Secretariat,Corporate Travel Management (North) Ltd,98596690,170.16,T&S UK - Accommodation
BEIS,UKRI - BBSRC,04/10/2019,T&S UK - Accommodation,CIMG - Council Secretariat,Corporate Travel Management (North) Ltd,98596690,0.56,T&S UK - Accommodation
BEIS,UKRI - BBSRC,04/10/2019,T&S UK - Accommodation,CIMG - Director,Corporate Travel Management (North) Ltd,98596690,0.80,T&S UK - Accommodation
BEIS,UKRI - BBSRC,04/10/2019,T&S UK - Accommodation,CIMG - Director,Corporate Travel Management (North) Ltd,98596690,223.90,T&S UK - Accommodation
BEIS,UKRI - BBSRC,04/10/2019,T&S UK - Accommodation,CIMG - Director,Corporate Travel Management (North) Ltd,98596690,0.16,T&S UK - Accommodation
BEIS,UKRI - BBSRC,04/10/2019,T&S UK - Accommodation,CIMG - External Relations,Corporate Travel Management (North) Ltd,98596690,0.80,T&S UK - Accommodation
BEIS,UKRI - BBSRC,04/10/2019,T&S UK - Accommodation,CIMG - External Relations,Corporate Travel Management (North) Ltd,98596690,104.00,T&S UK - Accommodation
BEIS,UKRI - BBSRC,04/10/2019,T&S UK - Accommodation,CIMG - External Relations,Corporate Travel Management (North) Ltd,98596690,0.80,T&S UK - Accommodation
BEIS,UKRI - BBSRC,04/10/2019,T&S UK - Accommodation,CIMG - External Relations,Corporate Travel Management (North) Ltd,98596690,104.00,T&S UK - Accommodation
BEIS,UKRI - BBSRC,04/10/2019,T&S UK - Accommodation,CIMG - External Relations,Corporate Travel Management (North) Ltd,98596690,0.32,T&S UK - Accommodation
BEIS,UKRI - BBSRC,04/10/2019,T&S UK - Accommodation,CIMG - Programme Office,Corporate Travel Management (North) Ltd,98596690,0.80,T&S UK - Accommodation
BEIS,UKRI - BBSRC,04/10/2019,T&S UK - Accommodation,CIMG - Programme Office,Corporate Travel Management (North) Ltd,98596690,0.16,T&S UK - Accommodation
BEIS,UKRI - BBSRC,04/10/2019,T&S UK - Accommodation,FG - Director,Corporate Travel Management (North) Ltd,98596690,0.80,T&S UK - Accommodation
BEIS,UKRI - BBSRC,04/10/2019,T&S UK - Accommodation,FG - Director,Corporate Travel Management (North) Ltd,98596690,80.00,T&S UK - Accommodation
BEIS,UKRI - BBSRC,04/10/2019,T&S UK - Accommodation,FG - Director,Corporate Travel Management (North) Ltd,98596690,0.16,T&S UK - Accommodation
BEIS,UKRI - BBSRC,04/10/2019,T&S UK - Accommodation,FG - Estates,Corporate Travel Management (North) Ltd,98596690,0.80,T&S UK - Accommodation
BEIS,UKRI - BBSRC,04/10/2019,T&S UK - Accommodation,FG - Estates,Corporate Travel Management (North) Ltd,98596690,66.00,T&S UK - Accommodation
BEIS,UKRI - BBSRC,04/10/2019,T&S UK - Accommodation,FG - Estates,Corporate Travel Management (North) Ltd,98596690,0.80,T&S UK - Accommodation
BEIS,UKRI - BBSRC,04/10/2019,T&S UK - Accommodation,FG - Estates,Corporate Travel Management (North) Ltd,98596690,0.80,T&S UK - Accommodation
BEIS,UKRI - BBSRC,04/10/2019,T&S UK - Accommodation,FG - Estates,Corporate Travel Management (North) Ltd,98596690,83.00,T&S UK - Accommodation
BEIS,UKRI - BBSRC,04/10/2019,T&S UK - Accommodation,FG - Estates,Corporate Travel Management (North) Ltd,98596690,-401.72,T&S UK - Accommodation
BEIS,UKRI - BBSRC,04/10/2019,T&S UK - Accommodation,FG - Estates,Corporate Travel Management (North) Ltd,98596690,0.50,T&S UK - Accommodation
BEIS,UKRI - BBSRC,04/10/2019,T&S UK - Accommodation,FG - Estates,Corporate Travel Management (North) Ltd,98596690,108.00,T&S UK - Accommodation
BEIS,UKRI - BBSRC,04/10/2019,T&S UK - Accommodation,FG - Estates,Corporate Travel Management (North) Ltd,98596690,0.80,T&S UK - Accommodation
BEIS,UKRI - BBSRC,04/10/2019,T&S UK - Accommodation,FG - Estates,Corporate Travel Management (North) Ltd,98596690,120.00,T&S UK - Accommodation
BEIS,UKRI - BBSRC,04/10/2019,T&S UK - Accommodation,FG - Estates,Corporate Travel Management (North) Ltd,98596690,0.80,T&S UK - Accommodation
BEIS,UKRI - BBSRC,04/10/2019,T&S UK - Accommodation,FG - Estates,Corporate Travel Management (North) Ltd,98596690,84.55,T&S UK - Accommodation
BEIS,UKRI - BBSRC,04/10/2019,T&S UK - Accommodation,FG - Estates,Corporate Travel Management (North) Ltd,98596690,0.80,T&S UK - Accommodation
BEIS,UKRI - BBSRC,04/10/2019,T&S UK - Accommodation,FG - Estates,Corporate Travel Management (North) Ltd,98596690,132.00,T&S UK - Accommodation
BEIS,UKRI - BBSRC,04/10/2019,T&S UK - Accommodation,FG - Estates,Corporate Travel Management (North) Ltd,98596690,1.00,T&S UK - Accommodation
BEIS,UKRI - BBSRC,04/10/2019,T&S UK - Accommodation,FG - Estates,Corporate Travel Management (North) Ltd,98596690,10.00,T&S UK - Accommodation
BEIS,UKRI - BBSRC,04/10/2019,T&S UK - Accommodation,FG - Estates,Corporate Travel Management (North) Ltd,98596690,0.80,T&S UK - Accommodation
BEIS,UKRI - BBSRC,04/10/2019,T&S UK - Accommodation,FG - Estates,Corporate Travel Management (North) Ltd,98596690,66.00,T&S UK - Accommodation
BEIS,UKRI - BBSRC,04/10/2019,T&S UK - Accommodation,FG - Estates,Corporate Travel Management (North) Ltd,98596690,0.80,T&S UK - Accommodation
BEIS,UKRI - BBSRC,04/10/2019,T&S UK - Accommodation,FG - Estates,Corporate Travel Management (North) Ltd,98596690,66.00,T&S UK - Accommodation
BEIS,UKRI - BBSRC,04/10/2019,T&S UK - Accommodation,FG - Estates,Corporate Travel Management (North) Ltd,98596690,1.58,T&S UK - Accommodation
BEIS,UKRI - BBSRC,04/10/2019,T&S UK - Accommodation,Innovation and Skills Group,Corporate Travel Management (North) Ltd,98596690,0.80,T&S UK - Accommodation
BEIS,UKRI - BBSRC,04/10/2019,T&S UK - Accommodation,Innovation and Skills Group,Corporate Travel Management (North) Ltd,98596690,180.00,T&S UK - Accommodation
BEIS,UKRI - BBSRC,04/10/2019,T&S UK - Accommodation,Innovation and Skills Group,Corporate Travel Management (North) Ltd,98596690,0.80,T&S UK - Accommodation
BEIS,UKRI - BBSRC,04/10/2019,T&S UK - Accommodation,Innovation and Skills Group,Corporate Travel Management (North) Ltd,98596690,123.00,T&S UK - Accommodation
BEIS,UKRI - BBSRC,04/10/2019,T&S UK - Accommodation,Innovation and Skills Group,Corporate Travel Management (North) Ltd,98596690,0.80,T&S UK - Accommodation
BEIS,UKRI - BBSRC,04/10/2019,T&S UK - Accommodation,Innovation and Skills Group,Corporate Travel Management (North) Ltd,98596690,81.00,T&S UK - Accommodation
BEIS,UKRI - BBSRC,04/10/2019,T&S UK - Accommodation,Innovation and Skills Group,Corporate Travel Management (North) Ltd,98596690,0.80,T&S UK - Accommodation
BEIS,UKRI - BBSRC,04/10/2019,T&S UK - Accommodation,Innovation and Skills Group,Corporate Travel Management (North) Ltd,98596690,180.00,T&S UK - Accommodation
BEIS,UKRI - BBSRC,04/10/2019,T&S UK - Accommodation,Innovation and Skills Group,Corporate Travel Management (North) Ltd,98596690,0.80,T&S UK - Accommodation
BEIS,UKRI - BBSRC,04/10/2019,T&S UK - Accommodation,Innovation and Skills Group,Corporate Travel Management (North) Ltd,98596690,136.00,T&S UK - Accommodation
BEIS,UKRI - BBSRC,04/10/2019,T&S UK - Accommodation,Innovation and Skills Group,Corporate Travel Management (North) Ltd,98596690,0.80,T&S UK - Accommodation
BEIS,UKRI - BBSRC,04/10/2019,T&S UK - Accommodation,Innovation and Skills Group,Corporate Travel Management (North) Ltd,98596690,0.80,T&S UK - Accommodation
BEIS,UKRI - BBSRC,04/10/2019,T&S UK - Accommodation,Innovation and Skills Group,Corporate Travel Management (North) Ltd,98596690,168.10,T&S UK - Accommodation
BEIS,UKRI - BBSRC,04/10/2019,T&S UK - Accommodation,Innovation and Skills Group,Corporate Travel Management (North) Ltd,98596690,1.12,T&S UK - Accommodation
BEIS,UKRI - BBSRC,04/10/2019,T&S UK - Accommodation,RISD - UKRO,Corporate Travel Management (North) Ltd,98596690,0.80,T&S UK - Accommodation
BEIS,UKRI - BBSRC,04/10/2019,T&S UK - Accommodation,RISD - UKRO,Corporate Travel Management (North) Ltd,98596690,51.17,T&S UK - Accommodation
BEIS,UKRI - BBSRC,04/10/2019,T&S UK - Accommodation,RISD - UKRO,Corporate Travel Management (North) Ltd,98596690,0.80,T&S UK - Accommodation
BEIS,UKRI - BBSRC,04/10/2019,T&S UK - Accommodation,RISD - UKRO,Corporate Travel Management (North) Ltd,98596690,64.00,T&S UK - Accommodation
BEIS,UKRI - BBSRC,04/10/2019,T&S UK - Accommodation,RISD - UKRO,Corporate Travel Management (North) Ltd,98596690,0.80,T&S UK - Accommodation
BEIS,UKRI - BBSRC,04/10/2019,T&S UK - Accommodation,RISD - UKRO,Corporate Travel Management (North) Ltd,98596690,69.00,T&S UK - Accommodation
BEIS,UKRI - BBSRC,04/10/2019,T&S UK - Accommodation,RISD - UKRO,Corporate Travel Management (North) Ltd,98596690,0.48,T&S UK - Accommodation
BEIS,UKRI - BBSRC,04/10/2019,T&S UK - Accommodation,Science Group,Corporate Travel Management (North) Ltd,98596690,174.61,T&S UK - Accommodation
BEIS,UKRI - BBSRC,04/10/2019,T&S UK - Accommodation,Science Group,Corporate Travel Management (North) Ltd,98596690,0.80,T&S UK - Accommodation
BEIS,UKRI - BBSRC,04/10/2019,T&S UK - Accommodation,Science Group,Corporate Travel Management (North) Ltd,98596690,77.90,T&S UK - Accommodation
BEIS,UKRI - BBSRC,04/10/2019,T&S UK - Accommodation,Science Group,Corporate Travel Management (North) Ltd,98596690,0.80,T&S UK - Accommodation
BEIS,UKRI - BBSRC,04/10/2019,T&S UK - Accommodation,Science Group,Corporate Travel Management (North) Ltd,98596690,85.00,T&S UK - Accommodation
BEIS,UKRI - BBSRC,04/10/2019,T&S UK - Accommodation,Science Group,Corporate Travel Management (North) Ltd,98596690,0.80,T&S UK - Accommodation
BEIS,UKRI - BBSRC,04/10/2019,T&S UK - Accommodation,Science Group,Corporate Travel Management (North) Ltd,98596690,70.90,T&S UK - Accommodation
BEIS,UKRI - BBSRC,04/10/2019,T&S UK - Accommodation,Science Group,Corporate Travel Management (North) Ltd,98596690,0.80,T&S UK - Accommodation
BEIS,UKRI - BBSRC,04/10/2019,T&S UK - Accommodation,Science Group,Corporate Travel Management (North) Ltd,98596690,149.00,T&S UK - Accommodation
BEIS,UKRI - BBSRC,04/10/2019,T&S UK - Accommodation,Science Group,Corporate Travel Management (North) Ltd,98596690,308.68,T&S UK - Accommodation
BEIS,UKRI - BBSRC,04/10/2019,T&S UK - Accommodation,Science Group,Corporate Travel Management (North) Ltd,98596690,0.50,T&S UK - Accommodation
BEIS,UKRI - BBSRC,04/10/2019,T&S UK - Accommodation,Science Group,Corporate Travel Management (North) Ltd,98596690,292.00,T&S UK - Accommodation
BEIS,UKRI - BBSRC,04/10/2019,T&S UK - Accommodation,Science Group,Corporate Travel Management (North) Ltd,98596690,0.80,T&S UK - Accommodation
BEIS,UKRI - BBSRC,04/10/2019,T&S UK - Accommodation,Science Group,Corporate Travel Management (North) Ltd,98596690,94.00,T&S UK - Accommodation
BEIS,UKRI - BBSRC,04/10/2019,T&S UK - Accommodation,Science Group,Corporate Travel Management (North) Ltd,98596690,0.50,T&S UK - Accommodation
BEIS,UKRI - BBSRC,04/10/2019,T&S UK - Accommodation,Science Group,Corporate Travel Management (North) Ltd,98596690,1.44,T&S UK - Accommodation
BEIS,UKRI - BBSRC,04/10/2019,T&S UK - Accommodation,Science Group,Corporate Travel Management (North) Ltd,98596690,0.80,T&S UK - Accommodation
BEIS,UKRI - BBSRC,04/10/2019,T&S UK - Accommodation,Science Group,Corporate Travel Management (North) Ltd,98596690,115.95,T&S UK - Accommodation
BEIS,UKRI - BBSRC,04/10/2019,T&S UK - Accommodation,Science Group,Corporate Travel Management (North) Ltd,98596690,0.80,T&S UK - Accommodation
BEIS,UKRI - BBSRC,04/10/2019,T&S UK - Accommodation,Science Group,Corporate Travel Management (North) Ltd,98596690,75.00,T&S UK - Accommodation
BEIS,UKRI - BBSRC,04/10/2019,T&S UK - Accommodation,Science Group,Corporate Travel Management (North) Ltd,98596690,0.80,T&S UK - Accommodation
BEIS,UKRI - BBSRC,04/10/2019,T&S UK - Accommodation,Science Group,Corporate Travel Management (North) Ltd,98596690,101.45,T&S UK - Accommodation
BEIS,UKRI - BBSRC,04/10/2019,T&S UK - Accommodation,Science Group,Corporate Travel Management (North) Ltd,98596690,-113.25,T&S UK - Accommodation
BEIS,UKRI - BBSRC,04/10/2019,T&S UK - Accommodation,Science Group,Corporate Travel Management (North) Ltd,98596690,0.16,T&S UK - Accommodation
BEIS,UKRI - BBSRC,04/10/2019,T&S UK - Accommodation,Science Group,Corporate Travel Management (North) Ltd,98596690,1.61,T&S UK - Accommodation
BEIS,UKRI - BBSRC,04/10/2019,T&S UK - Accommodation,Science Group - Delivery Function,Corporate Travel Management (North) Ltd,98596690,0.80,T&S UK - Accommodation
BEIS,UKRI - BBSRC,04/10/2019,T&S UK - Accommodation,Science Group - Delivery Function,Corporate Travel Management (North) Ltd,98596690,86.00,T&S UK - Accommodation
BEIS,UKRI - BBSRC,04/10/2019,T&S UK - Accommodation,Science Group - Delivery Function,Corporate Travel Management (North) Ltd,98596690,0.16,T&S UK - Accommodation
BEIS,UKRI - BBSRC,04/10/2019,T&S UK - Flights,CE - IRU,Corporate Travel Management (North) Ltd,98596690,2.50,T&S UK - Flights
BEIS,UKRI - BBSRC,04/10/2019,T&S UK - Flights,CE - IRU,Corporate Travel Management (North) Ltd,98596690,375.44,T&S UK - Flights
BEIS,UKRI - BBSRC,04/10/2019,T&S UK - Flights,European Initiatives,Corporate Travel Management (North) Ltd,98596690,2.50,T&S UK - Flights
BEIS,UKRI - BBSRC,04/10/2019,T&S UK - Flights,European Initiatives,Corporate Travel Management (North) Ltd,98596690,243.00,T&S UK - Flights
BEIS,UKRI - BBSRC,04/10/2019,T&S UK - Flights,European Initiatives,Corporate Travel Management (North) Ltd,98596690,2.50,T&S UK - Flights
BEIS,UKRI - BBSRC,04/10/2019,T&S UK - Flights,European Initiatives,Corporate Travel Management (North) Ltd,98596690,128.00,T&S UK - Flights
BEIS,UKRI - BBSRC,04/10/2019,T&S UK - Flights,FG - Estates,Corporate Travel Management (North) Ltd,98596690,2.50,T&S UK - Flights
BEIS,UKRI - BBSRC,04/10/2019,T&S UK - Flights,FG - Estates,Corporate Travel Management (North) Ltd,98596690,69.53,T&S UK - Flights
BEIS,UKRI - BBSRC,04/10/2019,T&S UK - Flights,FG - Estates,Corporate Travel Management (North) Ltd,98596690,2.50,T&S UK - Flights
BEIS,UKRI - BBSRC,04/10/2019,T&S UK - Flights,FG - Estates,Corporate Travel Management (North) Ltd,98596690,127.10,T&S UK - Flights
BEIS,UKRI - BBSRC,04/10/2019,T&S UK - Flights,Innovation and Skills Group,Corporate Travel Management (North) Ltd,98596690,2.50,T&S UK - Flights
BEIS,UKRI - BBSRC,04/10/2019,T&S UK - Flights,Innovation and Skills Group,Corporate Travel Management (North) Ltd,98596690,88.00,T&S UK - Flights
BEIS,UKRI - BBSRC,04/10/2019,T&S UK - Flights,Science Group,Corporate Travel Management (North) Ltd,98596690,2.50,T&S UK - Flights
BEIS,UKRI - BBSRC,04/10/2019,T&S UK - Flights,Science Group,Corporate Travel Management (North) Ltd,98596690,155.84,T&S UK - Flights
BEIS,UKRI - BBSRC,04/10/2019,T&S UK - Public Transport,CE - CPS,Corporate Travel Management (North) Ltd,98596690,0.25,T&S UK - Public Transport
BEIS,UKRI - BBSRC,04/10/2019,T&S UK - Public Transport,CE - CPS,Corporate Travel Management (North) Ltd,98596690,103.80,T&S UK - Public Transport
BEIS,UKRI - BBSRC,04/10/2019,T&S UK - Public Transport,CE - CPS,Corporate Travel Management (North) Ltd,98596690,0.25,T&S UK - Public Transport
BEIS,UKRI - BBSRC,04/10/2019,T&S UK - Public Transport,CE - CPS,Corporate Travel Management (North) Ltd,98596690,131.60,T&S UK - Public Transport
BEIS,UKRI - BBSRC,04/10/2019,T&S UK - Public Transport,CE - CPS,Corporate Travel Management (North) Ltd,98596690,0.25,T&S UK - Public Transport
BEIS,UKRI - BBSRC,04/10/2019,T&S UK - Public Transport,CE - CPS,Corporate Travel Management (North) Ltd,98596690,101.40,T&S UK - Public Transport
BEIS,UKRI - BBSRC,04/10/2019,T&S UK - Public Transport,CE - CPS,Corporate Travel Management (North) Ltd,98596690,2.16,T&S UK - Public Transport
BEIS,UKRI - BBSRC,04/10/2019,T&S UK - Public Transport,CE - CPS,Corporate Travel Management (North) Ltd,98596690,32.99,T&S UK - Public Transport
BEIS,UKRI - BBSRC,04/10/2019,T&S UK - Public Transport,CE - CPS,Corporate Travel Management (North) Ltd,98596690,0.25,T&S UK - Public Transport
BEIS,UKRI - BBSRC,04/10/2019,T&S UK - Public Transport,CE - CPS,Corporate Travel Management (North) Ltd,98596690,100.00,T&S UK - Public Transport
BEIS,UKRI - BBSRC,04/10/2019,T&S UK - Public Transport,CE - CPS,Corporate Travel Management (North) Ltd,98596690,0.25,T&S UK - Public Transport
BEIS,UKRI - BBSRC,04/10/2019,T&S UK - Public Transport,CE - CPS,Corporate Travel Management (North) Ltd,98596690,74.20,T&S UK - Public Transport
BEIS,UKRI - BBSRC,04/10/2019,T&S UK - Public Transport,CE - CPS,Corporate Travel Management (North) Ltd,98596690,0.25,T&S UK - Public Transport
BEIS,UKRI - BBSRC,04/10/2019,T&S UK - Public Transport,CE - CPS,Corporate Travel Management (North) Ltd,98596690,51.60,T&S UK - Public Transport
BEIS,UKRI - BBSRC,04/10/2019,T&S UK - Public Transport,CE - CPS,Corporate Travel Management (North) Ltd,98596690,0.25,T&S UK - Public Transport
BEIS,UKRI - BBSRC,04/10/2019,T&S UK - Public Transport,CE - CPS,Corporate Travel Management (North) Ltd,98596690,103.80,T&S UK - Public Transport
BEIS,UKRI - BBSRC,04/10/2019,T&S UK - Public Transport,CE - CPS,Corporate Travel Management (North) Ltd,98596690,0.25,T&S UK - Public Transport
BEIS,UKRI - BBSRC,04/10/2019,T&S UK - Public Transport,CE - CPS,Corporate Travel Management (North) Ltd,98596690,42.40,T&S UK - Public Transport
BEIS,UKRI - BBSRC,04/10/2019,T&S UK - Public Transport,CE - Chief Executive,Corporate Travel Management (North) Ltd,98596690,0.25,T&S UK - Public Transport
BEIS,UKRI - BBSRC,04/10/2019,T&S UK - Public Transport,CE - Chief Executive,Corporate Travel Management (North) Ltd,98596690,144.00,T&S UK - Public Transport
BEIS,UKRI - BBSRC,04/10/2019,T&S UK - Public Transport,CE - Chief Executive,Corporate Travel Management (North) Ltd,98596690,0.25,T&S UK - Public Transport
BEIS,UKRI - BBSRC,04/10/2019,T&S UK - Public Transport,CE - Chief Executive,Corporate Travel Management (North) Ltd,98596690,25.10,T&S UK - Public Transport
BEIS,UKRI - BBSRC,04/10/2019,T&S UK - Public Transport,CE - Chief Executive,Corporate Travel Management (North) Ltd,98596690,0.25,T&S UK - Public Transport
BEIS,UKRI - BBSRC,04/10/2019,T&S UK - Public Transport,CE - Chief Executive,Corporate Travel Management (North) Ltd,98596690,108.00,T&S UK - Public Transport
BEIS,UKRI - BBSRC,04/10/2019,T&S UK - Public Transport,CE - Chief Executive,Corporate Travel Management (North) Ltd,98596690,0.25,T&S UK - Public Transport
BEIS,UKRI - BBSRC,04/10/2019,T&S UK - Public Transport,CE - Chief Executive,Corporate Travel Management (North) Ltd,98596690,216.00,T&S UK - Public Transport
BEIS,UKRI - BBSRC,04/10/2019,T&S UK - Public Transport,CE - Chief Executive,Corporate Travel Management (North) Ltd,98596690,0.25,T&S UK - Public Transport
BEIS,UKRI - BBSRC,04/10/2019,T&S UK - Public Transport,CE - Chief Executive,Corporate Travel Management (North) Ltd,98596690,65.20,T&S UK - Public Transport
BEIS,UKRI - BBSRC,04/10/2019,T&S UK - Public Transport,CE - Chief Executive,Corporate Travel Management (North) Ltd,98596690,0.25,T&S UK - Public Transport
